Company,Portfolio,Organisation Code,Org Code Description,Object Code,Object Code Description,GL Date,Invoice No.,Value,Supplier,Category,Category Description,Supplier No
Sheffield City Council ,PEOPLE,14009242034,PURCHASING LEARNING DISABILITI,9230006,CCSP TRANSPORT,11/08/2017,0,776.80,ACTIVE RESPONSE TRANSPORT LTD,CT261851180,Mini Buses - Hire & Leasing,58711800
Sheffield City Council ,PLACE,12018528250,ESIF GROWTH HUB,8440000,FEE EXPENSES,31/08/2017,1,"2,250.00",BLUE WEALTH CAPITAL LTD,CT120935240,Financial Services,63160000
Sheffield City Council ,CORPORATE,11992088888,BALANCE SHEET,800001,AP MIGRATION CONTROL ACCOUNT,06/08/2017,1,440.00,FORESTEERS,CT102180228,Tree Work & Forestry Services,64734900
Sheffield City Council ,PEOPLE,13002439358,DISAB CHILD ACCESS CHILDCARE,9120000,OTHER AGENCIES,30/08/2017,1,562.50,REDACTED PERSONAL DATA,CT240417600,Childminders,62147300
Sheffield City Council ,CORPORATE,11992088888,BALANCE SHEET,800001,AP MIGRATION CONTROL ACCOUNT,06/08/2017,2,464.14,REDACTED PERSONAL DATA,CT130447846,Letting Agents,64690600
Sheffield City Council ,PEOPLE,13002439358,DISAB CHILD ACCESS CHILDCARE,9120000,OTHER AGENCIES,30/08/2017,2,555.00,REDACTED PERSONAL DATA,CT240417600,Childminders,62147300
Sheffield City Council ,PLACE,14058149006,SYRIAN VPR YH PARTNERS SCHEME,6210000,RENTS,31/08/2017,3,464.14,REDACTED PERSONAL DATA,CT130447846,Letting Agents,64690600
Sheffield City Council ,PEOPLE,13002439357,SHORT BREAKS FUNDING FOR DISAB,9120000,OTHER AGENCIES,28/08/2017,5,415.66,MYLNHURST SPORTS EDUCATION AND LEISURE,CT091167981,Schools - Local Authority,51858000
Sheffield City Council ,PEOPLE,14009242034,PURCHASING LEARNING DISABILITI,9230006,CCSP TRANSPORT,15/08/2017,6,704.80,ACTIVE RESPONSE TRANSPORT LTD,CT261851180,Mini Buses - Hire & Leasing,58711800
Sheffield City Council ,CORPORATE,11992088888,BALANCE SHEET,800001,AP MIGRATION CONTROL ACCOUNT,06/08/2017,9,300.00,FLYCHEESE PRODUCTIONS,CT200404860,Arts Centres,58060600
Sheffield City Council ,CORPORATE,11992088888,BALANCE SHEET,800001,AP MIGRATION CONTROL ACCOUNT,06/08/2017,9,543.00,FLYCHEESE PRODUCTIONS,CT200404860,Arts Centres,58060600
Sheffield City Council ,PEOPLE,13007933018,100 APPRENTICES,9120000,OTHER AGENCIES,25/08/2017,12,333.37,ASSOCIATED CHEMISTS (WICKER) LTD,CT140317440,Chemists - Dispensing,20310200
Sheffield City Council ,CORPORATE,11992088888,BALANCE SHEET,800001,AP MIGRATION CONTROL ACCOUNT,06/08/2017,14,300.00,BRIGHT STARS MOBILE CRECHE SERVICES,CT090453088,Nurseries & Creches,40271800
Sheffield City Council ,CORPORATE,11992088888,BALANCE SHEET,800001,AP MIGRATION CONTROL ACCOUNT,06/08/2017,15,"16,824.95",MEDINA CAPITAL DAIRY CO LTD,CT030623810,Dairies,52456800
Sheffield City Council ,CORPORATE,11992088888,BALANCE SHEET,800001,AP MIGRATION CONTROL ACCOUNT,06/08/2017,16,"16,312.91",MEDINA CAPITAL DAIRY CO LTD,CT030623810,Dairies,52456800
Sheffield City Council ,CORPORATE,11992088888,BALANCE SHEET,800001,AP MIGRATION CONTROL ACCOUNT,06/08/2017,17.5,362.40,D S COOPER LTD,CT102683380,Waste Disposal Services,50439200
Sheffield City Council ,CORPORATE,11992088888,BALANCE SHEET,800001,AP MIGRATION CONTROL ACCOUNT,06/08/2017,21,840.00,BRIGHT STARS MOBILE CRECHE SERVICES,CT090453088,Nurseries & Creches,40271800
Sheffield City Council ,CORPORATE,11992088888,BALANCE SHEET,800001,AP MIGRATION CONTROL ACCOUNT,06/08/2017,40,"2,000.00",HANDYWRITER,CT110672969,Sports Management & Promotion,64714200
Sheffield City Council ,PEOPLE,14009242034,PURCHASING LEARNING DISABILITI,1780000,ERROR SUSPENSE - CAREFIRST,23/08/2017,42,"14,525.71",FRIENDS TOGETHER CARE HOMES LTD,CT249917780,Children's Homes,64118300
Sheffield City Council ,PEOPLE,14009242034,PURCHASING LEARNING DISABILITI,9230006,CCSP TRANSPORT,25/08/2017,43,760.00,M M KHALIQ T/AS ACE MINIBUS TRAVEL,CT261676350,Taxis & Private Hire,59894600
Sheffield City Council ,CORPORATE,11992088888,BALANCE SHEET,800001,AP MIGRATION CONTROL ACCOUNT,06/08/2017,44,"7,520.40",ALLEN UPHOLSTERY LTD,CT022438650,Furniture - Repair & Restoration,29576300
Sheffield City Council ,PEOPLE,14009242034,PURCHASING LEARNING DISABILITI,9230006,CCSP TRANSPORT,25/08/2017,44,"2,000.00",M M KHALIQ T/AS ACE MINIBUS TRAVEL,CT261676350,Taxis & Private Hire,59894600
Sheffield City Council ,CORPORATE,11992088888,BALANCE SHEET,800001,AP MIGRATION CONTROL ACCOUNT,06/08/2017,53,259.15,BIRLEY MOOR GARDEN CENTRE,CT101739120,Garden Centres & Nurseries,20336600
Sheffield City Council ,PEOPLE,13007233013,MADE IN SHEFFIELD,9120000,OTHER AGENCIES,22/08/2017,58,"2,240.50",GIRAFFE LEARNING (E YOXALL T/AS),CT091229380,Educational Training Providers,59953400
Sheffield City Council ,CORPORATE,11992088888,BALANCE SHEET,800001,AP MIGRATION CONTROL ACCOUNT,06/08/2017,58,"3,750.00",JANICE TULLOCK ASSOCIATES LIMITED,CT080112100,Business & Management Consultants,63906500
Sheffield City Council ,CORPORATE,11992088888,BALANCE SHEET,800001,AP MIGRATION CONTROL ACCOUNT,06/08/2017,63,"4,446.00",ALLEN UPHOLSTERY LTD,CT022438650,Furniture - Repair & Restoration,29576300
Sheffield City Council ,CORPORATE,11992088888,BALANCE SHEET,800001,AP MIGRATION CONTROL ACCOUNT,06/08/2017,97,846.00,J B HIBBERD LIMITED,CT102180228,Tree Work & Forestry Services,51043400
Sheffield City Council ,PEOPLE,13002639283,INDEPENDENT FOSTER PLACE 16+,9270009,INDEPENDENT FOSTERING,11/08/2017,108,347.14,SAFE BASE FOSTERING LTD,CT240201880,Adoption & Fostering,63788900
Sheffield City Council ,CORPORATE,11992088888,BALANCE SHEET,800001,AP MIGRATION CONTROL ACCOUNT,06/08/2017,116,"7,120.00",WALKLEY COMMUNITY LIBRARY FUTURES GROUP,CT180447850,Libraries,61831000
Sheffield City Council ,CORPORATE,11992088888,BALANCE SHEET,800001,AP MIGRATION CONTROL ACCOUNT,06/08/2017,155,-572.70,DNA,CT230243419,Home Care Services,46547700
Sheffield City Council ,CORPORATE,11992088888,BALANCE SHEET,800001,AP MIGRATION CONTROL ACCOUNT,06/08/2017,155,-10.00,DNA,CT230243419,Home Care Services,46547700
Sheffield City Council ,PLACE,14059097394,HULL - HUMBER SUB REGION HAL,1194000,OTHER FEES,21/08/2017,172,"3,658.80",CLASSICAL GAS LTD,CT079939600,Gas Installers,54654000
Sheffield City Council ,PLACE,12018724204,BUSINESS GROWTH ADVISORS,8440000,FEE EXPENSES,25/08/2017,176,"2,234.92",STUART BRITLAND ADVISORY SERVICES LTD,CT080112100,Business & Management Consultants,64609800
Sheffield City Council ,CORPORATE,11992088888,BALANCE SHEET,800001,AP MIGRATION CONTROL ACCOUNT,06/08/2017,201,389.40,ZANSHIN.BIZ LTD,CT070731590,Engineers - Consulting,62098600
Sheffield City Council ,PEOPLE,13002639428,RESIDENTIAL UNDER 16's,9270008,INDEPENDENT RESIDENTIAL PMENT,24/08/2017,230,"17,271.34",FIRST 4 CARE LTD,CT230164710,Residential Care Homes,64095100
Sheffield City Council ,PLACE,14059197429,LTE'S PURCHASE & REPAIR,1141000,PURCHASE OF BUILDINGS,22/08/2017,314,"69,000.00",D AND S LEGAL LTD,CT190447830,Legal Services,64694000
Sheffield City Council ,CORPORATE,11992088888,BALANCE SHEET,800001,AP MIGRATION CONTROL ACCOUNT,06/08/2017,327,891.00,BURNGREAVE B & B,CT010241330,Guest Houses,46698600
Sheffield City Council ,PLACE,14059097172,DONCASTER RHB LOANS RAL,1194000,OTHER FEES,21/08/2017,377,390.00,ALLIED SURVEYORS,CT070774650,Surveyors - Building,43254700
Sheffield City Council ,PLACE,14059097394,HULL - HUMBER SUB REGION HAL,1194000,OTHER FEES,21/08/2017,383,"2,771.52",L A HALL (HULL) LTD,CT079965470,Roofing Services,64805500
Sheffield City Council ,PLACE,14059197551,COUNCIL HSG ACQUISITIONS PROG,1141000,PURCHASE OF BUILDINGS,22/08/2017,400,"71,500.00",WOSSKOW BROWN SOLICITORS,CT190372460,Solicitors,33444200
Sheffield City Council ,PLACE,14059197551,COUNCIL HSG ACQUISITIONS PROG,1141000,PURCHASE OF BUILDINGS,22/08/2017,403,"70,500.00",GRAYSONS SOLICITORS,CT190372460,Solicitors,29724100
Sheffield City Council ,PLACE,14059197551,COUNCIL HSG ACQUISITIONS PROG,1141000,PURCHASE OF BUILDINGS,22/08/2017,404,"58,000.00",KH INJURY LAWYERS,CT190372460,Solicitors,62295300
SCR Combined Authority,LOCAL ENTERPRISE PARTNERSHIP,33074630322,GRANT FOR APPRENTICESHIPS,8440000,FEE EXPENSES,22/08/2017,408,450.00,XTOL DEVELOPMENT SERVICES LTD,CT160879948,Training Centres,58959700
SCR Combined Authority,LOCAL ENTERPRISE PARTNERSHIP,33074630322,GRANT FOR APPRENTICESHIPS,8440000,FEE EXPENSES,22/08/2017,410,450.00,GRIP PARTNERSHIP LTD,CT261763418,Railways,64543000
SCR Combined Authority,LOCAL ENTERPRISE PARTNERSHIP,33074630322,GRANT FOR APPRENTICESHIPS,8440000,FEE EXPENSES,22/08/2017,411,"1,120.00",LITTLE BUDDY'S,CT029957268,Pet Shops & Pet Supplies,64803300
SCR Combined Authority,LOCAL ENTERPRISE PARTNERSHIP,33074630322,GRANT FOR APPRENTICESHIPS,8440000,FEE EXPENSES,22/08/2017,413,"2,000.00",EDWARD PRYOR & SON,CT220450010,Marking & Identification Equipment,20771200
SCR Combined Authority,LOCAL ENTERPRISE PARTNERSHIP,33074630322,GRANT FOR APPRENTICESHIPS,8440000,FEE EXPENSES,22/08/2017,414,"1,120.00",SPENCER'S AUTO SALVAGE LTD,CT091066355,Salvage Dealers,64117200
SCR Combined Authority,LOCAL ENTERPRISE PARTNERSHIP,33074630322,GRANT FOR APPRENTICESHIPS,8440000,FEE EXPENSES,22/08/2017,415,"1,120.00",GD WOODWORKING LTD,CT079945970,Joiners & Carpenters,63548100
SCR Combined Authority,LOCAL ENTERPRISE PARTNERSHIP,33074630322,GRANT FOR APPRENTICESHIPS,8440000,FEE EXPENSES,22/08/2017,416,"1,420.00",MAC PLASTERING,CT079959230,"Plasterers, Screeders & Dry Lining Contr",64634400
SCR Combined Authority,LOCAL ENTERPRISE PARTNERSHIP,33074630322,GRANT FOR APPRENTICESHIPS,8440000,FEE EXPENSES,22/08/2017,417,"1,120.00",PEACH ORATOR LTD,CT160879948,Training Centres,64803400
SCR Combined Authority,LOCAL ENTERPRISE PARTNERSHIP,33074630322,GRANT FOR APPRENTICESHIPS,8440000,FEE EXPENSES,22/08/2017,418,"1,120.00",TWIGGS GROUNDS MAINTENANCE LTD,CT109947051,Landscape Contractors,62703100
SCR Combined Authority,LOCAL ENTERPRISE PARTNERSHIP,33074630322,GRANT FOR APPRENTICESHIPS,8440000,FEE EXPENSES,22/08/2017,419,"2,000.00",EDWARD PRYOR & SON,CT220450010,Marking & Identification Equipment,20771200
SCR Combined Authority,LOCAL ENTERPRISE PARTNERSHIP,33074630322,GRANT FOR APPRENTICESHIPS,8440000,FEE EXPENSES,22/08/2017,420,"1,120.00",BURLEY FINANCIAL SERVICES LTD,CT121035225,Financial Advisers,64650000
SCR Combined Authority,LOCAL ENTERPRISE PARTNERSHIP,33074630322,GRANT FOR APPRENTICESHIPS,8440000,FEE EXPENSES,22/08/2017,421,"1,120.00",NEW ADVENTURE (DONCASTER) LTD,CT240417600,Childminders,64802700
SCR Combined Authority,LOCAL ENTERPRISE PARTNERSHIP,33074630322,GRANT FOR APPRENTICESHIPS,8440000,FEE EXPENSES,22/08/2017,422,"1,120.00",WHITEHORNES,CT029932695,Estate Agents & Property Buyers,64314800
SCR Combined Authority,LOCAL ENTERPRISE PARTNERSHIP,33074630322,GRANT FOR APPRENTICESHIPS,8440000,FEE EXPENSES,22/08/2017,423,"1,800.00",FAITHSTAR LLP,CT080112100,Business & Management Consultants,59811600
Sheffield City Council ,CORPORATE,11992088888,BALANCE SHEET,800001,AP MIGRATION CONTROL ACCOUNT,06/08/2017,423,"8,081.94",SHERWOOD BUSINESS SUPPORT LIMITED,CT160631230,Employment & Recruitment Agencies,64578700
SCR Combined Authority,LOCAL ENTERPRISE PARTNERSHIP,33074630322,GRANT FOR APPRENTICESHIPS,8440000,FEE EXPENSES,22/08/2017,424,"1,120.00",BEAUTIFUL YOU,CT029907040,Beauty Salons,63509400
SCR Combined Authority,LOCAL ENTERPRISE PARTNERSHIP,33074630322,GRANT FOR APPRENTICESHIPS,8440000,FEE EXPENSES,22/08/2017,425,"1,120.00",SAXTONS (FORMERLY HAIR THERAPY),CT029941595,Hairdressers - Unisex,62739400
SCR Combined Authority,LOCAL ENTERPRISE PARTNERSHIP,33074630322,GRANT FOR APPRENTICESHIPS,8440000,FEE EXPENSES,22/08/2017,426,"1,120.00",SOPHIE ELSWORTH HAIRDRESSING,CT029941595,Hairdressers - Unisex,64581600
SCR Combined Authority,LOCAL ENTERPRISE PARTNERSHIP,33074630322,GRANT FOR APPRENTICESHIPS,8440000,FEE EXPENSES,22/08/2017,427,"1,120.00",1ST CHOICE FOR PROPERTY,CT029932695,Estate Agents & Property Buyers,64802600
Sheffield City Council ,PEOPLE,13005239425,TAMHS,9120000,OTHER AGENCIES,22/08/2017,427,"8,333.33",INTERCHANGE SHEFFIELD CIC,CT140222570,Counselling & Advice Services,57895000
SCR Combined Authority,LOCAL ENTERPRISE PARTNERSHIP,33074630322,GRANT FOR APPRENTICESHIPS,8440000,FEE EXPENSES,22/08/2017,428,"1,120.00",BADSLEY PRIMARY SCHOOL,CT091167981,Schools - Local Authority,64802000
SCR Combined Authority,LOCAL ENTERPRISE PARTNERSHIP,33074630322,GRANT FOR APPRENTICESHIPS,8440000,FEE EXPENSES,22/08/2017,429,"1,120.00",CONRAD BLANDFORD HAIRDRESSING LTD,CT029941595,Hairdressers - Unisex,61855000
Sheffield City Council ,PEOPLE,13005239425,TAMHS,9120000,OTHER AGENCIES,29/08/2017,429,"2,136.36",INTERCHANGE SHEFFIELD CIC,CT140222570,Counselling & Advice Services,57895000
SCR Combined Authority,LOCAL ENTERPRISE PARTNERSHIP,33074630322,GRANT FOR APPRENTICESHIPS,8440000,FEE EXPENSES,22/08/2017,430,"1,500.00",REDACTED PERSONAL DATA,CT090141600,Hairdressing Schools,63714600
SCR Combined Authority,LOCAL ENTERPRISE PARTNERSHIP,33074630322,GRANT FOR APPRENTICESHIPS,8440000,FEE EXPENSES,22/08/2017,432,"1,420.00",CYCLE PENISTONE CIC,CT260423470,Cycle Shops,63900500
SCR Combined Authority,LOCAL ENTERPRISE PARTNERSHIP,33074630322,GRANT FOR APPRENTICESHIPS,8440000,FEE EXPENSES,22/08/2017,435,"1,120.00",CONRAD BLANDFORD HAIRDRESSING LTD,CT029941595,Hairdressers - Unisex,61855000
SCR Combined Authority,LOCAL ENTERPRISE PARTNERSHIP,33074630322,GRANT FOR APPRENTICESHIPS,8440000,FEE EXPENSES,22/08/2017,436,"1,500.00",HEMPER LANE DENTAL PRACTICE,CT140924860,Dentists,64790200
SCR Combined Authority,LOCAL ENTERPRISE PARTNERSHIP,33074630322,GRANT FOR APPRENTICESHIPS,8440000,FEE EXPENSES,22/08/2017,437,"1,420.00",M ELLOR PLUMBING & HEATING,CT079959790,Plumbers,64802100
SCR Combined Authority,LOCAL ENTERPRISE PARTNERSHIP,33074630322,GRANT FOR APPRENTICESHIPS,8440000,FEE EXPENSES,22/08/2017,438,"1,420.00",PUSHKIN SIGNS LIMITED,CT074470920,Signs & Nameplates,64011300
SCR Combined Authority,LOCAL ENTERPRISE PARTNERSHIP,33074630322,GRANT FOR APPRENTICESHIPS,8440000,FEE EXPENSES,22/08/2017,439,"1,420.00",JACK ELLIOTT GROUNDWORKS,CT079932980,Excavation & Groundwork Contractors,64596200
SCR Combined Authority,LOCAL ENTERPRISE PARTNERSHIP,33074630322,GRANT FOR APPRENTICESHIPS,8440000,FEE EXPENSES,22/08/2017,440,"1,420.00",BADSLEY PRIMARY SCHOOL,CT091167981,Schools - Local Authority,64802000
SCR Combined Authority,LOCAL ENTERPRISE PARTNERSHIP,33074630322,GRANT FOR APPRENTICESHIPS,8440000,FEE EXPENSES,22/08/2017,441,"1,120.00",BADSLEY PRIMARY SCHOOL,CT091167981,Schools - Local Authority,64802000
SCR Combined Authority,LOCAL ENTERPRISE PARTNERSHIP,33074630322,GRANT FOR APPRENTICESHIPS,8440000,FEE EXPENSES,22/08/2017,442,"1,120.00",LITTLE BUDDY'S,CT029957268,Pet Shops & Pet Supplies,64803300
Sheffield City Council ,PEOPLE,13001639007,UASC/ASYLUM - LEAVING CARE,9440002,LOOKED AFTER CHILDREN,11/08/2017,443,"1,000.00",MORGAN DIAS IMMIGRATION LTD,CT199995262,Immigration Advice & Services,58564200
Sheffield City Council ,CORPORATE,11992088888,BALANCE SHEET,800001,AP MIGRATION CONTROL ACCOUNT,06/08/2017,451,"2,012.46",HN WOODLAND & ESTATE MANAGEMENT,CT102180228,Tree Work & Forestry Services,31707200
Sheffield City Council ,PLACE,14059197551,COUNCIL HSG ACQUISITIONS PROG,1141000,PURCHASE OF BUILDINGS,22/08/2017,497,"77,500.00",HOWELLS LLP,CT190372460,Solicitors,31490200
Sheffield City Council ,CORPORATE,11992088888,BALANCE SHEET,800001,AP MIGRATION CONTROL ACCOUNT,06/08/2017,526,950.40,BURNGREAVE B & B,CT010241330,Guest Houses,46698600
Sheffield City Council ,PLACE,14058300000,SUPPORTED & TEMP ACCOM TEAM,6210001,BED & BREAKFAST PAYMENTS,28/08/2017,530,957.00,BURNGREAVE B & B,CT010241330,Guest Houses,46698600
Sheffield City Council ,PLACE,14058400000,PRIVATE RENTED SOLUTIONS,8010000,EQUIPMENT PURCHASE AND REPAIR,23/08/2017,562,900.00,WYSE MOVE PROPERTIES LTD,CT029931155,Embroiderers,52654800
Sheffield City Council ,PLACE,14066749309,PAYMENT HOLDING ACCOUNT,8350000,MISCELLANEOUS EXPENSES,23/08/2017,608,"2,709,748.50",PLACES FOR PEOPLE,CT050144166,"Housing Associations, Societies, Trusts",50930400
Sheffield City Council ,CORPORATE,11992088888,BALANCE SHEET,800001,AP MIGRATION CONTROL ACCOUNT,06/08/2017,659,"1,863.00",THURGOLAND TRAVEL LTD,CT261676350,Taxis & Private Hire,58680500
Sheffield City Council ,PLACE,14059097176,BRADFORD RF FUNDS HAL,1109012,REGIONAL HOMES BOARD,23/08/2017,667,"10,506.72",BRADFORD COUNCIL (HOUSING),CT219948583,Local Government,49247900
Sheffield City Council ,PLACE,14058400000,PRIVATE RENTED SOLUTIONS,9120000,OTHER AGENCIES,25/08/2017,759,928.28,REDACTED PERSONAL DATA,CT130447846,Letting Agents,55074100
Sheffield City Council ,PEOPLE,13002239077,NORTH SA - LAC,9440002,LOOKED AFTER CHILDREN,21/08/2017,760,"4,057.77",AA GLOBAL LANGUAGE SERVICES LTD,CT160480090,Translators & Interpreters,62033100
Sheffield City Council ,PLACE,12018724204,BUSINESS GROWTH ADVISORS,8440000,FEE EXPENSES,25/08/2017,815,791.84,D L SCOTT TA KRYPTON CONSULTANCY,CT080112100,Business & Management Consultants,64611500
Sheffield City Council ,PEOPLE,13002239077,NORTH SA - LAC,9440002,LOOKED AFTER CHILDREN,21/08/2017,829,"3,342.99",AA GLOBAL LANGUAGE SERVICES LTD,CT160480090,Translators & Interpreters,62033100
Sheffield City Council ,CORPORATE,11992088888,BALANCE SHEET,800001,AP MIGRATION CONTROL ACCOUNT,06/08/2017,835,-309.59,IGUZZINI ILLUMINAZIONE UK LTD,CT072948390,Lighting Mnfrs,43799400
Sheffield City Council ,CORPORATE,11992088888,BALANCE SHEET,800001,AP MIGRATION CONTROL ACCOUNT,06/08/2017,872,"8,375.00",LEARN SHEFFIELD,CT090529360,Educational Services,62999800
Sheffield City Council ,PEOPLE,13007733142,CITY DEAL - FRAMEWORKS,9120000,OTHER AGENCIES,25/08/2017,893,"2,240.35",APPRENTICE TEAM LTD,CT160979980,Training Services,63131300
Sheffield City Council ,PEOPLE,13007733142,CITY DEAL - FRAMEWORKS,9120000,OTHER AGENCIES,25/08/2017,898,852.71,FRESH TRAINING SERVICES (UK) LTD,CT160979980,Training Services,63304900
Sheffield City Council ,PEOPLE,13007733142,CITY DEAL - FRAMEWORKS,9120000,OTHER AGENCIES,25/08/2017,899,"1,107.85",BARNSLEY COLLEGE,CT090120341,Colleges - Higher Education,51704000
Sheffield City Council ,PEOPLE,13007733142,CITY DEAL - FRAMEWORKS,9120000,OTHER AGENCIES,25/08/2017,900,"2,078.63",CHESTERFIELD COLLEGE,CT090167330,Schools & Colleges - Further Education,31768700
Sheffield City Council ,PEOPLE,13007733142,CITY DEAL - FRAMEWORKS,9120000,OTHER AGENCIES,25/08/2017,901,519.58,DONCASTER COLLEGE,CT090167330,Schools & Colleges - Further Education,45512700
Sheffield City Council ,PEOPLE,13007733142,CITY DEAL - FRAMEWORKS,9120000,OTHER AGENCIES,25/08/2017,903,937.68,DONCASTER ROTH & DIST (MOTOR TRADES)GTA,CT160879948,Training Centres,20443400
Sheffield City Council ,PEOPLE,13007733142,CITY DEAL - FRAMEWORKS,9120000,OTHER AGENCIES,25/08/2017,904,"1,044.08",DONCASTER ROTH & DIST (MOTOR TRADES)GTA,CT160879948,Training Centres,20443400
Sheffield City Council ,PEOPLE,13007733142,CITY DEAL - FRAMEWORKS,9120000,OTHER AGENCIES,25/08/2017,905,"2,188.94",THE EMPLOYERS FORUM,CT230417020,Charities & Voluntary Organisations,35356600
Sheffield City Council ,PEOPLE,13007733142,CITY DEAL - FRAMEWORKS,9120000,OTHER AGENCIES,25/08/2017,906,"3,895.32",INTEGRITY IT SOLUTIONS LIMITED,CT091229380,Educational Training Providers,62466800
Sheffield City Council ,PEOPLE,13007733142,CITY DEAL - FRAMEWORKS,9120000,OTHER AGENCIES,25/08/2017,909,680.04,RNN GROUP (SCC USE),CT090167330,Schools & Colleges - Further Education,30111000
Sheffield City Council ,PEOPLE,13007733142,CITY DEAL - FRAMEWORKS,9120000,OTHER AGENCIES,25/08/2017,910,"2,970.18",JGW TRAINING LTD T/A SKILLS FOR CAREERS,CT160879948,Training Centres,58932000
Sheffield City Council ,CORPORATE,11992088888,BALANCE SHEET,800001,AP MIGRATION CONTROL ACCOUNT,06/08/2017,912,"10,000.00",LEARN SHEFFIELD,CT090529360,Educational Services,62999800
Sheffield City Council ,PEOPLE,13007733142,CITY DEAL - FRAMEWORKS,9120000,OTHER AGENCIES,28/08/2017,948,"8,020.06",DONCASTER ROTH & DIST (MOTOR TRADES)GTA,CT160879948,Training Centres,20443400
Sheffield City Council ,PEOPLE,13007733142,CITY DEAL - FRAMEWORKS,9120000,OTHER AGENCIES,28/08/2017,949,"1,755.55",ECONOMIC SOLUTIONS LTD,CT160979980,Training Services,59143200
Sheffield City Council ,PEOPLE,13007733142,CITY DEAL - FRAMEWORKS,9120000,OTHER AGENCIES,28/08/2017,950,470.71,FLOORTRAIN (GB) LTD,CT160979980,Training Services,59038100
Sheffield City Council ,PEOPLE,13007733142,CITY DEAL - FRAMEWORKS,9120000,OTHER AGENCIES,28/08/2017,953,"2,931.09",TAGADVANCE LTD,CT160979980,Training Services,62263800
Sheffield City Council ,PEOPLE,13007733142,CITY DEAL - FRAMEWORKS,9120000,OTHER AGENCIES,28/08/2017,954,"8,001.43",THE SHEFFIELD COLLEGE,CT090167330,Schools & Colleges - Further Education,29761100
Sheffield City Council ,PEOPLE,13002639405,SEMI INDEPENDENT LIVING,9270008,INDEPENDENT RESIDENTIAL PMENT,25/08/2017,1476,"2,967.01",ROUNDABOUT LTD,CT010143900,Hostels,48314701
Sheffield City Council ,PEOPLE,13007733142,CITY DEAL - FRAMEWORKS,9120000,OTHER AGENCIES,28/08/2017,956,588.68,UNIVERSITY OF SHEFFIELD,CT029924930,Department Stores,34705808
Sheffield City Council ,PEOPLE,13007733142,CITY DEAL - FRAMEWORKS,9120000,OTHER AGENCIES,28/08/2017,957,968.68,XTOL DEVELOPMENT SERVICES LTD,CT160879948,Training Centres,58959700
Sheffield City Council ,PLACE,14059197551,COUNCIL HSG ACQUISITIONS PROG,1141000,PURCHASE OF BUILDINGS,25/08/2017,959,"77,500.00",WAKE SMITH SOLICITORS LTD,CT190372460,Solicitors,59237000
Sheffield City Council ,PEOPLE,13003239032,ADOPTION SERVICE,9120000,OTHER AGENCIES,28/08/2017,966,400.00,REDACTED PERSONAL DATA,CT240201880,Adoption & Fostering,64249800
Sheffield City Council ,PEOPLE,13003239032,ADOPTION SERVICE,9120000,OTHER AGENCIES,28/08/2017,968,463.68,REDACTED PERSONAL DATA,CT240201880,Adoption & Fostering,50700200
Sheffield City Council ,PEOPLE,13003239032,ADOPTION SERVICE,9120000,OTHER AGENCIES,28/08/2017,972,418.69,REDACTED PERSONAL DATA,CT240201880,Adoption & Fostering,70003200
Sheffield City Council ,PEOPLE,13002639028,SPECIAL GUARDIANSHIP,9270013,RESIDENCE ORDERS,28/08/2017,974,"1,649.72",REDACTED PERSONAL DATA,CT240201880,Adoption & Fostering,70001800
Sheffield City Council ,PEOPLE,13003239032,ADOPTION SERVICE,9120000,OTHER AGENCIES,28/08/2017,976,400.00,REDACTED PERSONAL DATA,CT240201880,Adoption & Fostering,70004400
Sheffield City Council ,PEOPLE,13003239032,ADOPTION SERVICE,9120000,OTHER AGENCIES,28/08/2017,977,400.00,REDACTED PERSONAL DATA,CT240201880,Adoption & Fostering,64798100
Sheffield City Council ,PEOPLE,13003239032,ADOPTION SERVICE,9120000,OTHER AGENCIES,28/08/2017,1022,275.88,REDACTED PERSONAL DATA,CT240201880,Adoption & Fostering,70004800
Sheffield City Council ,PEOPLE,13003239032,ADOPTION SERVICE,9120000,OTHER AGENCIES,28/08/2017,1022,400.00,REDACTED PERSONAL DATA,CT240201880,Adoption & Fostering,70004800
Sheffield City Council ,CORPORATE,11992088888,BALANCE SHEET,800001,AP MIGRATION CONTROL ACCOUNT,06/08/2017,1050,780.00,THE COMPANY OF CUTLERS IN HALLAMSHIRE,CT170911983,Business Information Services,61811100
Sheffield City Council ,PEOPLE,13002639428,RESIDENTIAL UNDER 16's,9270008,INDEPENDENT RESIDENTIAL PMENT,30/08/2017,1109,"15,200.00",TIMEOUT CHILDREN'S HOMES LTD,CT249917780,Children's Homes,64262300
Sheffield City Council ,CORPORATE,11992088888,BALANCE SHEET,800001,AP MIGRATION CONTROL ACCOUNT,06/08/2017,1112,"-3,678.59",PRIORITY PROPERTIES NORTH WEST LIMITED,CT130661896,Property & Estate Management,48910400
Sheffield City Council ,PLACE,12017622069,TRADED OPERATIONS,5610000,AGENCY STAFF,22/08/2017,1118,"2,400.00",BROADFIELD PROJECT MANAGEMENT LTD,CT070762731,Quantity Surveyors,64674100
Sheffield City Council ,CORPORATE,11992088888,BALANCE SHEET,800001,AP MIGRATION CONTROL ACCOUNT,06/08/2017,1141,"2,003.57",PRIORITY PROPERTIES NORTH WEST LIMITED,CT130661896,Property & Estate Management,48910400
Sheffield City Council ,CORPORATE,11992088888,BALANCE SHEET,800001,AP MIGRATION CONTROL ACCOUNT,06/08/2017,1162,707.14,PRIORITY PROPERTIES NORTH WEST LIMITED,CT130661896,Property & Estate Management,48910400
Sheffield City Council ,CORPORATE,11992088888,BALANCE SHEET,800001,AP MIGRATION CONTROL ACCOUNT,06/08/2017,1166,"8,453.00",CYCLE LEEDS LTD,CT160979980,Training Services,64675800
Sheffield City Council ,CORPORATE,11992088888,BALANCE SHEET,800001,AP MIGRATION CONTROL ACCOUNT,06/08/2017,1240,"23,940.00",SHEFFIELD CAB DEBT SUPPORT UNIT,CT140222570,Counselling & Advice Services,39574700
Sheffield City Council ,CORPORATE,11992088888,BALANCE SHEET,800001,AP MIGRATION CONTROL ACCOUNT,06/08/2017,1258,"6,840.00",CLIMBING WORKS,CT200672790,Sports Coaching & Instruction,46710300
Sheffield City Council ,PLACE,14058400000,PRIVATE RENTED SOLUTIONS,9120000,OTHER AGENCIES,30/08/2017,1283,918.00,REDACTED PERSONAL DATA,CT130447846,Letting Agents,53868100
Sheffield City Council ,CORPORATE,11992088888,BALANCE SHEET,800001,AP MIGRATION CONTROL ACCOUNT,06/08/2017,1292,612.00,JOHN MICHAEL TURNER T/A J T SKIPS,CT102521480,Skip Hire & Rubbish Clearance & Collecti,34482600
Sheffield City Council ,CORPORATE,11992088888,BALANCE SHEET,800001,AP MIGRATION CONTROL ACCOUNT,06/08/2017,1293,456.00,JOHN MICHAEL TURNER T/A J T SKIPS,CT102521480,Skip Hire & Rubbish Clearance & Collecti,34482600
Sheffield City Council ,CORPORATE,11992088888,BALANCE SHEET,800001,AP MIGRATION CONTROL ACCOUNT,06/08/2017,1317,720.00,CONSILIENT CONSULTING LTD,CT080112100,Business & Management Consultants,44677900
Sheffield City Council ,CORPORATE,11992088888,BALANCE SHEET,800001,AP MIGRATION CONTROL ACCOUNT,06/08/2017,1318,480.00,CONSILIENT CONSULTING LTD,CT080112100,Business & Management Consultants,44677900
Sheffield City Council ,CORPORATE,11992088888,BALANCE SHEET,800001,AP MIGRATION CONTROL ACCOUNT,06/08/2017,1319,"1,200.00",CONSILIENT CONSULTING LTD,CT080112100,Business & Management Consultants,44677900
Sheffield City Council ,PEOPLE,14007597334,DISABLED GRANTS,1165000,NC&A OTHER,31/08/2017,1341,"3,441.00",PRISM MEDICAL UK WESTHOLME DIVISION,CT149925800,Disability Equipment - Mnfrs & Suppliers,20948300
Sheffield City Council ,PEOPLE,14007597334,DISABLED GRANTS,1165000,NC&A OTHER,31/08/2017,1342,"2,060.55",PRISM MEDICAL UK WESTHOLME DIVISION,CT149925800,Disability Equipment - Mnfrs & Suppliers,20948300
Sheffield City Council ,PEOPLE,14007597334,DISABLED GRANTS,1165000,NC&A OTHER,31/08/2017,1343,"3,754.27",THYSSENKRUPP ENCASA,CT072847902,Lift Mnfrs,62780200
Sheffield City Council ,PEOPLE,14007597334,DISABLED GRANTS,1165000,NC&A OTHER,31/08/2017,1345,"1,598.57",CLARK & PARTNERS LTD,CT149925800,Disability Equipment - Mnfrs & Suppliers,20392800
Sheffield City Council ,PEOPLE,14007597334,DISABLED GRANTS,1165000,NC&A OTHER,31/08/2017,1346,"5,088.00",WESTWOOD JOINERY & CONSTRUCTION LTD,CT070621555,Construction Contractors - General,55881100
Sheffield City Council ,PEOPLE,14007597334,DISABLED GRANTS,1165000,NC&A OTHER,31/08/2017,1347,"3,702.50",BANCROFT PLUMBING & HEATING LTD,CT079959790,Plumbers,39839400
Sheffield City Council ,PEOPLE,14007597334,DISABLED GRANTS,1165000,NC&A OTHER,31/08/2017,1348,"7,030.00",WESTWOOD JOINERY & CONSTRUCTION LTD,CT070621555,Construction Contractors - General,55881100
Sheffield City Council ,PEOPLE,14007597334,DISABLED GRANTS,1165000,NC&A OTHER,31/08/2017,1349,"3,544.71",THYSSENKRUPP ENCASA,CT072847902,Lift Mnfrs,62780200
Sheffield City Council ,PEOPLE,14007597334,DISABLED GRANTS,1165000,NC&A OTHER,31/08/2017,1350,"3,420.00",CLARK & PARTNERS LTD,CT149925800,Disability Equipment - Mnfrs & Suppliers,20392800
Sheffield City Council ,PEOPLE,14007597334,DISABLED GRANTS,1165000,NC&A OTHER,31/08/2017,1351,"3,999.00",BANCROFT PLUMBING & HEATING LTD,CT079959790,Plumbers,39839400
Sheffield City Council ,PEOPLE,14007597334,DISABLED GRANTS,1165000,NC&A OTHER,31/08/2017,1352,"5,964.00",BANCROFT PLUMBING & HEATING LTD,CT079959790,Plumbers,39839400
Sheffield City Council ,PEOPLE,14007597334,DISABLED GRANTS,1165000,NC&A OTHER,31/08/2017,1353,"3,840.00",BANCROFT PLUMBING & HEATING LTD,CT079959790,Plumbers,39839400
Sheffield City Council ,CORPORATE,11992088888,BALANCE SHEET,800001,AP MIGRATION CONTROL ACCOUNT,06/08/2017,1354,732.00,PUSHKIN SIGNS LIMITED,CT074470920,Signs & Nameplates,64011300
Sheffield City Council ,PEOPLE,14007597334,DISABLED GRANTS,1165000,NC&A OTHER,31/08/2017,1357,"1,887.45",THYSSENKRUPP ENCASA,CT072847902,Lift Mnfrs,62780200
Sheffield City Council ,PEOPLE,14009242034,PURCHASING LEARNING DISABILITI,1780000,ERROR SUSPENSE - CAREFIRST,14/08/2017,1358,"3,130.65",CARE HAVEN UK LTD,CT240517580,Childcare Services,32688400
Sheffield City Council ,CORPORATE,11992088888,BALANCE SHEET,800001,AP MIGRATION CONTROL ACCOUNT,06/08/2017,1358,384.46,PUSHKIN SIGNS LIMITED,CT074470920,Signs & Nameplates,64011300
Sheffield City Council ,PEOPLE,14007597334,DISABLED GRANTS,1165000,NC&A OTHER,31/08/2017,1358,"3,544.71",THYSSENKRUPP ENCASA,CT072847902,Lift Mnfrs,62780200
Sheffield City Council ,PEOPLE,14009242034,PURCHASING LEARNING DISABILITI,1780000,ERROR SUSPENSE - CAREFIRST,14/08/2017,1359,"9,600.00",CARE HAVEN UK LTD,CT240517580,Childcare Services,32688400
Sheffield City Council ,PEOPLE,14009242034,PURCHASING LEARNING DISABILITI,1780000,ERROR SUSPENSE - CAREFIRST,17/08/2017,1360,"9,600.00",CARE HAVEN UK LTD,CT240517580,Childcare Services,32688400
Sheffield City Council ,PEOPLE,14007597334,DISABLED GRANTS,1165000,NC&A OTHER,31/08/2017,1360,"1,542.63",THYSSENKRUPP ENCASA,CT072847902,Lift Mnfrs,62780200
Sheffield City Council ,PEOPLE,14007597334,DISABLED GRANTS,1165000,NC&A OTHER,31/08/2017,1362,"1,646.24",THYSSENKRUPP ENCASA,CT072847902,Lift Mnfrs,62780200
Sheffield City Council ,PEOPLE,14007597334,DISABLED GRANTS,1165000,NC&A OTHER,31/08/2017,1363,"1,281.75",CLARK & PARTNERS LTD,CT149925800,Disability Equipment - Mnfrs & Suppliers,20392800
Sheffield City Council ,PEOPLE,13008633065,PROVIDER CONTRACT AUG16-JUL17,9120000,OTHER AGENCIES,28/08/2017,1363,325.50,SHEFFIELD ASSOCIATION FOR THE VOLUNTARY,CT230417020,Charities & Voluntary Organisations,35093600
Sheffield City Council ,PEOPLE,14007597334,DISABLED GRANTS,1165000,NC&A OTHER,31/08/2017,1364,"3,879.12",CLARK & PARTNERS LTD,CT149925800,Disability Equipment - Mnfrs & Suppliers,20392800
Sheffield City Council ,CORPORATE,11992088888,BALANCE SHEET,800001,AP MIGRATION CONTROL ACCOUNT,06/08/2017,1364,291.96,PUSHKIN SIGNS LIMITED,CT074470920,Signs & Nameplates,64011300
Sheffield City Council ,PEOPLE,14007597334,DISABLED GRANTS,1165000,NC&A OTHER,31/08/2017,1365,"5,615.48",CLARK & PARTNERS LTD,CT149925800,Disability Equipment - Mnfrs & Suppliers,20392800
Sheffield City Council ,PEOPLE,14007597334,DISABLED GRANTS,1165000,NC&A OTHER,31/08/2017,1366,"2,175.91",CLARK & PARTNERS LTD,CT149925800,Disability Equipment - Mnfrs & Suppliers,20392800
Sheffield City Council ,CORPORATE,11992088888,BALANCE SHEET,800001,AP MIGRATION CONTROL ACCOUNT,06/08/2017,1370,348.00,EVENTS COLLECTIVE LTD,CT119950040,"Marquees, Tents & Portable Floor Hire",52822000
Sheffield City Council ,CORPORATE,11992088888,BALANCE SHEET,800001,AP MIGRATION CONTROL ACCOUNT,06/08/2017,1371,"4,800.00",EVENTS COLLECTIVE LTD,CT119950040,"Marquees, Tents & Portable Floor Hire",52822000
Sheffield City Council ,PLACE,12077022220,AIR QUALITY AND MODELLING,8030000,EQUIPMENT MAINTENANCE CONTRACT,31/08/2017,1383,"9,083.60",MATTS MONITORS LIMITED,CT074850230,"Measuring, Analysing & Controlling Instr",59872000
Sheffield City Council ,PEOPLE,14007597333,MINOR WORK GRANTS,1165000,NC&A OTHER,31/08/2017,1415,692.00,GOLDGLAZE LTD,CT079927520,Double Glazing Installers,52825500
Sheffield City Council ,PEOPLE,14007597333,MINOR WORK GRANTS,1165000,NC&A OTHER,31/08/2017,1416,"1,900.00",CHRIS WRIGHT CONSTRUCTION,CT070661961,Property Maintenance & Repairs,32537700
Sheffield City Council ,PEOPLE,14007597333,MINOR WORK GRANTS,1165000,NC&A OTHER,31/08/2017,1417,"1,266.00",CHAPELTOWN GLASS WINDOW & FACIA COMPANY,CT079927520,Double Glazing Installers,42749400
Sheffield City Council ,PEOPLE,14007597333,MINOR WORK GRANTS,1165000,NC&A OTHER,31/08/2017,1418,"2,000.00",CHAPELTOWN GLASS WINDOW & FACIA COMPANY,CT079927520,Double Glazing Installers,42749400
Sheffield City Council ,PEOPLE,14007597333,MINOR WORK GRANTS,1165000,NC&A OTHER,31/08/2017,1419,"2,000.00",BANCROFT PLUMBING & HEATING LTD,CT079959790,Plumbers,39839400
Sheffield City Council ,PEOPLE,14007597333,MINOR WORK GRANTS,1165000,NC&A OTHER,31/08/2017,1421,"1,500.00",CHRIS WRIGHT CONSTRUCTION,CT070661961,Property Maintenance & Repairs,32537700
Sheffield City Council ,PEOPLE,13002639405,SEMI INDEPENDENT LIVING,9270008,INDEPENDENT RESIDENTIAL PMENT,15/08/2017,1464,"1,254.84",ROUNDABOUT LTD,CT010143900,Hostels,48314701
Sheffield City Council ,CORPORATE,11992088888,BALANCE SHEET,800001,AP MIGRATION CONTROL ACCOUNT,06/08/2017,1466,342.00,VIEWPOINT RESEARCH COMMUNITY INTEREST CO,CT060349840,Market Research,51169800
Sheffield City Council ,CORPORATE,11992088888,BALANCE SHEET,800001,AP MIGRATION CONTROL ACCOUNT,06/08/2017,1467,501.60,VIEWPOINT RESEARCH COMMUNITY INTEREST CO,CT060349840,Market Research,51169800
Sheffield City Council ,PEOPLE,13002639405,SEMI INDEPENDENT LIVING,9270008,INDEPENDENT RESIDENTIAL PMENT,14/08/2017,1470,"1,170.00",ROUNDABOUT LTD,CT010143900,Hostels,48314701
Sheffield City Council ,PEOPLE,13002639405,SEMI INDEPENDENT LIVING,9270008,INDEPENDENT RESIDENTIAL PMENT,25/08/2017,1477,"1,558.99",ROUNDABOUT LTD,CT010143900,Hostels,48314701
Sheffield City Council ,PEOPLE,13002639405,SEMI INDEPENDENT LIVING,9270008,INDEPENDENT RESIDENTIAL PMENT,25/08/2017,1478,420.67,ROUNDABOUT LTD,CT010143900,Hostels,48314701
Sheffield City Council ,PEOPLE,13002639405,SEMI INDEPENDENT LIVING,9270008,INDEPENDENT RESIDENTIAL PMENT,25/08/2017,1480,"1,558.99",ROUNDABOUT LTD,CT010143900,Hostels,48314701
Sheffield City Council ,PEOPLE,13002639405,SEMI INDEPENDENT LIVING,9270008,INDEPENDENT RESIDENTIAL PMENT,25/08/2017,1481,420.67,ROUNDABOUT LTD,CT010143900,Hostels,48314701
Sheffield City Council ,PEOPLE,13001639007,UASC/ASYLUM - LEAVING CARE,6210000,RENTS,25/08/2017,1482,"1,558.99",ROUNDABOUT LTD,CT010143900,Hostels,48314701
Sheffield City Council ,PEOPLE,13002639405,SEMI INDEPENDENT LIVING,9270008,INDEPENDENT RESIDENTIAL PMENT,25/08/2017,1483,420.67,ROUNDABOUT LTD,CT010143900,Hostels,48314701
Sheffield City Council ,PEOPLE,13002639405,SEMI INDEPENDENT LIVING,9270008,INDEPENDENT RESIDENTIAL PMENT,25/08/2017,1484,"1,222.33",ROUNDABOUT LTD,CT010143900,Hostels,48314701
Sheffield City Council ,PEOPLE,13002639405,SEMI INDEPENDENT LIVING,9270008,INDEPENDENT RESIDENTIAL PMENT,25/08/2017,1486,420.67,ROUNDABOUT LTD,CT010143900,Hostels,48314701
Sheffield City Council ,PEOPLE,13002639405,SEMI INDEPENDENT LIVING,9270008,INDEPENDENT RESIDENTIAL PMENT,25/08/2017,1488,"2,967.01",ROUNDABOUT LTD,CT010143900,Hostels,48314701
Sheffield City Council ,PEOPLE,13001639006,UASC/ASYLUM 16-17,6210000,RENTS,25/08/2017,1489,"1,558.99",ROUNDABOUT LTD,CT010143900,Hostels,48314701
Sheffield City Council ,PEOPLE,13001639007,UASC/ASYLUM - LEAVING CARE,6210000,RENTS,25/08/2017,1490,"1,558.99",ROUNDABOUT LTD,CT010143900,Hostels,48314701
Sheffield City Council ,PEOPLE,13002639405,SEMI INDEPENDENT LIVING,9270008,INDEPENDENT RESIDENTIAL PMENT,25/08/2017,1491,"1,558.99",ROUNDABOUT LTD,CT010143900,Hostels,48314701
Sheffield City Council ,PEOPLE,13001839285,CONTACT CONTRACTS,9280000,CONTACT,11/08/2017,1492,866.70,CREWS SUPPORT SERVICES LTD,CT230953280,Nursing Agencies,32951701
Sheffield City Council ,PEOPLE,13002639405,SEMI INDEPENDENT LIVING,9270008,INDEPENDENT RESIDENTIAL PMENT,25/08/2017,1492,"1,558.99",ROUNDABOUT LTD,CT010143900,Hostels,48314701
Sheffield City Council ,PEOPLE,13002639405,SEMI INDEPENDENT LIVING,9270008,INDEPENDENT RESIDENTIAL PMENT,25/08/2017,1494,"1,558.99",ROUNDABOUT LTD,CT010143900,Hostels,48314701
Sheffield City Council ,PEOPLE,13002639405,SEMI INDEPENDENT LIVING,9270008,INDEPENDENT RESIDENTIAL PMENT,25/08/2017,1495,"2,967.01",ROUNDABOUT LTD,CT010143900,Hostels,48314701
Sheffield City Council ,PEOPLE,13002639405,SEMI INDEPENDENT LIVING,9270008,INDEPENDENT RESIDENTIAL PMENT,25/08/2017,1496,"2,967.01",ROUNDABOUT LTD,CT010143900,Hostels,48314701
Sheffield City Council ,PEOPLE,13002639405,SEMI INDEPENDENT LIVING,9270008,INDEPENDENT RESIDENTIAL PMENT,25/08/2017,1497,420.67,ROUNDABOUT LTD,CT010143900,Hostels,48314701
Sheffield City Council ,PEOPLE,13002639405,SEMI INDEPENDENT LIVING,9270008,INDEPENDENT RESIDENTIAL PMENT,25/08/2017,1498,420.67,ROUNDABOUT LTD,CT010143900,Hostels,48314701
Sheffield City Council ,PEOPLE,13002639405,SEMI INDEPENDENT LIVING,9270008,INDEPENDENT RESIDENTIAL PMENT,25/08/2017,1499,"1,558.99",ROUNDABOUT LTD,CT010143900,Hostels,48314701
Sheffield City Council ,PEOPLE,13002639405,SEMI INDEPENDENT LIVING,9270008,INDEPENDENT RESIDENTIAL PMENT,25/08/2017,1500,"1,307.54",ROUNDABOUT LTD,CT010143900,Hostels,48314701
Sheffield City Council ,PEOPLE,13002639405,SEMI INDEPENDENT LIVING,9270008,INDEPENDENT RESIDENTIAL PMENT,25/08/2017,1503,"2,967.01",ROUNDABOUT LTD,CT010143900,Hostels,48314701
Sheffield City Council ,PEOPLE,13002639405,SEMI INDEPENDENT LIVING,9270008,INDEPENDENT RESIDENTIAL PMENT,25/08/2017,1504,420.67,ROUNDABOUT LTD,CT010143900,Hostels,48314701
Sheffield City Council ,PEOPLE,13002639405,SEMI INDEPENDENT LIVING,9270008,INDEPENDENT RESIDENTIAL PMENT,23/08/2017,1505,301.74,ROUNDABOUT LTD,CT010143900,Hostels,48314701
Sheffield City Council ,PEOPLE,13001639007,UASC/ASYLUM - LEAVING CARE,9410001,MANDATORY AWARDS FEES,25/08/2017,1509,300.00,ROUNDABOUT LTD,CT010143900,Hostels,48314701
Sheffield City Council ,PEOPLE,13001639007,UASC/ASYLUM - LEAVING CARE,9410001,MANDATORY AWARDS FEES,25/08/2017,1510,300.00,ROUNDABOUT LTD,CT010143900,Hostels,48314701
Sheffield City Council ,PEOPLE,13001639006,UASC/ASYLUM 16-17,9410001,MANDATORY AWARDS FEES,25/08/2017,1513,300.00,ROUNDABOUT LTD,CT010143900,Hostels,48314701
Sheffield City Council ,PEOPLE,13001639007,UASC/ASYLUM - LEAVING CARE,9410001,MANDATORY AWARDS FEES,25/08/2017,1515,300.00,ROUNDABOUT LTD,CT010143900,Hostels,48314701
Sheffield City Council ,CORPORATE,11992088888,BALANCE SHEET,800001,AP MIGRATION CONTROL ACCOUNT,06/08/2017,1527,"-2,037.60",PATROL,CT220216298,Cctv & Video Equipment,53833700
Sheffield City Council ,CORPORATE,11992088888,BALANCE SHEET,800001,AP MIGRATION CONTROL ACCOUNT,06/08/2017,1573,715.20,MATTHEWS ENVIRONMENTAL SOLUTIONS LTD,CT040338450,Furnaces,20497400
Sheffield City Council ,CORPORATE,11992088888,BALANCE SHEET,800001,AP MIGRATION CONTROL ACCOUNT,06/08/2017,1606,"2,277.47",IBK INITIATIVES,CT230625820,Disability & Special Needs - Services,43297500
Sheffield City Council ,CORPORATE,11992088888,BALANCE SHEET,800001,AP MIGRATION CONTROL ACCOUNT,06/08/2017,1607,"1,785.96",IBK INITIATIVES,CT230625820,Disability & Special Needs - Services,43297500
Sheffield City Council ,CORPORATE,11992088888,BALANCE SHEET,800001,AP MIGRATION CONTROL ACCOUNT,06/08/2017,1608,"1,332.09",IBK INITIATIVES,CT230625820,Disability & Special Needs - Services,43297500
Sheffield City Council ,PEOPLE,13008533112,LDD PLACEMENTS AUG16-JUL17,9120000,OTHER AGENCIES,29/08/2017,1611,"1,444.68",IBK INITIATIVES,CT9999DIRPY,CAREFIRST DIRECT PAYMENTS,56108500
Sheffield City Council ,PEOPLE,13008533112,LDD PLACEMENTS AUG16-JUL17,9120000,OTHER AGENCIES,29/08/2017,1612,457.56,IBK INITIATIVES,CT230625820,Disability & Special Needs - Services,43297500
Sheffield City Council ,PEOPLE,13002439357,SHORT BREAKS FUNDING FOR DISAB,9120000,OTHER AGENCIES,18/08/2017,1612,"2,477.72",SOVA,CT230417020,Charities & Voluntary Organisations,43911400
Sheffield City Council ,PEOPLE,13008533112,LDD PLACEMENTS AUG16-JUL17,9120000,OTHER AGENCIES,29/08/2017,1615,"1,086.84",IBK INITIATIVES,CT9999DIRPY,CAREFIRST DIRECT PAYMENTS,56108500
Sheffield City Council ,PEOPLE,13008533112,LDD PLACEMENTS AUG16-JUL17,9120000,OTHER AGENCIES,29/08/2017,1625,"2,960.59",IBK INITIATIVES,CT230625820,Disability & Special Needs - Services,43297500
Sheffield City Council ,CORPORATE,11992088888,BALANCE SHEET,800001,AP MIGRATION CONTROL ACCOUNT,06/08/2017,1642,361.00,MANOR TRAINING & RESOURCE CENTRE LTD,CT230417020,Charities & Voluntary Organisations,45592100
Sheffield City Council ,PEOPLE,13001839285,CONTACT CONTRACTS,9280000,CONTACT,16/08/2017,1655,318.98,CREWS SUPPORT SERVICES LTD,CT230953280,Nursing Agencies,32951701
Sheffield City Council ,PEOPLE,13001839285,CONTACT CONTRACTS,9280000,CONTACT,16/08/2017,1668,274.08,CREWS SUPPORT SERVICES LTD,CT230953280,Nursing Agencies,32951701
Sheffield City Council ,PEOPLE,13001839285,CONTACT CONTRACTS,9280000,CONTACT,16/08/2017,1695,268.65,CREWS SUPPORT SERVICES LTD,CT230953280,Nursing Agencies,32951701
Sheffield City Council ,PEOPLE,13001839285,CONTACT CONTRACTS,9280000,CONTACT,16/08/2017,1699,354.94,CREWS SUPPORT SERVICES LTD,CT230953280,Nursing Agencies,32951701
Sheffield City Council ,PEOPLE,13002339238,WEST SA - CIN S17,9280000,CONTACT,18/08/2017,1743,345.69,CREWS SUPPORT SERVICES LTD,CT230953280,Nursing Agencies,32951701
Sheffield City Council ,PEOPLE,13001839285,CONTACT CONTRACTS,9280000,CONTACT,18/08/2017,1749,460.77,CREWS SUPPORT SERVICES LTD,CT230953280,Nursing Agencies,32951701
Sheffield City Council ,PEOPLE,13001839285,CONTACT CONTRACTS,9280000,CONTACT,18/08/2017,1761,301.88,CREWS SUPPORT SERVICES LTD,CT230953280,Nursing Agencies,32951701
Sheffield City Council ,PEOPLE,13001839285,CONTACT CONTRACTS,9280000,CONTACT,18/08/2017,1779,252.05,CREWS SUPPORT SERVICES LTD,CT230953280,Nursing Agencies,32951701
Sheffield City Council ,PEOPLE,13001839285,CONTACT CONTRACTS,9280000,CONTACT,18/08/2017,1789,268.54,CREWS SUPPORT SERVICES LTD,CT230953280,Nursing Agencies,32951701
Sheffield City Council ,PEOPLE,13001839285,CONTACT CONTRACTS,9280000,CONTACT,18/08/2017,1802,258.75,CREWS SUPPORT SERVICES LTD,CT230953280,Nursing Agencies,32951701
Sheffield City Council ,PEOPLE,13001839285,CONTACT CONTRACTS,9280000,CONTACT,18/08/2017,1806,335.70,CREWS SUPPORT SERVICES LTD,CT230953280,Nursing Agencies,32951701
Sheffield City Council ,PLACE,12045821104,SPORTS EVENTS,8550000,OTHER SERVICES,30/08/2017,1826,764.35,GLOBAL SECURITY STEWARDING LTD,CT220369240,Security Services,59711900
Sheffield City Council ,CORPORATE,11992088888,BALANCE SHEET,800001,AP MIGRATION CONTROL ACCOUNT,06/08/2017,1828,-71.93,REFRESHMENT SYSTEMS LTD,CT030882430,Vending Machines - Sales & Service,52751900
Sheffield City Council ,PEOPLE,13002339238,WEST SA - CIN S17,9280000,CONTACT,22/08/2017,1838,299.55,CREWS SUPPORT SERVICES LTD,CT230953280,Nursing Agencies,32951701
Sheffield City Council ,PEOPLE,13001839285,CONTACT CONTRACTS,9280000,CONTACT,22/08/2017,1866,270.27,CREWS SUPPORT SERVICES LTD,CT230953280,Nursing Agencies,32951701
Sheffield City Council ,PEOPLE,13001839285,CONTACT CONTRACTS,9280000,CONTACT,22/08/2017,1871,523.66,CREWS SUPPORT SERVICES LTD,CT230953280,Nursing Agencies,32951701
Sheffield City Council ,PEOPLE,13001839285,CONTACT CONTRACTS,9280000,CONTACT,23/08/2017,1887,250.35,SHEFFIELD CHILDREN'S CENTRE,CT090453088,Nurseries & Creches,31190800
Sheffield City Council ,PEOPLE,13001839285,CONTACT CONTRACTS,9280000,CONTACT,23/08/2017,1889,250.35,SHEFFIELD CHILDREN'S CENTRE,CT090453088,Nurseries & Creches,31190800
Sheffield City Council ,PEOPLE,13001839285,CONTACT CONTRACTS,9280000,CONTACT,22/08/2017,1913,378.45,CREWS SUPPORT SERVICES LTD,CT230953280,Nursing Agencies,32951701
Sheffield City Council ,PEOPLE,13002039406,FOSTERING NON-PLACEMENT LAC 1,9440002,LOOKED AFTER CHILDREN,25/08/2017,1923,614.38,CREWS SUPPORT SERVICES LTD,CT230953280,Nursing Agencies,32951701
Sheffield City Council ,PEOPLE,13002339238,WEST SA - CIN S17,9280000,CONTACT,23/08/2017,1961,303.45,CREWS SUPPORT SERVICES LTD,CT230953280,Nursing Agencies,32951701
Sheffield City Council ,PEOPLE,13001839285,CONTACT CONTRACTS,9280000,CONTACT,23/08/2017,1977,300.37,CREWS SUPPORT SERVICES LTD,CT230953280,Nursing Agencies,32951701
Sheffield City Council ,PEOPLE,13001839285,CONTACT CONTRACTS,9280000,CONTACT,23/08/2017,1982,470.02,CREWS SUPPORT SERVICES LTD,CT230953280,Nursing Agencies,32951701
Sheffield City Council ,PEOPLE,14009242034,PURCHASING LEARNING DISABILITI,9190003,CITYWIDE SPOT,11/08/2017,2000,320.00,ITS MY LIFE LTD,CT9999DIRPY,CAREFIRST DIRECT PAYMENTS,55802800
Sheffield City Council ,PEOPLE,14009242034,PURCHASING LEARNING DISABILITI,9190003,CITYWIDE SPOT,11/08/2017,2001,320.00,ITS MY LIFE LTD,CT9999DIRPY,CAREFIRST DIRECT PAYMENTS,55802800
Sheffield City Council ,PEOPLE,14009242034,PURCHASING LEARNING DISABILITI,9190003,CITYWIDE SPOT,11/08/2017,2002,"1,807.60",ITS MY LIFE LTD,CT9999DIRPY,CAREFIRST DIRECT PAYMENTS,55802800
Sheffield City Council ,PEOPLE,14009242034,PURCHASING LEARNING DISABILITI,9190003,CITYWIDE SPOT,11/08/2017,2003,316.00,ITS MY LIFE LTD,CT9999DIRPY,CAREFIRST DIRECT PAYMENTS,55802800
Sheffield City Council ,PEOPLE,14009242034,PURCHASING LEARNING DISABILITI,9190003,CITYWIDE SPOT,11/08/2017,2004,"1,040.00",ITS MY LIFE LTD,CT9999DIRPY,CAREFIRST DIRECT PAYMENTS,55802800
Sheffield City Council ,PEOPLE,14009242034,PURCHASING LEARNING DISABILITI,9190003,CITYWIDE SPOT,11/08/2017,2005,"1,060.00",ITS MY LIFE LTD,CT9999DIRPY,CAREFIRST DIRECT PAYMENTS,55802800
Sheffield City Council ,PEOPLE,14009242034,PURCHASING LEARNING DISABILITI,9190003,CITYWIDE SPOT,11/08/2017,2006,"1,399.00",ITS MY LIFE LTD,CT9999DIRPY,CAREFIRST DIRECT PAYMENTS,55802800
Sheffield City Council ,PEOPLE,14009242034,PURCHASING LEARNING DISABILITI,9190003,CITYWIDE SPOT,11/08/2017,2007,634.52,ITS MY LIFE LTD,CT9999DIRPY,CAREFIRST DIRECT PAYMENTS,55802800
Sheffield City Council ,CORPORATE,11992088888,BALANCE SHEET,800001,AP MIGRATION CONTROL ACCOUNT,06/08/2017,2009,"1,500.00",IMAGINATION GAMING,CT021938950,Games Shops,51815500
Sheffield City Council ,PEOPLE,13001839285,CONTACT CONTRACTS,9280000,CONTACT,23/08/2017,2019,361.92,CREWS SUPPORT SERVICES LTD,CT230953280,Nursing Agencies,32951701
Sheffield City Council ,CORPORATE,11992088888,BALANCE SHEET,800001,AP MIGRATION CONTROL ACCOUNT,06/08/2017,2020,318.00,PAUL DAY COUNTRYSIDE SERVICES,CT102180228,Tree Work & Forestry Services,31761800
Sheffield City Council ,PEOPLE,13002239084,NORTH SA - CIN S17,9280000,CONTACT,29/08/2017,2067,315.45,CREWS SUPPORT SERVICES LTD,CT230953280,Nursing Agencies,32951701
Sheffield City Council ,PEOPLE,13001839285,CONTACT CONTRACTS,9280000,CONTACT,29/08/2017,2100,273.23,CREWS SUPPORT SERVICES LTD,CT230953280,Nursing Agencies,32951701
Sheffield City Council ,PEOPLE,13001839285,CONTACT CONTRACTS,9280000,CONTACT,29/08/2017,2105,501.19,CREWS SUPPORT SERVICES LTD,CT230953280,Nursing Agencies,32951701
Sheffield City Council ,PEOPLE,13001839285,CONTACT CONTRACTS,9280000,CONTACT,29/08/2017,2118,252.55,CREWS SUPPORT SERVICES LTD,CT230953280,Nursing Agencies,32951701
Sheffield City Council ,PLACE,12045821103,CLIFFHANGER,8440000,FEE EXPENSES,30/08/2017,2145,"2,014.00",EVENTS SOLUTION LTD,CT119950040,"Marquees, Tents & Portable Floor Hire",40361200
Sheffield City Council ,PEOPLE,13001839285,CONTACT CONTRACTS,9280000,CONTACT,29/08/2017,2149,358.43,CREWS SUPPORT SERVICES LTD,CT230953280,Nursing Agencies,32951701
Sheffield City Council ,CORPORATE,11992088888,BALANCE SHEET,800001,AP MIGRATION CONTROL ACCOUNT,06/08/2017,2150,348.00,DRONFIELD TREE SERVICES LTD,CT102180228,Tree Work & Forestry Services,40552500
Sheffield City Council ,CORPORATE,11992088888,BALANCE SHEET,800001,AP MIGRATION CONTROL ACCOUNT,06/08/2017,2151,588.00,DRONFIELD TREE SERVICES LTD,CT102180228,Tree Work & Forestry Services,40552500
Sheffield City Council ,PEOPLE,13001839285,CONTACT CONTRACTS,9280000,CONTACT,29/08/2017,2154,302.74,CREWS SUPPORT SERVICES LTD,CT230953280,Nursing Agencies,32951701
Sheffield City Council ,PEOPLE,13002639428,RESIDENTIAL UNDER 16's,9270008,INDEPENDENT RESIDENTIAL PMENT,24/08/2017,2155,"17,957.86",HALLIWELL HOMES LTD (SALFORD),CT249917780,Children's Homes,63487700
Sheffield City Council ,PEOPLE,13002239077,NORTH SA - LAC,9280000,CONTACT,21/08/2017,2222,314.45,CREWS SUPPORT SERVICES LTD,CT230953280,Nursing Agencies,32951701
Sheffield City Council ,PEOPLE,13002639428,RESIDENTIAL UNDER 16's,9270008,INDEPENDENT RESIDENTIAL PMENT,25/08/2017,2232,"16,695.71",HALLIWELL HOMES LTD (SALFORD),CT249917780,Children's Homes,63487700
Sheffield City Council ,PEOPLE,13002639428,RESIDENTIAL UNDER 16's,9270008,INDEPENDENT RESIDENTIAL PMENT,25/08/2017,2235,"2,568.57",HALLIWELL HOMES LTD (SALFORD),CT249917780,Children's Homes,63487700
Sheffield City Council ,PEOPLE,13002639428,RESIDENTIAL UNDER 16's,9270008,INDEPENDENT RESIDENTIAL PMENT,11/08/2017,2252,"2,957.14",QUALITY PROTECTS CHILDREN LTD,CT249917780,Children's Homes,42001100
Sheffield City Council ,PEOPLE,13002039406,FOSTERING NON-PLACEMENT LAC 1,9440002,LOOKED AFTER CHILDREN,25/08/2017,2270,700.96,CREWS SUPPORT SERVICES LTD,CT230953280,Nursing Agencies,32951701
Sheffield City Council ,CORPORATE,11992088888,BALANCE SHEET,800001,AP MIGRATION CONTROL ACCOUNT,06/08/2017,2276,-45.00,ULTRANOVA,CT029972250,Solariums & Tanning Salons,43491200
Sheffield City Council ,CORPORATE,11992088888,BALANCE SHEET,800001,AP MIGRATION CONTROL ACCOUNT,06/08/2017,2302,486.00,IMPERIAL SIGNS LTD,CT074470920,Signs & Nameplates,62548300
Sheffield City Council ,PEOPLE,13002039406,FOSTERING NON-PLACEMENT LAC 1,9440002,LOOKED AFTER CHILDREN,25/08/2017,2381,668.74,CREWS SUPPORT SERVICES LTD,CT230953280,Nursing Agencies,32951701
Sheffield City Council ,PEOPLE,13002639428,RESIDENTIAL UNDER 16's,9270008,INDEPENDENT RESIDENTIAL PMENT,23/08/2017,2401,"13,454.00",PEBBLES CARE LIMITED,CT230164710,Residential Care Homes,62253000
Sheffield City Council ,PEOPLE,13002639428,RESIDENTIAL UNDER 16's,9270008,INDEPENDENT RESIDENTIAL PMENT,24/08/2017,2414,"9,114.00",PEBBLES CARE LIMITED,CT230164710,Residential Care Homes,62253000
Sheffield City Council ,PEOPLE,13008738081,EXTENDED LEARNING & SUPPORT,8440000,FEE EXPENSES,28/08/2017,2477,300.00,GREENTOP CIRCUS CENTRE,CT119932210,Entertainment Agencies,41957701
Sheffield City Council ,PLACE,12000123005,DISTRICT TEAM,8010000,EQUIPMENT PURCHASE AND REPAIR,16/08/2017,2557,250.00,CIG (COUNTRYWIDE INVESTIGATION GROUP),CT199987555,Detective Agencies And Private Investiga,31539600
Sheffield City Council ,PLACE,12000123005,DISTRICT TEAM,8010000,EQUIPMENT PURCHASE AND REPAIR,16/08/2017,2558,250.00,CIG (COUNTRYWIDE INVESTIGATION GROUP),CT199987555,Detective Agencies And Private Investiga,31539600
Sheffield City Council ,CORPORATE,11992088888,BALANCE SHEET,800001,AP MIGRATION CONTROL ACCOUNT,06/08/2017,2560,262.50,REACHOUT CHILDCARE SERVICES LTD,CT240502300,After School Care,43376800
Sheffield City Council ,PLACE,12000123005,DISTRICT TEAM,8010000,EQUIPMENT PURCHASE AND REPAIR,16/08/2017,2563,250.00,CIG (COUNTRYWIDE INVESTIGATION GROUP),CT199987555,Detective Agencies And Private Investiga,31539600
Sheffield City Council ,PLACE,12000123005,DISTRICT TEAM,8010000,EQUIPMENT PURCHASE AND REPAIR,16/08/2017,2566,250.00,CIG (COUNTRYWIDE INVESTIGATION GROUP),CT199987555,Detective Agencies And Private Investiga,31539600
Sheffield City Council ,PEOPLE,14009242034,PURCHASING LEARNING DISABILITI,9250002,INDEPENDENT DAY CARE,11/08/2017,2591,"2,269.72",CAMPHILL VILLAGE TRUST,CT230417020,Charities & Voluntary Organisations,36186800
Sheffield City Council ,CORPORATE,11992088888,BALANCE SHEET,800001,AP MIGRATION CONTROL ACCOUNT,06/08/2017,2772,-30.96,IGUZZINI ILLUMINAZIONE UK LTD,CT072948390,Lighting Mnfrs,43799400
Sheffield City Council ,CORPORATE,11992088888,BALANCE SHEET,800001,AP MIGRATION CONTROL ACCOUNT,06/08/2017,2897,528.00,SHEFFIELD TREE CARE,CT102180228,Tree Work & Forestry Services,46254600
Sheffield City Council ,CORPORATE,11992088888,BALANCE SHEET,800001,AP MIGRATION CONTROL ACCOUNT,06/08/2017,2899,288.00,SHEFFIELD TREE CARE,CT102180228,Tree Work & Forestry Services,46254600
Sheffield City Council ,CORPORATE,11992088888,BALANCE SHEET,800001,AP MIGRATION CONTROL ACCOUNT,06/08/2017,2906,336.00,SHEFFIELD TREE CARE,CT102180228,Tree Work & Forestry Services,46254600
Sheffield City Council ,PEOPLE,14009242034,PURCHASING LEARNING DISABILITI,1780000,ERROR SUSPENSE - CAREFIRST,23/08/2017,2962,"14,171.43",BLUE MOUNTAIN HOMES LTD,CT249917780,Children's Homes,38637800
Sheffield City Council ,PEOPLE,14009242034,PURCHASING LEARNING DISABILITI,9250002,INDEPENDENT DAY CARE,11/08/2017,3003,608.00,SPECTRUM ACTIVE NOT FOR PROFIT,CT160879948,Training Centres,53330800
Sheffield City Council ,PEOPLE,14009242034,PURCHASING LEARNING DISABILITI,9250002,INDEPENDENT DAY CARE,11/08/2017,3005,672.00,SPECTRUM ACTIVE NOT FOR PROFIT,CT160879948,Training Centres,53330800
Sheffield City Council ,PEOPLE,14009242034,PURCHASING LEARNING DISABILITI,9250002,INDEPENDENT DAY CARE,11/08/2017,3016,304.00,SPECTRUM ACTIVE NOT FOR PROFIT,CT160879948,Training Centres,53330800
Sheffield City Council ,PEOPLE,14009346039,ADULT SOCIAL CARE PURCHASING,9250002,INDEPENDENT DAY CARE,11/08/2017,3028,456.00,SPECTRUM ACTIVE NOT FOR PROFIT,CT160879948,Training Centres,53330800
Sheffield City Council ,PLACE,12018724204,BUSINESS GROWTH ADVISORS,8440000,FEE EXPENSES,25/08/2017,3044,"3,364.20",LEVEL UP SOLUTIONS LTD,CT080112100,Business & Management Consultants,64613700
Sheffield City Council ,CORPORATE,11992088888,BALANCE SHEET,800001,AP MIGRATION CONTROL ACCOUNT,06/08/2017,3188,950.52,KINLOCH PAVING,CT073656640,Paving & Driveway Contractors,47500100
Sheffield City Council ,CORPORATE,11992088888,BALANCE SHEET,800001,AP MIGRATION CONTROL ACCOUNT,06/08/2017,3189,"7,824.60",KINLOCH PAVING,CT073656640,Paving & Driveway Contractors,47500100
Sheffield City Council ,PEOPLE,13002639284,IFA's UNDER 16,9270009,INDEPENDENT FOSTERING,25/08/2017,3191,"3,673.10",TEAM FOSTERING,CT240201880,Adoption & Fostering,35208200
Sheffield City Council ,PEOPLE,13001490865,TOTLEY PRIMARY PERM EXTN,1194000,OTHER FEES,31/08/2017,3223,"2,775.47",DARNTONB3 ARCHITECTURE,CT070104420,Architects,55847400
Sheffield City Council ,CORPORATE,11992088888,BALANCE SHEET,800001,AP MIGRATION CONTROL ACCOUNT,06/08/2017,3380,-165.56,QUEST 88 LIMITED,CT140750348,Medical Equipment Mnfrs,36060900
Sheffield City Council ,PEOPLE,13001490865,TOTLEY PRIMARY PERM EXTN,1194000,OTHER FEES,31/08/2017,3397,"3,741.62",DARNTONB3 ARCHITECTURE,CT070104420,Architects,55847400
Sheffield City Council ,PLACE,11850000000,RESPONSIVE REPAIRS,8530001,SUBCONTRACTOR GENERAL,29/08/2017,3491,"4,340.31",SBS ROOFING LTD,CT079965470,Roofing Services,62690400
Sheffield City Council ,CORPORATE,11992088888,BALANCE SHEET,800001,AP MIGRATION CONTROL ACCOUNT,06/08/2017,3509,322.15,J&J DECORATORS LTD,CT079955590,Painters & Decorators,63571200
Sheffield City Council ,PEOPLE,13007933018,100 APPRENTICES,9120000,OTHER AGENCIES,29/08/2017,3522,303.45,J&J DECORATORS LTD,CT079955590,Painters & Decorators,63571200
Sheffield City Council ,PLACE,11850000000,RESPONSIVE REPAIRS,8530001,SUBCONTRACTOR GENERAL,30/08/2017,3532,"4,968.60",SBS ROOFING LTD,CT079965470,Roofing Services,62690400
Sheffield City Council ,CORPORATE,11992088888,BALANCE SHEET,800001,AP MIGRATION CONTROL ACCOUNT,06/08/2017,"3,635","9,376.80",SOFA-UK LTD,CT022438895,Furniture - Wholesale,62012600
Sheffield City Council ,CORPORATE,11992088888,BALANCE SHEET,800001,AP MIGRATION CONTROL ACCOUNT,06/08/2017,"3,642","1,518.00",SOFA-UK LTD,CT022438895,Furniture - Wholesale,62012600
Sheffield City Council ,CORPORATE,11992088888,BALANCE SHEET,800001,AP MIGRATION CONTROL ACCOUNT,06/08/2017,"3,644","2,703.60",SOFA-UK LTD,CT022438895,Furniture - Wholesale,62012600
Sheffield City Council ,CORPORATE,11992088888,BALANCE SHEET,800001,AP MIGRATION CONTROL ACCOUNT,06/08/2017,"3,646","1,114.20",SOFA-UK LTD,CT022438895,Furniture - Wholesale,62012600
Sheffield City Council ,CORPORATE,11992088888,BALANCE SHEET,800001,AP MIGRATION CONTROL ACCOUNT,06/08/2017,3788,504.00,ANDERSON TREE CARE LTD,CT102180228,Tree Work & Forestry Services,31608400
Sheffield City Council ,CORPORATE,11992088888,BALANCE SHEET,800001,AP MIGRATION CONTROL ACCOUNT,06/08/2017,3806,"1,140.00",ZEST,CT230417020,Charities & Voluntary Organisations,49246700
Sheffield City Council ,CORPORATE,11992088888,BALANCE SHEET,800001,AP MIGRATION CONTROL ACCOUNT,06/08/2017,3807,960.00,ZEST,CT230417020,Charities & Voluntary Organisations,49246700
Sheffield City Council ,CORPORATE,11992088888,BALANCE SHEET,800001,AP MIGRATION CONTROL ACCOUNT,06/08/2017,3809,373.30,ZEST,CT230417020,Charities & Voluntary Organisations,49246700
Sheffield City Council ,CORPORATE,11992088888,BALANCE SHEET,800001,AP MIGRATION CONTROL ACCOUNT,06/08/2017,3817,667.50,ZEST,CT230417020,Charities & Voluntary Organisations,49246700
Sheffield City Council ,CORPORATE,11992088888,BALANCE SHEET,800001,AP MIGRATION CONTROL ACCOUNT,06/08/2017,3818,649.00,ZEST,CT230417020,Charities & Voluntary Organisations,49246700
Sheffield City Council ,CORPORATE,11992088888,BALANCE SHEET,800001,AP MIGRATION CONTROL ACCOUNT,06/08/2017,3821,665.50,ZEST,CT230417020,Charities & Voluntary Organisations,49246700
Sheffield City Council ,PEOPLE,13002639428,RESIDENTIAL UNDER 16's,9270008,INDEPENDENT RESIDENTIAL PMENT,11/08/2017,3830,"4,830.00",SIXTEEN PLUS LIMITED,CT010101266,Accommodation Agencies - Residential,64488300
Sheffield City Council ,PEOPLE,13002039406,FOSTERING NON-PLACEMENT LAC 1,9440002,LOOKED AFTER CHILDREN,25/08/2017,3831,483.99,SIXTEEN PLUS LIMITED,CT010101266,Accommodation Agencies - Residential,64488300
Sheffield City Council ,PEOPLE,13002639283,INDEPENDENT FOSTER PLACE 16+,9270009,INDEPENDENT FOSTERING,23/08/2017,3851,"3,662.34",SAFEHOUSES FOSTERING,CT240201880,Adoption & Fostering,43331800
Sheffield City Council ,PEOPLE,14009242034,PURCHASING LEARNING DISABILITI,9250002,INDEPENDENT DAY CARE,11/08/2017,3881,640.00,NEWFIELDS ENTERPRISE LIMITED,CT230324200,Day Centres,64600800
Sheffield City Council ,PEOPLE,14009242034,PURCHASING LEARNING DISABILITI,9250002,INDEPENDENT DAY CARE,11/08/2017,3882,640.00,NEWFIELDS ENTERPRISE LIMITED,CT230324200,Day Centres,64600800
Sheffield City Council ,PEOPLE,13002639428,RESIDENTIAL UNDER 16's,9270008,INDEPENDENT RESIDENTIAL PMENT,11/08/2017,3949,"2,160.00",SIXTEEN PLUS LIMITED,CT010101266,Accommodation Agencies - Residential,64488300
Sheffield City Council ,PEOPLE,13002639428,RESIDENTIAL UNDER 16's,9270008,INDEPENDENT RESIDENTIAL PMENT,11/08/2017,3950,"4,830.00",SIXTEEN PLUS LIMITED,CT010101266,Accommodation Agencies - Residential,64488300
Sheffield City Council ,PEOPLE,13002639405,SEMI INDEPENDENT LIVING,9270008,INDEPENDENT RESIDENTIAL PMENT,11/08/2017,3963,"2,520.00",SIXTEEN PLUS LIMITED,CT010101266,Accommodation Agencies - Residential,64488300
Sheffield City Council ,PEOPLE,13002639405,SEMI INDEPENDENT LIVING,9270008,INDEPENDENT RESIDENTIAL PMENT,11/08/2017,3965,"2,520.00",SIXTEEN PLUS LIMITED,CT010101266,Accommodation Agencies - Residential,64488300
Sheffield City Council ,PEOPLE,13002639428,RESIDENTIAL UNDER 16's,9270008,INDEPENDENT RESIDENTIAL PMENT,11/08/2017,3966,"5,880.00",SIXTEEN PLUS LIMITED,CT010101266,Accommodation Agencies - Residential,64488300
Sheffield City Council ,PEOPLE,13002639405,SEMI INDEPENDENT LIVING,9270008,INDEPENDENT RESIDENTIAL PMENT,16/08/2017,3981,"2,520.00",SIXTEEN PLUS LIMITED,CT010101266,Accommodation Agencies - Residential,64488300
Sheffield City Council ,PEOPLE,13002639405,SEMI INDEPENDENT LIVING,9270008,INDEPENDENT RESIDENTIAL PMENT,14/08/2017,3983,"1,800.00",SIXTEEN PLUS LIMITED,CT010101266,Accommodation Agencies - Residential,64488300
Sheffield City Council ,PEOPLE,13002639428,RESIDENTIAL UNDER 16's,9270008,INDEPENDENT RESIDENTIAL PMENT,16/08/2017,3984,"5,880.00",SIXTEEN PLUS LIMITED,CT010101266,Accommodation Agencies - Residential,64488300
Sheffield City Council ,PEOPLE,13002639405,SEMI INDEPENDENT LIVING,9270008,INDEPENDENT RESIDENTIAL PMENT,23/08/2017,4056,"2,520.00",SIXTEEN PLUS LIMITED,CT010101266,Accommodation Agencies - Residential,64488300
Sheffield City Council ,PEOPLE,13002639428,RESIDENTIAL UNDER 16's,9270008,INDEPENDENT RESIDENTIAL PMENT,23/08/2017,4059,"5,880.00",SIXTEEN PLUS LIMITED,CT010101266,Accommodation Agencies - Residential,64488300
Sheffield City Council ,CORPORATE,11992088888,BALANCE SHEET,800001,AP MIGRATION CONTROL ACCOUNT,06/08/2017,4063,-720.00,FOXWOOD DIESEL,CT261931580,Engine Rebuilding & Reconditioning,44717400
Sheffield City Council ,PEOPLE,13002639428,RESIDENTIAL UNDER 16's,9270008,INDEPENDENT RESIDENTIAL PMENT,11/08/2017,4118,"1,410.00",SIXTEEN PLUS LIMITED,CT010101266,Accommodation Agencies - Residential,64488300
Sheffield City Council ,PEOPLE,13002639405,SEMI INDEPENDENT LIVING,9270008,INDEPENDENT RESIDENTIAL PMENT,30/08/2017,4131,"2,520.00",SIXTEEN PLUS LIMITED,CT010101266,Accommodation Agencies - Residential,64488300
Sheffield City Council ,PEOPLE,13002639428,RESIDENTIAL UNDER 16's,9270008,INDEPENDENT RESIDENTIAL PMENT,30/08/2017,4134,"5,880.00",SIXTEEN PLUS LIMITED,CT010101266,Accommodation Agencies - Residential,64488300
Sheffield City Council ,CORPORATE,11992088888,BALANCE SHEET,800001,AP MIGRATION CONTROL ACCOUNT,06/08/2017,4262,"1,178.40",RECYCLING REVOLUTION,CT101658996,Recycling Services,48949600
Sheffield City Council ,PLACE,12046394108,SITE GALLERY IMPROVMENTS,1161000,NC&A MAIN CONTRACT,25/08/2017,4395,"100,000.00",SITE GALLERY (MAP) LTD,CT209938931,Galleries,20847900
Sheffield City Council ,PEOPLE,14009242034,PURCHASING LEARNING DISABILITI,9190003,CITYWIDE SPOT,11/08/2017,4587,360.00,UNDER THE STARS,CT230625820,Disability & Special Needs - Services,56876100
Sheffield City Council ,PEOPLE,14009242034,PURCHASING LEARNING DISABILITI,9190003,CITYWIDE SPOT,11/08/2017,4598,360.00,UNDER THE STARS,CT230625820,Disability & Special Needs - Services,56876100
Sheffield City Council ,PEOPLE,13002639284,IFA's UNDER 16,9270009,INDEPENDENT FOSTERING,23/08/2017,4713,"4,862.57",FUSION FOSTERING LIMITED,CT240201880,Adoption & Fostering,63443200
Sheffield City Council ,PEOPLE,13002639143,CWD INDEPENDENT PLACEMENTS,9270008,INDEPENDENT RESIDENTIAL PMENT,11/08/2017,4911,"8,935.36",HEATHCOTES CB LLP NORTON HOUSE,CT230164710,Residential Care Homes,62025400
Sheffield City Council ,CORPORATE,11992088888,BALANCE SHEET,800001,AP MIGRATION CONTROL ACCOUNT,06/08/2017,4913,532.20,LANGUAGELINE SOLUTIONS,CT160480090,Translators & Interpreters,20634800
Sheffield City Council ,PLACE,11513300000,WORKSHOPS,7040000,OTHER VEHICLE RUNNING COSTS,15/08/2017,4949,560.00,SHEFFIELD VAN HIRE LTD,CT261082050,Van & Truck Hire,63244000
Sheffield City Council ,PLACE,11513300000,WORKSHOPS,7040000,OTHER VEHICLE RUNNING COSTS,15/08/2017,4965,546.28,SHEFFIELD VAN HIRE LTD,CT261082050,Van & Truck Hire,63244000
Sheffield City Council ,PEOPLE,13002639428,RESIDENTIAL UNDER 16's,9270008,INDEPENDENT RESIDENTIAL PMENT,24/08/2017,5036,"13,538.14",MEADOWS CARE LTD,CT249917780,Children's Homes,62338000
Sheffield City Council ,PEOPLE,13002639143,CWD INDEPENDENT PLACEMENTS,9270008,INDEPENDENT RESIDENTIAL PMENT,11/08/2017,5181,"8,935.36",HEATHCOTES CB LLP NORTON HOUSE,CT230164710,Residential Care Homes,62025400
Sheffield City Council ,PEOPLE,13002639428,RESIDENTIAL UNDER 16's,9270008,INDEPENDENT RESIDENTIAL PMENT,30/08/2017,5271,"11,280.00",TWENTY FOUR SEVEN,CT230417020,Charities & Voluntary Organisations,36440800
Sheffield City Council ,PEOPLE,14009242034,PURCHASING LEARNING DISABILITI,9250002,INDEPENDENT DAY CARE,11/08/2017,5272,720.00,WORK LTD,CT160979980,Training Services,35008900
Sheffield City Council ,PEOPLE,13002639405,SEMI INDEPENDENT LIVING,9270008,INDEPENDENT RESIDENTIAL PMENT,30/08/2017,5292,"2,387.68",TWENTY FOUR SEVEN,CT230417020,Charities & Voluntary Organisations,36440800
Sheffield City Council ,PEOPLE,13002539147,PREVENTION & SUPPORT - CDT,8490003,TRANSLATN/SIGN/INTERPRET FEES,11/08/2017,5525,865.30,LANGUAGELINE SOLUTIONS,CT160480090,Translators & Interpreters,47191500
Sheffield City Council ,PEOPLE,13002239084,NORTH SA - CIN S17,8490003,TRANSLATN/SIGN/INTERPRET FEES,14/08/2017,5540,868.50,LANGUAGELINE SOLUTIONS,CT160480090,Translators & Interpreters,47191500
Sheffield City Council ,PEOPLE,14009242034,PURCHASING LEARNING DISABILITI,9190003,CITYWIDE SPOT,11/08/2017,5645,"1,000.00",ABBEYCARE & NURSING,CT230243419,Home Care Services,51841100
Sheffield City Council ,PEOPLE,14009346039,ADULT SOCIAL CARE PURCHASING,9190003,CITYWIDE SPOT,11/08/2017,5652,712.00,ABBEYCARE & NURSING,CT230243419,Home Care Services,51841100
Sheffield City Council ,PEOPLE,14009242034,PURCHASING LEARNING DISABILITI,9190007,FUNDED HOME SUPPORT,11/08/2017,5653,436.00,ABBEYCARE & NURSING,CT230243419,Home Care Services,51841100
Sheffield City Council ,PEOPLE,14009346039,ADULT SOCIAL CARE PURCHASING,9190003,CITYWIDE SPOT,14/08/2017,5676,712.00,ABBEYCARE & NURSING,CT230243419,Home Care Services,51841100
Sheffield City Council ,PLACE,14058149006,SYRIAN VPR YH PARTNERS SCHEME,8490000,OTHER PROFESSIONAL FEES,31/08/2017,5677,"1,298.50",LANGUAGELINE SOLUTIONS,CT160480090,Translators & Interpreters,20634800
Sheffield City Council ,PLACE,11853000000,CSSR CORE CONTRACT,8440000,FEE EXPENSES,31/08/2017,5685,637.91,MAYSAND LTD,CT070611371,Building Refurbishment & Restoration Con,54076700
Sheffield City Council ,PEOPLE,14009242034,PURCHASING LEARNING DISABILITI,9250002,INDEPENDENT DAY CARE,11/08/2017,5736,540.00,WORK LTD,CT160979980,Training Services,35008900
Sheffield City Council ,PEOPLE,14009242034,PURCHASING LEARNING DISABILITI,9250002,INDEPENDENT DAY CARE,11/08/2017,5745,360.00,WORK LTD,CT160979980,Training Services,35008900
Sheffield City Council ,PEOPLE,14009242034,PURCHASING LEARNING DISABILITI,9250002,INDEPENDENT DAY CARE,11/08/2017,5750,360.00,WORK LTD,CT160979980,Training Services,35008900
Sheffield City Council ,PEOPLE,14009242034,PURCHASING LEARNING DISABILITI,9250002,INDEPENDENT DAY CARE,11/08/2017,5766,"1,575.16",WORK LTD,CT160979980,Training Services,35008900
Sheffield City Council ,PEOPLE,14009242034,PURCHASING LEARNING DISABILITI,9250002,INDEPENDENT DAY CARE,16/08/2017,5781,282.00,WORK LTD,CT160979980,Training Services,35008900
Sheffield City Council ,PEOPLE,14009242034,PURCHASING LEARNING DISABILITI,9250002,INDEPENDENT DAY CARE,16/08/2017,5798,"1,300.00",WORK LTD,CT160979980,Training Services,35008900
Sheffield City Council ,PEOPLE,14009242034,PURCHASING LEARNING DISABILITI,9250002,INDEPENDENT DAY CARE,16/08/2017,5809,540.00,WORK LTD,CT160979980,Training Services,35008900
Sheffield City Council ,PEOPLE,14009242034,PURCHASING LEARNING DISABILITI,9250002,INDEPENDENT DAY CARE,16/08/2017,5818,360.00,WORK LTD,CT160979980,Training Services,35008900
Sheffield City Council ,PEOPLE,14009242034,PURCHASING LEARNING DISABILITI,9250002,INDEPENDENT DAY CARE,16/08/2017,5823,360.00,WORK LTD,CT160979980,Training Services,35008900
Sheffield City Council ,PEOPLE,14009242034,PURCHASING LEARNING DISABILITI,9250002,INDEPENDENT DAY CARE,16/08/2017,5825,720.00,WORK LTD,CT160979980,Training Services,35008900
SCR Combined Authority,LOCAL ENTERPRISE PARTNERSHIP,33074830103,GROWTH HUB,8440000,FEE EXPENSES,30/08/2017,6105,"2,078.69",BLOOM PROCUREMENT SERVICES LTD,CT080112100,Business & Management Consultants,59884700
SCR Combined Authority,LOCAL ENTERPRISE PARTNERSHIP,33074830103,GROWTH HUB,8440000,FEE EXPENSES,30/08/2017,6106,"2,690.43",BLOOM PROCUREMENT SERVICES LTD,CT080112100,Business & Management Consultants,59884700
SCR Combined Authority,LOCAL ENTERPRISE PARTNERSHIP,33074830122,ACCESS TO FINANCE,8440000,FEE EXPENSES,30/08/2017,6109,"4,646.09",BLOOM PROCUREMENT SERVICES LTD,CT080112100,Business & Management Consultants,59884700
Sheffield City Council ,PEOPLE,13001490810,DOBCROFT JNR EXPANSION,1148000,SURVEY COSTS,18/08/2017,6114,900.00,1ST LINE DEFENCE LIMITED,CT079932980,Excavation & Groundwork Contractors,62280900
Sheffield City Council ,CORPORATE,11992088888,BALANCE SHEET,800001,AP MIGRATION CONTROL ACCOUNT,06/08/2017,6526,"2,400.00",AFTER ADOPTION,CT240201880,Adoption & Fostering,48214300
Sheffield City Council ,CORPORATE,11992088888,BALANCE SHEET,800001,AP MIGRATION CONTROL ACCOUNT,06/08/2017,6533,"2,400.00",AFTER ADOPTION,CT240201880,Adoption & Fostering,48214300
Sheffield City Council ,PEOPLE,14009242034,PURCHASING LEARNING DISABILITI,9250002,INDEPENDENT DAY CARE,22/08/2017,6824,768.00,SHEFFIELD MENCAP,CT240671855,Social Services,43158200
Sheffield City Council ,PEOPLE,14009242034,PURCHASING LEARNING DISABILITI,9250002,INDEPENDENT DAY CARE,22/08/2017,6826,384.00,SHEFFIELD MENCAP,CT240671855,Social Services,43158200
Sheffield City Council ,PEOPLE,14009242034,PURCHASING LEARNING DISABILITI,9250002,INDEPENDENT DAY CARE,22/08/2017,6828,384.00,SHEFFIELD MENCAP,CT240671855,Social Services,43158200
Sheffield City Council ,CORPORATE,11992088888,BALANCE SHEET,800001,AP MIGRATION CONTROL ACCOUNT,06/08/2017,7019,"1,860.00",NORFOLK PARK CATERING LTD,CT030216040,Caterers,29709800
SCR Combined Authority,TRANSPORT AUTHORITY,33070088888,BALANCE SHEET,800001,AP MIGRATION CONTROL ACCOUNT,06/08/2017,7043,"1,170.00",RCU LTD,CT060349840,Market Research,64740300
Sheffield City Council ,PEOPLE,14009242034,PURCHASING LEARNING DISABILITI,1780000,ERROR SUSPENSE - CAREFIRST,24/08/2017,7103,"14,997.06",DOVE ADOLESCENT SERVICES,CT249917780,Children's Homes,32887700
Sheffield City Council ,PEOPLE,14009242034,PURCHASING LEARNING DISABILITI,1780000,ERROR SUSPENSE - CAREFIRST,23/08/2017,7104,"1,034.28",DOVE ADOLESCENT SERVICES,CT249917780,Children's Homes,32887700
Sheffield City Council ,CORPORATE,11992088888,BALANCE SHEET,800001,AP MIGRATION CONTROL ACCOUNT,06/08/2017,7111,"-2,754.00",INFRAMATION LTD,CT120935240,Financial Services,38502900
Sheffield City Council ,CORPORATE,11992088888,BALANCE SHEET,800001,AP MIGRATION CONTROL ACCOUNT,06/08/2017,7112,"2,274.00",INFRAMATION LTD,CT120935240,Financial Services,38502900
Sheffield City Council ,PEOPLE,14009242034,PURCHASING LEARNING DISABILITI,9250002,INDEPENDENT DAY CARE,11/08/2017,7216,768.00,SHEFFIELD MENCAP,CT240671855,Social Services,43158200
Sheffield City Council ,PEOPLE,14009242034,PURCHASING LEARNING DISABILITI,9250002,INDEPENDENT DAY CARE,11/08/2017,7217,576.00,SHEFFIELD MENCAP,CT240671855,Social Services,43158200
Sheffield City Council ,PEOPLE,14009242034,PURCHASING LEARNING DISABILITI,9250002,INDEPENDENT DAY CARE,11/08/2017,7221,384.00,SHEFFIELD MENCAP,CT240671855,Social Services,43158200
Sheffield City Council ,PEOPLE,14009242034,PURCHASING LEARNING DISABILITI,9250002,INDEPENDENT DAY CARE,11/08/2017,7224,384.00,SHEFFIELD MENCAP,CT240671855,Social Services,43158200
Sheffield City Council ,PEOPLE,14009242034,PURCHASING LEARNING DISABILITI,9250002,INDEPENDENT DAY CARE,22/08/2017,7229,384.00,SHEFFIELD MENCAP,CT240671855,Social Services,43158200
Sheffield City Council ,PEOPLE,14009242034,PURCHASING LEARNING DISABILITI,9250002,INDEPENDENT DAY CARE,11/08/2017,7231,484.00,SHEFFIELD MENCAP,CT240671855,Social Services,43158200
Sheffield City Council ,PEOPLE,14009242034,PURCHASING LEARNING DISABILITI,9250002,INDEPENDENT DAY CARE,23/08/2017,7233,440.00,SHEFFIELD MENCAP,CT240671855,Social Services,43158200
Sheffield City Council ,PEOPLE,14009242034,PURCHASING LEARNING DISABILITI,9250002,INDEPENDENT DAY CARE,11/08/2017,7235,768.00,SHEFFIELD MENCAP,CT240671855,Social Services,43158200
Sheffield City Council ,PEOPLE,14009242034,PURCHASING LEARNING DISABILITI,9250002,INDEPENDENT DAY CARE,11/08/2017,7238,384.00,SHEFFIELD MENCAP,CT240671855,Social Services,43158200
Sheffield City Council ,PEOPLE,14009242034,PURCHASING LEARNING DISABILITI,9250002,INDEPENDENT DAY CARE,11/08/2017,7239,384.00,SHEFFIELD MENCAP,CT240671855,Social Services,43158200
Sheffield City Council ,PEOPLE,14009242034,PURCHASING LEARNING DISABILITI,9250002,INDEPENDENT DAY CARE,23/08/2017,7240,720.00,SHEFFIELD MENCAP,CT240671855,Social Services,43158200
Sheffield City Council ,PEOPLE,14009242034,PURCHASING LEARNING DISABILITI,9250002,INDEPENDENT DAY CARE,11/08/2017,7242,384.00,SHEFFIELD MENCAP,CT240671855,Social Services,43158200
Sheffield City Council ,PEOPLE,14009242034,PURCHASING LEARNING DISABILITI,9250002,INDEPENDENT DAY CARE,23/08/2017,7283,400.00,SHEFFIELD MENCAP,CT240671855,Social Services,43158200
Sheffield City Council ,PLACE,14065397147,ADAPTATIONS,1157000,DWELLINGS MAIN CONTRACT,28/08/2017,7294,"14,027.63",DENTON & NICKELS LTD,CT079916710,Central Heating - Installation & Servici,59608700
Sheffield City Council ,PEOPLE,13002639143,CWD INDEPENDENT PLACEMENTS,9270009,INDEPENDENT FOSTERING,16/08/2017,7370,"4,264.12",TREEHOUSE CARE FOSTERING SOLUTIONS LTD,CT240201880,Adoption & Fostering,45249900
Sheffield City Council ,PLACE,11850000000,RESPONSIVE REPAIRS,8530001,SUBCONTRACTOR GENERAL,31/08/2017,7377,"12,563.77",DIO-MET FABRICATIONS LTD,CT079915447,Architectural Ironmongers,39311900
Sheffield City Council ,PEOPLE,13002639143,CWD INDEPENDENT PLACEMENTS,9270009,INDEPENDENT FOSTERING,23/08/2017,7424,"1,066.03",TREEHOUSE CARE FOSTERING SOLUTIONS LTD,CT240201880,Adoption & Fostering,45249900
Sheffield City Council ,PEOPLE,13002639284,IFA's UNDER 16,9270009,INDEPENDENT FOSTERING,14/08/2017,7428,"3,094.42",COMPASS FOSTERING NORTH LTD,CT240201880,Adoption & Fostering,56297400
Sheffield City Council ,PEOPLE,13002639284,IFA's UNDER 16,9270009,INDEPENDENT FOSTERING,14/08/2017,7434,"4,419.67",COMPASS FOSTERING NORTH LTD,CT240201880,Adoption & Fostering,56297400
Sheffield City Council ,PEOPLE,13002639284,IFA's UNDER 16,9270009,INDEPENDENT FOSTERING,14/08/2017,7435,"3,472.62",COMPASS FOSTERING NORTH LTD,CT240201880,Adoption & Fostering,56297400
Sheffield City Council ,PEOPLE,14009242034,PURCHASING LEARNING DISABILITI,1780000,ERROR SUSPENSE - CAREFIRST,11/08/2017,7468,"5,250.00",HORIZON CARE AND EDUCATION GROUP LTD,CT240517580,Childcare Services,62385700
Sheffield City Council ,PEOPLE,13002639284,IFA's UNDER 16,9270009,INDEPENDENT FOSTERING,14/08/2017,7713,"2,994.60",COMPASS FOSTERING NORTH LTD,CT240201880,Adoption & Fostering,56297400
Sheffield City Council ,PEOPLE,13002639284,IFA's UNDER 16,9270009,INDEPENDENT FOSTERING,14/08/2017,7719,"4,277.10",COMPASS FOSTERING NORTH LTD,CT240201880,Adoption & Fostering,56297400
Sheffield City Council ,PEOPLE,13002639284,IFA's UNDER 16,9270009,INDEPENDENT FOSTERING,14/08/2017,7720,"3,360.60",COMPASS FOSTERING NORTH LTD,CT240201880,Adoption & Fostering,56297400
Sheffield City Council ,PLACE,12018090804,WOODSEATS HUB,1183000,PURCHASE OF EQUIPMENT,23/08/2017,7742,"6,607.90",THE PYRAMID LINOLEUM AND CARPET CO LTD,CT022115410,Carpets & Rugs - Retail,20897500
Sheffield City Council ,PEOPLE,13002639284,IFA's UNDER 16,9270009,INDEPENDENT FOSTERING,14/08/2017,7843,377.43,COMPASS FOSTERING NORTH LTD,CT240201880,Adoption & Fostering,56297400
Sheffield City Council ,CORPORATE,11992088888,BALANCE SHEET,800001,AP MIGRATION CONTROL ACCOUNT,06/08/2017,7886,918.00,ASSOCIATION OF EDUCATIONAL PSYCHOLOGISTS,CT240671855,Social Services,32726100
Sheffield City Council ,CORPORATE,11992088888,BALANCE SHEET,800001,AP MIGRATION CONTROL ACCOUNT,06/08/2017,8008,"3,434.93",POWERPOINT LTD,CT079930580,Electricians & Electrical Contractors,64466300
Sheffield City Council ,PEOPLE,13002639284,IFA's UNDER 16,9270009,INDEPENDENT FOSTERING,24/08/2017,8010,"3,263.99",COMPASS FOSTERING NORTH LTD,CT240201880,Adoption & Fostering,56297400
Sheffield City Council ,PEOPLE,13002639284,IFA's UNDER 16,9270009,INDEPENDENT FOSTERING,23/08/2017,8011,"3,097.52",COMPASS FOSTERING NORTH LTD,CT240201880,Adoption & Fostering,56297400
Sheffield City Council ,PEOPLE,13002639284,IFA's UNDER 16,9270009,INDEPENDENT FOSTERING,23/08/2017,8012,"3,001.73",COMPASS FOSTERING NORTH LTD,CT240201880,Adoption & Fostering,56297400
Sheffield City Council ,PEOPLE,13002639284,IFA's UNDER 16,9270009,INDEPENDENT FOSTERING,23/08/2017,8013,"2,574.55",COMPASS FOSTERING NORTH LTD,CT240201880,Adoption & Fostering,56297400
Sheffield City Council ,PEOPLE,13002639284,IFA's UNDER 16,9270009,INDEPENDENT FOSTERING,23/08/2017,8014,"2,657.01",COMPASS FOSTERING NORTH LTD,CT240201880,Adoption & Fostering,56297400
Sheffield City Council ,PEOPLE,13002639283,INDEPENDENT FOSTER PLACE 16+,9270009,INDEPENDENT FOSTERING,23/08/2017,8015,"3,472.62",COMPASS FOSTERING NORTH LTD,CT240201880,Adoption & Fostering,56297400
Sheffield City Council ,PEOPLE,13002639284,IFA's UNDER 16,9270009,INDEPENDENT FOSTERING,24/08/2017,8016,"4,419.67",COMPASS FOSTERING NORTH LTD,CT240201880,Adoption & Fostering,56297400
Sheffield City Council ,PEOPLE,13002639284,IFA's UNDER 16,9270009,INDEPENDENT FOSTERING,24/08/2017,8017,"3,472.62",COMPASS FOSTERING NORTH LTD,CT240201880,Adoption & Fostering,56297400
Sheffield City Council ,CORPORATE,11992088888,BALANCE SHEET,800001,AP MIGRATION CONTROL ACCOUNT,06/08/2017,8549,920.55,DEARNESIDE FABRICATIONS LTD,CT079973510,Steel Fabricators & Erectors,46194700
Sheffield City Council ,PEOPLE,14009242034,PURCHASING LEARNING DISABILITI,1780000,ERROR SUSPENSE - CAREFIRST,11/08/2017,8556,-150.00,HORIZON CARE AND EDUCATION GROUP LTD,CT240517580,Childcare Services,62385700
Sheffield City Council ,PLACE,11850000000,RESPONSIVE REPAIRS,8060000,MATERIALS AND SUPPLIES GENERAL,30/08/2017,8659,"2,145.00",F. BAMFORD (ENGINEERING) LTD,CT079927253,Door Manufacturers - Industrial,61683800
Sheffield City Council ,PLACE,11850000000,RESPONSIVE REPAIRS,8060000,MATERIALS AND SUPPLIES GENERAL,30/08/2017,8660,"1,825.00",F. BAMFORD (ENGINEERING) LTD,CT079927253,Door Manufacturers - Industrial,61683800
Sheffield City Council ,PEOPLE,13009838188,YOUTH SERVICE,9120000,OTHER AGENCIES,22/08/2017,8662,"226,219.00",SHEFFIELD FUTURES,CT140222570,Counselling & Advice Services,32270200
Sheffield City Council ,PEOPLE,13009838188,YOUTH SERVICE,9120000,OTHER AGENCIES,28/08/2017,8663,"1,355.00",SHEFFIELD FUTURES,CT140222570,Counselling & Advice Services,32270200
Sheffield City Council ,PEOPLE,13009838188,YOUTH SERVICE,9120000,OTHER AGENCIES,28/08/2017,8664,"2,055.00",SHEFFIELD FUTURES,CT140222570,Counselling & Advice Services,32270200
Sheffield City Council ,PLACE,11853000000,CSSR CORE CONTRACT,8440000,FEE EXPENSES,30/08/2017,8712,"23,898.00",GBH UTILITIES LTD,CT079939600,Gas Installers,58802200
Sheffield City Council ,PEOPLE,13002239084,NORTH SA - CIN S17,8490003,TRANSLATN/SIGN/INTERPRET FEES,11/08/2017,8764,-5.00,LANGUAGELINE SOLUTIONS,CT160480090,Translators & Interpreters,47191500
Sheffield City Council ,CORPORATE,11992088888,BALANCE SHEET,800001,AP MIGRATION CONTROL ACCOUNT,06/08/2017,8795,-169.20,HEALTH MANAGEMENT LTD,CT141011584,Occupational Health,53135900
Sheffield City Council ,PEOPLE,13002639405,SEMI INDEPENDENT LIVING,9270008,INDEPENDENT RESIDENTIAL PMENT,30/08/2017,8918,"3,800.00",HUTTON CARE PARTNERSHIP LTD,CT249969970,Sheltered Housing,42280900
Sheffield City Council ,PEOPLE,13002639405,SEMI INDEPENDENT LIVING,9270008,INDEPENDENT RESIDENTIAL PMENT,30/08/2017,8919,"3,800.00",HUTTON CARE PARTNERSHIP LTD,CT249969970,Sheltered Housing,42280900
Sheffield City Council ,PEOPLE,13002639405,SEMI INDEPENDENT LIVING,9270008,INDEPENDENT RESIDENTIAL PMENT,30/08/2017,8920,"3,800.00",HUTTON CARE PARTNERSHIP LTD,CT249969970,Sheltered Housing,42280900
Sheffield City Council ,PEOPLE,13002639405,SEMI INDEPENDENT LIVING,9270008,INDEPENDENT RESIDENTIAL PMENT,30/08/2017,8921,"3,800.00",HUTTON CARE PARTNERSHIP LTD,CT249969970,Sheltered Housing,42280900
Sheffield City Council ,PEOPLE,14009242034,PURCHASING LEARNING DISABILITI,9250002,INDEPENDENT DAY CARE,11/08/2017,9170,440.00,ENABLE (SHEFFIELD),CT230417020,Charities & Voluntary Organisations,32934600
Sheffield City Council ,PEOPLE,14009242034,PURCHASING LEARNING DISABILITI,9250002,INDEPENDENT DAY CARE,11/08/2017,9171,360.00,ENABLE (SHEFFIELD),CT230417020,Charities & Voluntary Organisations,32934600
Sheffield City Council ,PEOPLE,14009242034,PURCHASING LEARNING DISABILITI,9250002,INDEPENDENT DAY CARE,11/08/2017,9172,280.00,ENABLE (SHEFFIELD),CT230417020,Charities & Voluntary Organisations,32934600
Sheffield City Council ,PEOPLE,14009242034,PURCHASING LEARNING DISABILITI,9250002,INDEPENDENT DAY CARE,11/08/2017,9173,400.00,ENABLE (SHEFFIELD),CT230417020,Charities & Voluntary Organisations,32934600
Sheffield City Council ,PEOPLE,14009242034,PURCHASING LEARNING DISABILITI,9250002,INDEPENDENT DAY CARE,11/08/2017,9174,280.00,ENABLE (SHEFFIELD),CT230417020,Charities & Voluntary Organisations,32934600
Sheffield City Council ,PEOPLE,14009242034,PURCHASING LEARNING DISABILITI,9250002,INDEPENDENT DAY CARE,11/08/2017,9176,680.00,ENABLE (SHEFFIELD),CT230417020,Charities & Voluntary Organisations,32934600
Sheffield City Council ,PEOPLE,14009242034,PURCHASING LEARNING DISABILITI,9250002,INDEPENDENT DAY CARE,11/08/2017,9177,400.00,ENABLE (SHEFFIELD),CT230417020,Charities & Voluntary Organisations,32934600
Sheffield City Council ,PEOPLE,14009242034,PURCHASING LEARNING DISABILITI,9250002,INDEPENDENT DAY CARE,11/08/2017,9178,560.00,ENABLE (SHEFFIELD),CT230417020,Charities & Voluntary Organisations,32934600
Sheffield City Council ,PEOPLE,14009242034,PURCHASING LEARNING DISABILITI,9250002,INDEPENDENT DAY CARE,11/08/2017,9181,400.00,ENABLE (SHEFFIELD),CT230417020,Charities & Voluntary Organisations,32934600
Sheffield City Council ,PEOPLE,14009242034,PURCHASING LEARNING DISABILITI,9250002,INDEPENDENT DAY CARE,11/08/2017,9183,480.00,ENABLE (SHEFFIELD),CT230417020,Charities & Voluntary Organisations,32934600
Sheffield City Council ,PEOPLE,14009242034,PURCHASING LEARNING DISABILITI,9250002,INDEPENDENT DAY CARE,11/08/2017,9185,280.00,ENABLE (SHEFFIELD),CT230417020,Charities & Voluntary Organisations,32934600
Sheffield City Council ,PEOPLE,14009242034,PURCHASING LEARNING DISABILITI,9250002,INDEPENDENT DAY CARE,11/08/2017,9186,320.00,ENABLE (SHEFFIELD),CT230417020,Charities & Voluntary Organisations,32934600
Sheffield City Council ,PEOPLE,14009242034,PURCHASING LEARNING DISABILITI,9250002,INDEPENDENT DAY CARE,11/08/2017,9187,320.00,ENABLE (SHEFFIELD),CT230417020,Charities & Voluntary Organisations,32934600
Sheffield City Council ,PEOPLE,14009242034,PURCHASING LEARNING DISABILITI,9250002,INDEPENDENT DAY CARE,11/08/2017,9188,440.00,ENABLE (SHEFFIELD),CT230417020,Charities & Voluntary Organisations,32934600
Sheffield City Council ,PEOPLE,14009242034,PURCHASING LEARNING DISABILITI,9250002,INDEPENDENT DAY CARE,11/08/2017,9189,360.00,ENABLE (SHEFFIELD),CT230417020,Charities & Voluntary Organisations,32934600
Sheffield City Council ,PEOPLE,14009242034,PURCHASING LEARNING DISABILITI,9250002,INDEPENDENT DAY CARE,11/08/2017,9191,280.00,ENABLE (SHEFFIELD),CT230417020,Charities & Voluntary Organisations,32934600
Sheffield City Council ,PEOPLE,14009242034,PURCHASING LEARNING DISABILITI,9250002,INDEPENDENT DAY CARE,11/08/2017,9193,400.00,ENABLE (SHEFFIELD),CT230417020,Charities & Voluntary Organisations,32934600
Sheffield City Council ,PEOPLE,14009242034,PURCHASING LEARNING DISABILITI,9250002,INDEPENDENT DAY CARE,11/08/2017,9194,680.00,ENABLE (SHEFFIELD),CT230417020,Charities & Voluntary Organisations,32934600
Sheffield City Council ,PEOPLE,14009242034,PURCHASING LEARNING DISABILITI,9250002,INDEPENDENT DAY CARE,11/08/2017,9195,360.00,ENABLE (SHEFFIELD),CT230417020,Charities & Voluntary Organisations,32934600
Sheffield City Council ,PEOPLE,14009242034,PURCHASING LEARNING DISABILITI,9250002,INDEPENDENT DAY CARE,11/08/2017,9196,400.00,ENABLE (SHEFFIELD),CT230417020,Charities & Voluntary Organisations,32934600
Sheffield City Council ,PEOPLE,14009242034,PURCHASING LEARNING DISABILITI,9250002,INDEPENDENT DAY CARE,11/08/2017,9197,400.00,ENABLE (SHEFFIELD),CT230417020,Charities & Voluntary Organisations,32934600
Sheffield City Council ,PEOPLE,14009242034,PURCHASING LEARNING DISABILITI,9250002,INDEPENDENT DAY CARE,11/08/2017,9198,320.00,ENABLE (SHEFFIELD),CT230417020,Charities & Voluntary Organisations,32934600
Sheffield City Council ,PEOPLE,14009242034,PURCHASING LEARNING DISABILITI,9250002,INDEPENDENT DAY CARE,11/08/2017,9202,400.00,ENABLE (SHEFFIELD),CT230417020,Charities & Voluntary Organisations,32934600
Sheffield City Council ,PEOPLE,14009242034,PURCHASING LEARNING DISABILITI,9250002,INDEPENDENT DAY CARE,11/08/2017,9255,"1,434.80",AUTISM EAST MIDLANDS,CT230417020,Charities & Voluntary Organisations,36834300
Sheffield City Council ,PEOPLE,14009242034,PURCHASING LEARNING DISABILITI,9230006,CCSP TRANSPORT,11/08/2017,9260,520.20,AUTISM EAST MIDLANDS,CT230417020,Charities & Voluntary Organisations,36834300
Sheffield City Council ,PEOPLE,14009242034,PURCHASING LEARNING DISABILITI,9250002,INDEPENDENT DAY CARE,11/08/2017,9260,"1,812.40",AUTISM EAST MIDLANDS,CT230417020,Charities & Voluntary Organisations,36834300
Sheffield City Council ,PEOPLE,14009242034,PURCHASING LEARNING DISABILITI,9230006,CCSP TRANSPORT,31/08/2017,9469,520.20,AUTISM EAST MIDLANDS,CT230417020,Charities & Voluntary Organisations,36834300
Sheffield City Council ,PEOPLE,14009242034,PURCHASING LEARNING DISABILITI,9250002,INDEPENDENT DAY CARE,31/08/2017,9469,"1,812.40",AUTISM EAST MIDLANDS,CT230417020,Charities & Voluntary Organisations,36834300
Sheffield City Council ,PEOPLE,14009346039,ADULT SOCIAL CARE PURCHASING,9190003,CITYWIDE SPOT,11/08/2017,9486,453.36,ONE TO ONE SUPPORT SERVICES LTD,CT230243419,Home Care Services,51815900
Sheffield City Council ,PEOPLE,14009242034,PURCHASING LEARNING DISABILITI,9190007,FUNDED HOME SUPPORT,11/08/2017,9506,"1,701.96",ONE TO ONE SUPPORT SERVICES LTD,CT230243419,Home Care Services,51815900
Sheffield City Council ,PEOPLE,14009242034,PURCHASING LEARNING DISABILITI,9190003,CITYWIDE SPOT,11/08/2017,9506,"6,442.52",ONE TO ONE SUPPORT SERVICES LTD,CT230243419,Home Care Services,51815900
Sheffield City Council ,PEOPLE,14009242034,PURCHASING LEARNING DISABILITI,9190007,FUNDED HOME SUPPORT,11/08/2017,9507,"1,701.96",ONE TO ONE SUPPORT SERVICES LTD,CT230243419,Home Care Services,51815900
Sheffield City Council ,PEOPLE,14009242034,PURCHASING LEARNING DISABILITI,9190003,CITYWIDE SPOT,11/08/2017,9507,"6,442.52",ONE TO ONE SUPPORT SERVICES LTD,CT230243419,Home Care Services,51815900
Sheffield City Council ,PLACE,11513300000,WORKSHOPS,7040000,OTHER VEHICLE RUNNING COSTS,15/08/2017,9574,289.00,GPG 2000 LTD,CT261913330,Car Body Repairs,41622500
Sheffield City Council ,PEOPLE,14009242034,PURCHASING LEARNING DISABILITI,9190007,FUNDED HOME SUPPORT,31/08/2017,9629,"1,701.97",ONE TO ONE SUPPORT SERVICES LTD,CT230243419,Home Care Services,51815900
Sheffield City Council ,PEOPLE,14009242034,PURCHASING LEARNING DISABILITI,9190003,CITYWIDE SPOT,31/08/2017,9629,"6,442.52",ONE TO ONE SUPPORT SERVICES LTD,CT230243419,Home Care Services,51815900
Sheffield City Council ,PLACE,11513300000,WORKSHOPS,7040000,OTHER VEHICLE RUNNING COSTS,15/08/2017,9633,643.50,GPG 2000 LTD,CT261913330,Car Body Repairs,41622500
Sheffield City Council ,CORPORATE,11992088888,BALANCE SHEET,800001,AP MIGRATION CONTROL ACCOUNT,06/08/2017,10016,636.00,A & P CHAMBERS LTD,CT029989564,"Electrical Goods Sales, Mnfrs & Wholesal",42566200
Sheffield City Council ,CORPORATE,11992088888,BALANCE SHEET,800001,AP MIGRATION CONTROL ACCOUNT,06/08/2017,10334,"2,511.36",AIR ENVIRONMENTAL LTD,CT072502880,Air Conditioning Equipment & Systems,50580200
Sheffield City Council ,CORPORATE,11992088888,BALANCE SHEET,800001,AP MIGRATION CONTROL ACCOUNT,06/08/2017,10335,"1,806.60",AIR ENVIRONMENTAL LTD,CT072502880,Air Conditioning Equipment & Systems,50580200
Sheffield City Council ,CORPORATE,11992088888,BALANCE SHEET,800001,AP MIGRATION CONTROL ACCOUNT,06/08/2017,10336,960.00,AIR ENVIRONMENTAL LTD,CT072502880,Air Conditioning Equipment & Systems,50580200
Sheffield City Council ,CORPORATE,11992088888,BALANCE SHEET,800001,AP MIGRATION CONTROL ACCOUNT,06/08/2017,10337,"3,478.32",AIR ENVIRONMENTAL LTD,CT072502880,Air Conditioning Equipment & Systems,50580200
Sheffield City Council ,CORPORATE,11992088888,BALANCE SHEET,800001,AP MIGRATION CONTROL ACCOUNT,06/08/2017,10359,880.80,A COOLE ELECTRICAL LTD,CT079930580,Electricians & Electrical Contractors,64473200
Sheffield City Council ,CORPORATE,11992088888,BALANCE SHEET,800001,AP MIGRATION CONTROL ACCOUNT,06/08/2017,10360,698.40,A COOLE ELECTRICAL LTD,CT079930580,Electricians & Electrical Contractors,64473200
Sheffield City Council ,CORPORATE,11992088888,BALANCE SHEET,800001,AP MIGRATION CONTROL ACCOUNT,06/08/2017,10465,"1,548.00",AMK FENCE-IN LTD,CT073334660,Fencing Contractors,20293400
Sheffield City Council ,PLACE,14065397441,COMMUNAL AREAS-LOW RISE FLATS,1157000,DWELLINGS MAIN CONTRACT,24/08/2017,10494,"9,323.00",AMK FENCE-IN LTD,CT073334660,Fencing Contractors,20293400
Sheffield City Council ,PEOPLE,14001147048,SASP SPEND PLAN,8440000,FEE EXPENSES,29/08/2017,10695,"5,625.00",HEELEY CITY FARM,CT109931410,Energy Conservation Consultants & Equipm,30127701
Sheffield City Council ,PLACE,11530015218,TOWN HALL,8010000,EQUIPMENT PURCHASE AND REPAIR,31/08/2017,10718,309.00,1415 LIMITED TA MRFLAG.COM,CT023036270,"Flags, Banners, Poles & Masts",64699200
Sheffield City Council ,PLACE,12045821104,SPORTS EVENTS,8440000,FEE EXPENSES,30/08/2017,10808,"1,225.00",TRAFFIC MANAGEMENT SERVICES (TMS) LTD,CT250379650,Traffic Management Systems,52886000
Sheffield City Council ,PEOPLE,14009242034,PURCHASING LEARNING DISABILITI,9250002,INDEPENDENT DAY CARE,16/08/2017,10875,320.00,HEELEY CITY FARM,CT230417020,Charities & Voluntary Organisations,30127700
Sheffield City Council ,CORPORATE,11992088888,BALANCE SHEET,800001,AP MIGRATION CONTROL ACCOUNT,06/08/2017,10914,251.06,UK EVENT MEDICAL SERVICES LTD,CT160835890,First Aid Training,33889600
Sheffield City Council ,PEOPLE,14009242034,PURCHASING LEARNING DISABILITI,9250002,INDEPENDENT DAY CARE,16/08/2017,10957,320.00,HEELEY CITY FARM,CT230417020,Charities & Voluntary Organisations,30127700
Sheffield City Council ,PEOPLE,14009242034,PURCHASING LEARNING DISABILITI,9250002,INDEPENDENT DAY CARE,18/08/2017,10958,320.00,HEELEY CITY FARM,CT230417020,Charities & Voluntary Organisations,30127700
Sheffield City Council ,PEOPLE,14009242034,PURCHASING LEARNING DISABILITI,9250002,INDEPENDENT DAY CARE,17/08/2017,10960,480.00,HEELEY CITY FARM,CT230417020,Charities & Voluntary Organisations,30127700
Sheffield City Council ,PEOPLE,14009242034,PURCHASING LEARNING DISABILITI,9250002,INDEPENDENT DAY CARE,18/08/2017,10961,480.00,HEELEY CITY FARM,CT230417020,Charities & Voluntary Organisations,30127700
Sheffield City Council ,PEOPLE,14009242034,PURCHASING LEARNING DISABILITI,9250002,INDEPENDENT DAY CARE,16/08/2017,10969,540.00,HEELEY CITY FARM,CT230417020,Charities & Voluntary Organisations,30127700
Sheffield City Council ,PEOPLE,14009242034,PURCHASING LEARNING DISABILITI,9250002,INDEPENDENT DAY CARE,18/08/2017,10970,540.00,HEELEY CITY FARM,CT230417020,Charities & Voluntary Organisations,30127700
Sheffield City Council ,PEOPLE,14009242034,PURCHASING LEARNING DISABILITI,9250002,INDEPENDENT DAY CARE,17/08/2017,10978,480.00,HEELEY CITY FARM,CT230417020,Charities & Voluntary Organisations,30127700
Sheffield City Council ,PEOPLE,14009242034,PURCHASING LEARNING DISABILITI,9250002,INDEPENDENT DAY CARE,18/08/2017,10979,480.00,HEELEY CITY FARM,CT230417020,Charities & Voluntary Organisations,30127700
Sheffield City Council ,PEOPLE,14009242034,PURCHASING LEARNING DISABILITI,9250002,INDEPENDENT DAY CARE,17/08/2017,10981,480.00,HEELEY CITY FARM,CT230417020,Charities & Voluntary Organisations,30127700
Sheffield City Council ,PEOPLE,14009242034,PURCHASING LEARNING DISABILITI,9250002,INDEPENDENT DAY CARE,18/08/2017,10982,480.00,HEELEY CITY FARM,CT230417020,Charities & Voluntary Organisations,30127700
Sheffield City Council ,PEOPLE,14009242034,PURCHASING LEARNING DISABILITI,9250002,INDEPENDENT DAY CARE,16/08/2017,10996,480.00,HEELEY CITY FARM,CT230417020,Charities & Voluntary Organisations,30127700
Sheffield City Council ,PEOPLE,14009242034,PURCHASING LEARNING DISABILITI,9250002,INDEPENDENT DAY CARE,18/08/2017,10997,480.00,HEELEY CITY FARM,CT230417020,Charities & Voluntary Organisations,30127700
Sheffield City Council ,PEOPLE,14009242034,PURCHASING LEARNING DISABILITI,9250002,INDEPENDENT DAY CARE,16/08/2017,11002,320.00,HEELEY CITY FARM,CT230417020,Charities & Voluntary Organisations,30127700
Sheffield City Council ,PEOPLE,14009242034,PURCHASING LEARNING DISABILITI,9250002,INDEPENDENT DAY CARE,18/08/2017,11003,320.00,HEELEY CITY FARM,CT230417020,Charities & Voluntary Organisations,30127700
Sheffield City Council ,PEOPLE,14009242034,PURCHASING LEARNING DISABILITI,9250002,INDEPENDENT DAY CARE,16/08/2017,11005,480.00,HEELEY CITY FARM,CT230417020,Charities & Voluntary Organisations,30127700
Sheffield City Council ,PEOPLE,14009242034,PURCHASING LEARNING DISABILITI,9250002,INDEPENDENT DAY CARE,18/08/2017,11006,480.00,HEELEY CITY FARM,CT230417020,Charities & Voluntary Organisations,30127700
Sheffield City Council ,PEOPLE,14009242034,PURCHASING LEARNING DISABILITI,9250002,INDEPENDENT DAY CARE,16/08/2017,11014,480.00,HEELEY CITY FARM,CT230417020,Charities & Voluntary Organisations,30127700
Sheffield City Council ,PEOPLE,14009242034,PURCHASING LEARNING DISABILITI,9250002,INDEPENDENT DAY CARE,18/08/2017,11015,480.00,HEELEY CITY FARM,CT230417020,Charities & Voluntary Organisations,30127700
Sheffield City Council ,PEOPLE,14009242034,PURCHASING LEARNING DISABILITI,9250002,INDEPENDENT DAY CARE,16/08/2017,11017,480.00,HEELEY CITY FARM,CT230417020,Charities & Voluntary Organisations,30127700
Sheffield City Council ,PEOPLE,14009242034,PURCHASING LEARNING DISABILITI,9250002,INDEPENDENT DAY CARE,18/08/2017,11018,480.00,HEELEY CITY FARM,CT230417020,Charities & Voluntary Organisations,30127700
Sheffield City Council ,PEOPLE,14009242034,PURCHASING LEARNING DISABILITI,9250002,INDEPENDENT DAY CARE,16/08/2017,11023,480.00,HEELEY CITY FARM,CT230417020,Charities & Voluntary Organisations,30127700
Sheffield City Council ,PEOPLE,14009242034,PURCHASING LEARNING DISABILITI,9250002,INDEPENDENT DAY CARE,18/08/2017,11024,480.00,HEELEY CITY FARM,CT230417020,Charities & Voluntary Organisations,30127700
Sheffield City Council ,PEOPLE,14009242034,PURCHASING LEARNING DISABILITI,9250002,INDEPENDENT DAY CARE,18/08/2017,11027,320.00,HEELEY CITY FARM,CT230417020,Charities & Voluntary Organisations,30127700
Sheffield City Council ,PEOPLE,14009242034,PURCHASING LEARNING DISABILITI,9250002,INDEPENDENT DAY CARE,16/08/2017,11032,480.00,HEELEY CITY FARM,CT230417020,Charities & Voluntary Organisations,30127700
Sheffield City Council ,PEOPLE,14009242034,PURCHASING LEARNING DISABILITI,9250002,INDEPENDENT DAY CARE,18/08/2017,11033,480.00,HEELEY CITY FARM,CT230417020,Charities & Voluntary Organisations,30127700
Sheffield City Council ,PEOPLE,14009242034,PURCHASING LEARNING DISABILITI,9250002,INDEPENDENT DAY CARE,17/08/2017,11035,640.00,HEELEY CITY FARM,CT230417020,Charities & Voluntary Organisations,30127700
Sheffield City Council ,PEOPLE,14009242034,PURCHASING LEARNING DISABILITI,9250002,INDEPENDENT DAY CARE,18/08/2017,11036,640.00,HEELEY CITY FARM,CT230417020,Charities & Voluntary Organisations,30127700
Sheffield City Council ,PEOPLE,14009242034,PURCHASING LEARNING DISABILITI,1780000,ERROR SUSPENSE - CAREFIRST,24/08/2017,11210,"13,281.29",PATHWAY CARE SOLUTIONS LTD,CT240517580,Childcare Services,40595100
Sheffield City Council ,PEOPLE,13002639143,CWD INDEPENDENT PLACEMENTS,9270008,INDEPENDENT RESIDENTIAL PMENT,24/08/2017,11217,"13,728.57",PATHWAY CARE SOLUTIONS LTD,CT240517580,Childcare Services,40595100
Sheffield City Council ,PEOPLE,14009242034,PURCHASING LEARNING DISABILITI,1780000,ERROR SUSPENSE - CAREFIRST,24/08/2017,11221,"13,728.57",PATHWAY CARE SOLUTIONS LTD,CT240517580,Childcare Services,40595100
Sheffield City Council ,PEOPLE,13002639428,RESIDENTIAL UNDER 16's,9270008,INDEPENDENT RESIDENTIAL PMENT,24/08/2017,11234,"13,281.29",PATHWAY CARE SOLUTIONS LTD,CT240517580,Childcare Services,40595100
Sheffield City Council ,PEOPLE,13008633065,PROVIDER CONTRACT AUG16-JUL17,9120000,OTHER AGENCIES,24/08/2017,11244,549.50,ASPIRING COMMUNITIES TOGETHER LTD,CT230417020,Charities & Voluntary Organisations,30394900
Sheffield City Council ,PEOPLE,13008633065,PROVIDER CONTRACT AUG16-JUL17,9120000,OTHER AGENCIES,24/08/2017,11244,549.50,ASPIRING COMMUNITIES TOGETHER LTD,CT230417020,Charities & Voluntary Organisations,30394900
Sheffield City Council ,PEOPLE,13008633065,PROVIDER CONTRACT AUG16-JUL17,9120000,OTHER AGENCIES,24/08/2017,11244,549.50,ASPIRING COMMUNITIES TOGETHER LTD,CT230417020,Charities & Voluntary Organisations,30394900
Sheffield City Council ,PEOPLE,13008633065,PROVIDER CONTRACT AUG16-JUL17,9120000,OTHER AGENCIES,24/08/2017,11244,577.50,ASPIRING COMMUNITIES TOGETHER LTD,CT230417020,Charities & Voluntary Organisations,30394900
Sheffield City Council ,PEOPLE,13008633065,PROVIDER CONTRACT AUG16-JUL17,9120000,OTHER AGENCIES,24/08/2017,11244,686.70,ASPIRING COMMUNITIES TOGETHER LTD,CT230417020,Charities & Voluntary Organisations,30394900
Sheffield City Council ,PEOPLE,13008633065,PROVIDER CONTRACT AUG16-JUL17,9120000,OTHER AGENCIES,24/08/2017,11244,686.70,ASPIRING COMMUNITIES TOGETHER LTD,CT230417020,Charities & Voluntary Organisations,30394900
Sheffield City Council ,PEOPLE,13008633065,PROVIDER CONTRACT AUG16-JUL17,9120000,OTHER AGENCIES,24/08/2017,11244,686.70,ASPIRING COMMUNITIES TOGETHER LTD,CT230417020,Charities & Voluntary Organisations,30394900
Sheffield City Council ,PEOPLE,13008633065,PROVIDER CONTRACT AUG16-JUL17,9120000,OTHER AGENCIES,24/08/2017,11244,"1,014.30",ASPIRING COMMUNITIES TOGETHER LTD,CT230417020,Charities & Voluntary Organisations,30394900
Sheffield City Council ,PEOPLE,13008633065,PROVIDER CONTRACT AUG16-JUL17,9120000,OTHER AGENCIES,24/08/2017,11244,"1,067.50",ASPIRING COMMUNITIES TOGETHER LTD,CT230417020,Charities & Voluntary Organisations,30394900
Sheffield City Council ,PEOPLE,13008633065,PROVIDER CONTRACT AUG16-JUL17,9120000,OTHER AGENCIES,24/08/2017,11244,"1,067.50",ASPIRING COMMUNITIES TOGETHER LTD,CT230417020,Charities & Voluntary Organisations,30394900
Sheffield City Council ,PEOPLE,13008633065,PROVIDER CONTRACT AUG16-JUL17,9120000,OTHER AGENCIES,24/08/2017,11244,"1,067.50",ASPIRING COMMUNITIES TOGETHER LTD,CT230417020,Charities & Voluntary Organisations,30394900
Sheffield City Council ,PEOPLE,13008633065,PROVIDER CONTRACT AUG16-JUL17,9120000,OTHER AGENCIES,24/08/2017,11244,"1,067.50",ASPIRING COMMUNITIES TOGETHER LTD,CT230417020,Charities & Voluntary Organisations,30394900
Sheffield City Council ,CORPORATE,11992088888,BALANCE SHEET,800001,AP MIGRATION CONTROL ACCOUNT,06/08/2017,11265,884.95,CHEMSOL LTD,CT040138390,Funeral Services,34289300
Sheffield City Council ,CORPORATE,11992088888,BALANCE SHEET,800001,AP MIGRATION CONTROL ACCOUNT,06/08/2017,11266,514.13,CHEMSOL LTD,CT040138390,Funeral Services,34289300
Sheffield City Council ,PEOPLE,13002139211,EAST SA - LAC,9440002,LOOKED AFTER CHILDREN,25/08/2017,11286,521.60,PATHWAY CARE SOLUTIONS LTD,CT240517580,Childcare Services,40595100
Sheffield City Council ,CORPORATE,11992088888,BALANCE SHEET,800001,AP MIGRATION CONTROL ACCOUNT,06/08/2017,11295,537.60,ROBERTS MOTOR BODIES LTD,CT261913330,Car Body Repairs,44263900
Sheffield City Council ,PLACE,11513300000,WORKSHOPS,7040000,OTHER VEHICLE RUNNING COSTS,15/08/2017,11307,623.00,ROBERTS MOTOR BODIES LTD,CT261913330,Car Body Repairs,44263900
Sheffield City Council ,CORPORATE,11992088888,BALANCE SHEET,800001,AP MIGRATION CONTROL ACCOUNT,06/08/2017,11308,"1,262.40",ROBERTS MOTOR BODIES LTD,CT261913330,Car Body Repairs,44263900
Sheffield City Council ,CORPORATE,11992088888,BALANCE SHEET,800001,AP MIGRATION CONTROL ACCOUNT,06/08/2017,11310,291.60,ROBERTS MOTOR BODIES LTD,CT261913330,Car Body Repairs,44263900
Sheffield City Council ,PLACE,11513300000,WORKSHOPS,7040000,OTHER VEHICLE RUNNING COSTS,15/08/2017,11353,588.63,ROBERTS MOTOR BODIES LTD,CT261913330,Car Body Repairs,44263900
Sheffield City Council ,PLACE,11513300000,WORKSHOPS,7040000,OTHER VEHICLE RUNNING COSTS,15/08/2017,11354,345.50,ROBERTS MOTOR BODIES LTD,CT261913330,Car Body Repairs,44263900
Sheffield City Council ,PLACE,11513300000,WORKSHOPS,7040000,OTHER VEHICLE RUNNING COSTS,15/08/2017,11355,304.00,ROBERTS MOTOR BODIES LTD,CT261913330,Car Body Repairs,44263900
Sheffield City Council ,PLACE,11513300000,WORKSHOPS,7040000,OTHER VEHICLE RUNNING COSTS,15/08/2017,11357,441.25,ROBERTS MOTOR BODIES LTD,CT261913330,Car Body Repairs,44263900
Sheffield City Council ,PLACE,11513300000,WORKSHOPS,7040000,OTHER VEHICLE RUNNING COSTS,15/08/2017,11358,"1,594.88",ROBERTS MOTOR BODIES LTD,CT261913330,Car Body Repairs,44263900
Sheffield City Council ,PLACE,11513300000,WORKSHOPS,7040000,OTHER VEHICLE RUNNING COSTS,15/08/2017,11359,418.00,ROBERTS MOTOR BODIES LTD,CT261913330,Car Body Repairs,44263900
Sheffield City Council ,CORPORATE,11992088888,BALANCE SHEET,800001,AP MIGRATION CONTROL ACCOUNT,06/08/2017,11382,"4,977.60",EXOVA (UK) LTD,CT080332415,Environmental Consultants,54525700
SCR Combined Authority,TRANSPORT AUTHORITY,33070088888,BALANCE SHEET,800001,AP MIGRATION CONTROL ACCOUNT,06/08/2017,11410,"14,230.19",BLUE SHEEP LLP,CT060349840,Market Research,64772500
Sheffield City Council ,CORPORATE,11992088888,BALANCE SHEET,800001,AP MIGRATION CONTROL ACCOUNT,06/08/2017,11498,"6,509.46",PROTEN ENVIRONMENTAL LTD T/A PROTEN SERV,CT073723950,Damp & Dry Rot Control,20770700
Sheffield City Council ,CORPORATE,11992088888,BALANCE SHEET,800001,AP MIGRATION CONTROL ACCOUNT,06/08/2017,11499,"7,520.70",PROTEN ENVIRONMENTAL LTD T/A PROTEN SERV,CT073723950,Damp & Dry Rot Control,20770700
Sheffield City Council ,CORPORATE,11992088888,BALANCE SHEET,800001,AP MIGRATION CONTROL ACCOUNT,06/08/2017,11500,"1,719.18",PROTEN ENVIRONMENTAL LTD T/A PROTEN SERV,CT073723950,Damp & Dry Rot Control,20770700
Sheffield City Council ,CORPORATE,11992088888,BALANCE SHEET,800001,AP MIGRATION CONTROL ACCOUNT,06/08/2017,11501,"5,162.87",PROTEN ENVIRONMENTAL LTD T/A PROTEN SERV,CT073723950,Damp & Dry Rot Control,20770700
Sheffield City Council ,CORPORATE,11992088888,BALANCE SHEET,800001,AP MIGRATION CONTROL ACCOUNT,06/08/2017,11502,"4,571.28",PROTEN ENVIRONMENTAL LTD T/A PROTEN SERV,CT073723950,Damp & Dry Rot Control,20770700
Sheffield City Council ,CORPORATE,11992088888,BALANCE SHEET,800001,AP MIGRATION CONTROL ACCOUNT,06/08/2017,11503,"1,483.92",PROTEN ENVIRONMENTAL LTD T/A PROTEN SERV,CT073723950,Damp & Dry Rot Control,20770700
Sheffield City Council ,PLACE,11850000000,RESPONSIVE REPAIRS,8440000,FEE EXPENSES,31/08/2017,11623,"7,637.12",PROTEN ENVIRONMENTAL LTD T/A PROTEN SERV,CT073723950,Damp & Dry Rot Control,20770700
Sheffield City Council ,PLACE,11853000000,CSSR CORE CONTRACT,8530001,SUBCONTRACTOR GENERAL,29/08/2017,11652,"2,613.90",PROTEN ENVIRONMENTAL LTD T/A PROTEN SERV,CT073723950,Damp & Dry Rot Control,20770700
Sheffield City Council ,CORPORATE,11992088888,BALANCE SHEET,800001,AP MIGRATION CONTROL ACCOUNT,06/08/2017,11669,596.63,FLEETFIELD CHEMICAL CO LTD,CT021019000,Cleaning Materials & Equipment,20489100
Sheffield City Council ,PLACE,11850400000,NON OPERATIONAL OVERHEADS,8490000,OTHER PROFESSIONAL FEES,25/08/2017,11740,320.00,REDACTED PERSONAL DATA,CT072439605,Gas Safety Testing & Inspection,64717200
Sheffield City Council ,CORPORATE,11992088888,BALANCE SHEET,800001,AP MIGRATION CONTROL ACCOUNT,06/08/2017,11853,360.00,TAL TRAINING,CT090328430,Driving Schools,52019000
Sheffield City Council ,CORPORATE,11992088888,BALANCE SHEET,800001,AP MIGRATION CONTROL ACCOUNT,06/08/2017,11918,"10,794.35",INITIATEC LIMITED,CT179982714,Video Filming Equipment & Services,56990600
Sheffield City Council ,PEOPLE,13002639284,IFA's UNDER 16,9270009,INDEPENDENT FOSTERING,30/08/2017,31429,"2,934.76",TEAM FOSTERING,CT240201880,Adoption & Fostering,35208200
Sheffield City Council ,CORPORATE,11992088888,BALANCE SHEET,800001,AP MIGRATION CONTROL ACCOUNT,06/08/2017,11950,"2,623.20",DENBY CATERING EQUIPMENT LTD,CT030216111,Catering Equipment,58022000
Sheffield City Council ,CORPORATE,11992088888,BALANCE SHEET,800001,AP MIGRATION CONTROL ACCOUNT,06/08/2017,12384,600.22,TOUGH FURNITURE LIMITED,CT021838590,Furniture Mnfrs - Home & Office,44127000
Sheffield City Council ,CORPORATE,11992088888,BALANCE SHEET,800001,AP MIGRATION CONTROL ACCOUNT,06/08/2017,12619,781.20,SYAC LTD,CT080112100,Business & Management Consultants,31909100
Sheffield City Council ,CORPORATE,11992088888,BALANCE SHEET,800001,AP MIGRATION CONTROL ACCOUNT,06/08/2017,12621,"1,534.50",SYAC LTD,CT080112100,Business & Management Consultants,31909100
Sheffield City Council ,CORPORATE,11992088888,BALANCE SHEET,800001,AP MIGRATION CONTROL ACCOUNT,06/08/2017,12676,"1,255.50",SYAC LTD,CT080112100,Business & Management Consultants,31909100
Sheffield City Council ,CORPORATE,11992088888,BALANCE SHEET,800001,AP MIGRATION CONTROL ACCOUNT,06/08/2017,13580,650.40,ELITE SECURITY SYSTEMS,CT220369240,Security Services,44500200
Sheffield City Council ,CORPORATE,11992088888,BALANCE SHEET,800001,AP MIGRATION CONTROL ACCOUNT,06/08/2017,13582,333.60,ELITE SECURITY SYSTEMS,CT220369240,Security Services,44500200
Sheffield City Council ,CORPORATE,11992088888,BALANCE SHEET,800001,AP MIGRATION CONTROL ACCOUNT,06/08/2017,13585,"1,251.60",ELITE SECURITY SYSTEMS,CT220369240,Security Services,44500200
Sheffield City Council ,CORPORATE,11992088888,BALANCE SHEET,800001,AP MIGRATION CONTROL ACCOUNT,06/08/2017,13587,303.60,ELITE SECURITY SYSTEMS,CT220369240,Security Services,44500200
Sheffield City Council ,CORPORATE,11992088888,BALANCE SHEET,800001,AP MIGRATION CONTROL ACCOUNT,06/08/2017,14536,550.00,SIMPSON PATTERNS TA T T CONSTRUCTION,CT070621555,Construction Contractors - General,20877200
Sheffield City Council ,CORPORATE,11992088888,BALANCE SHEET,800001,AP MIGRATION CONTROL ACCOUNT,06/08/2017,14537,416.00,SIMPSON PATTERNS TA T T CONSTRUCTION,CT070621555,Construction Contractors - General,20877200
Sheffield City Council ,CORPORATE,11992088888,BALANCE SHEET,800001,AP MIGRATION CONTROL ACCOUNT,06/08/2017,14538,338.00,SIMPSON PATTERNS TA T T CONSTRUCTION,CT070621555,Construction Contractors - General,20877200
Sheffield City Council ,CORPORATE,11992088888,BALANCE SHEET,800001,AP MIGRATION CONTROL ACCOUNT,06/08/2017,14539,453.00,SIMPSON PATTERNS TA T T CONSTRUCTION,CT070621555,Construction Contractors - General,20877200
Sheffield City Council ,CORPORATE,11992088888,BALANCE SHEET,800001,AP MIGRATION CONTROL ACCOUNT,06/08/2017,14542,667.00,SIMPSON PATTERNS TA T T CONSTRUCTION,CT070621555,Construction Contractors - General,20877200
Sheffield City Council ,PEOPLE,13009939569,COMMUNITY YOUTH TEAMS,8590000,LANDLINE TELEPHONES,28/08/2017,14879,302.82,MANOR DEVELOPMENT COMPANY LIMITED,CT130753716,Office Rental,42026200
Sheffield City Council ,PEOPLE,13009939569,COMMUNITY YOUTH TEAMS,8590000,LANDLINE TELEPHONES,28/08/2017,14880,410.68,MANOR DEVELOPMENT COMPANY LIMITED,CT130753716,Office Rental,42026200
Sheffield City Council ,CORPORATE,11992088888,BALANCE SHEET,800001,AP MIGRATION CONTROL ACCOUNT,06/08/2017,15517,265.00,THE PRINT AND DESIGN FACTORY LTD,CT060461540,Printers,20766300
Sheffield City Council ,PEOPLE,14009242034,PURCHASING LEARNING DISABILITI,1780000,ERROR SUSPENSE - CAREFIRST,11/08/2017,15577,"1,172.08",DIMENSIONS (UK) LTD (NEW ERA HOUSING),CT050144166,"Housing Associations, Societies, Trusts",50595600
Sheffield City Council ,PEOPLE,14009242034,PURCHASING LEARNING DISABILITI,9240000,SUPPORTED LIVING CARE,11/08/2017,15577,"2,441.52",DIMENSIONS (UK) LTD (NEW ERA HOUSING),CT050144166,"Housing Associations, Societies, Trusts",50595600
Sheffield City Council ,PEOPLE,14009242034,PURCHASING LEARNING DISABILITI,9240000,SUPPORTED LIVING CARE,11/08/2017,15577,"2,661.48",DIMENSIONS (UK) LTD (NEW ERA HOUSING),CT050144166,"Housing Associations, Societies, Trusts",50595600
Sheffield City Council ,PEOPLE,14009242034,PURCHASING LEARNING DISABILITI,9240000,SUPPORTED LIVING CARE,11/08/2017,15577,"3,228.83",DIMENSIONS (UK) LTD (NEW ERA HOUSING),CT050144166,"Housing Associations, Societies, Trusts",50595600
Sheffield City Council ,PEOPLE,14009242034,PURCHASING LEARNING DISABILITI,9240000,SUPPORTED LIVING CARE,11/08/2017,15577,"3,558.24",DIMENSIONS (UK) LTD (NEW ERA HOUSING),CT050144166,"Housing Associations, Societies, Trusts",50595600
Sheffield City Council ,PEOPLE,14009242034,PURCHASING LEARNING DISABILITI,9240000,SUPPORTED LIVING CARE,11/08/2017,15577,"3,648.44",DIMENSIONS (UK) LTD (NEW ERA HOUSING),CT050144166,"Housing Associations, Societies, Trusts",50595600
Sheffield City Council ,PEOPLE,14009242034,PURCHASING LEARNING DISABILITI,9240000,SUPPORTED LIVING CARE,11/08/2017,15577,"3,916.24",DIMENSIONS (UK) LTD (NEW ERA HOUSING),CT050144166,"Housing Associations, Societies, Trusts",50595600
Sheffield City Council ,PEOPLE,14009242034,PURCHASING LEARNING DISABILITI,9190003,CITYWIDE SPOT,11/08/2017,15577,"4,948.36",DIMENSIONS (UK) LTD (NEW ERA HOUSING),CT050144166,"Housing Associations, Societies, Trusts",50595600
Sheffield City Council ,PEOPLE,14009242034,PURCHASING LEARNING DISABILITI,9240000,SUPPORTED LIVING CARE,11/08/2017,15577,"5,087.04",DIMENSIONS (UK) LTD (NEW ERA HOUSING),CT050144166,"Housing Associations, Societies, Trusts",50595600
Sheffield City Council ,PEOPLE,14009242034,PURCHASING LEARNING DISABILITI,9240000,SUPPORTED LIVING CARE,11/08/2017,15577,"5,622.08",DIMENSIONS (UK) LTD (NEW ERA HOUSING),CT050144166,"Housing Associations, Societies, Trusts",50595600
Sheffield City Council ,PEOPLE,14009242034,PURCHASING LEARNING DISABILITI,1780000,ERROR SUSPENSE - CAREFIRST,11/08/2017,15579,348.36,DIMENSIONS (UK) LTD (NEW ERA HOUSING),CT050144166,"Housing Associations, Societies, Trusts",50595600
Sheffield City Council ,PEOPLE,14009242034,PURCHASING LEARNING DISABILITI,1780000,ERROR SUSPENSE - CAREFIRST,11/08/2017,15579,420.76,DIMENSIONS (UK) LTD (NEW ERA HOUSING),CT050144166,"Housing Associations, Societies, Trusts",50595600
Sheffield City Council ,PEOPLE,14009242034,PURCHASING LEARNING DISABILITI,1780000,ERROR SUSPENSE - CAREFIRST,11/08/2017,15579,587.16,DIMENSIONS (UK) LTD (NEW ERA HOUSING),CT050144166,"Housing Associations, Societies, Trusts",50595600
Sheffield City Council ,PEOPLE,14009242034,PURCHASING LEARNING DISABILITI,9240000,SUPPORTED LIVING CARE,11/08/2017,15579,"1,362.16",DIMENSIONS (UK) LTD (NEW ERA HOUSING),CT050144166,"Housing Associations, Societies, Trusts",50595600
Sheffield City Council ,PEOPLE,14009242034,PURCHASING LEARNING DISABILITI,9240000,SUPPORTED LIVING CARE,11/08/2017,15579,"1,487.21",DIMENSIONS (UK) LTD (NEW ERA HOUSING),CT050144166,"Housing Associations, Societies, Trusts",50595600
Sheffield City Council ,PEOPLE,14009242034,PURCHASING LEARNING DISABILITI,9190003,CITYWIDE SPOT,11/08/2017,15579,"1,498.69",DIMENSIONS (UK) LTD (NEW ERA HOUSING),CT050144166,"Housing Associations, Societies, Trusts",50595600
Sheffield City Council ,PEOPLE,14009242034,PURCHASING LEARNING DISABILITI,9240000,SUPPORTED LIVING CARE,11/08/2017,15579,"1,596.56",DIMENSIONS (UK) LTD (NEW ERA HOUSING),CT050144166,"Housing Associations, Societies, Trusts",50595600
Sheffield City Council ,PEOPLE,14009242034,PURCHASING LEARNING DISABILITI,9240000,SUPPORTED LIVING CARE,11/08/2017,15579,"1,812.80",DIMENSIONS (UK) LTD (NEW ERA HOUSING),CT050144166,"Housing Associations, Societies, Trusts",50595600
Sheffield City Council ,PEOPLE,14009242034,PURCHASING LEARNING DISABILITI,1780000,ERROR SUSPENSE - CAREFIRST,11/08/2017,15579,"2,090.24",DIMENSIONS (UK) LTD (NEW ERA HOUSING),CT050144166,"Housing Associations, Societies, Trusts",50595600
Sheffield City Council ,PEOPLE,14009242034,PURCHASING LEARNING DISABILITI,9240000,SUPPORTED LIVING CARE,11/08/2017,15579,"2,229.00",DIMENSIONS (UK) LTD (NEW ERA HOUSING),CT050144166,"Housing Associations, Societies, Trusts",50595600
Sheffield City Council ,PEOPLE,14009242034,PURCHASING LEARNING DISABILITI,1780000,ERROR SUSPENSE - CAREFIRST,11/08/2017,15579,"2,327.18",DIMENSIONS (UK) LTD (NEW ERA HOUSING),CT050144166,"Housing Associations, Societies, Trusts",50595600
Sheffield City Council ,PEOPLE,14009242034,PURCHASING LEARNING DISABILITI,9240000,SUPPORTED LIVING CARE,11/08/2017,15579,"4,363.76",DIMENSIONS (UK) LTD (NEW ERA HOUSING),CT050144166,"Housing Associations, Societies, Trusts",50595600
Sheffield City Council ,PEOPLE,14009242034,PURCHASING LEARNING DISABILITI,9240000,SUPPORTED LIVING CARE,11/08/2017,15579,"6,454.00",DIMENSIONS (UK) LTD (NEW ERA HOUSING),CT050144166,"Housing Associations, Societies, Trusts",50595600
Sheffield City Council ,CORPORATE,11992088888,BALANCE SHEET,2260022,JUDGEMENT DEBTS AND FINES,24/08/2017,Aug-17,935.16,CAPS,CT199922650,Courts,30609100
Sheffield City Council ,PEOPLE,14009242034,PURCHASING LEARNING DISABILITI,1780000,ERROR SUSPENSE - CAREFIRST,11/08/2017,15579,"6,810.72",DIMENSIONS (UK) LTD (NEW ERA HOUSING),CT050144166,"Housing Associations, Societies, Trusts",50595600
Sheffield City Council ,PEOPLE,14009242034,PURCHASING LEARNING DISABILITI,9240000,SUPPORTED LIVING CARE,11/08/2017,15579,"7,428.96",DIMENSIONS (UK) LTD (NEW ERA HOUSING),CT050144166,"Housing Associations, Societies, Trusts",50595600
Sheffield City Council ,PEOPLE,14009242034,PURCHASING LEARNING DISABILITI,9240000,SUPPORTED LIVING CARE,11/08/2017,15579,"7,428.96",DIMENSIONS (UK) LTD (NEW ERA HOUSING),CT050144166,"Housing Associations, Societies, Trusts",50595600
Sheffield City Council ,PEOPLE,14009242034,PURCHASING LEARNING DISABILITI,1780000,ERROR SUSPENSE - CAREFIRST,11/08/2017,15581,359.80,DIMENSIONS (UK) LTD (NEW ERA HOUSING),CT050144166,"Housing Associations, Societies, Trusts",50595600
Sheffield City Council ,PEOPLE,14009242034,PURCHASING LEARNING DISABILITI,1780000,ERROR SUSPENSE - CAREFIRST,11/08/2017,15581,"1,034.52",DIMENSIONS (UK) LTD (NEW ERA HOUSING),CT050144166,"Housing Associations, Societies, Trusts",50595600
Sheffield City Council ,PEOPLE,14009242034,PURCHASING LEARNING DISABILITI,1780000,ERROR SUSPENSE - CAREFIRST,11/08/2017,15581,"1,172.08",DIMENSIONS (UK) LTD (NEW ERA HOUSING),CT050144166,"Housing Associations, Societies, Trusts",50595600
Sheffield City Council ,PEOPLE,14009242034,PURCHASING LEARNING DISABILITI,1780000,ERROR SUSPENSE - CAREFIRST,11/08/2017,15581,"1,783.60",DIMENSIONS (UK) LTD (NEW ERA HOUSING),CT050144166,"Housing Associations, Societies, Trusts",50595600
Sheffield City Council ,PEOPLE,14009242034,PURCHASING LEARNING DISABILITI,9240000,SUPPORTED LIVING CARE,11/08/2017,15581,"1,874.37",DIMENSIONS (UK) LTD (NEW ERA HOUSING),CT050144166,"Housing Associations, Societies, Trusts",50595600
Sheffield City Council ,PEOPLE,14009242034,PURCHASING LEARNING DISABILITI,1780000,ERROR SUSPENSE - CAREFIRST,11/08/2017,15581,"1,976.80",DIMENSIONS (UK) LTD (NEW ERA HOUSING),CT050144166,"Housing Associations, Societies, Trusts",50595600
Sheffield City Council ,PEOPLE,14009242034,PURCHASING LEARNING DISABILITI,9240000,SUPPORTED LIVING CARE,11/08/2017,15581,"4,123.28",DIMENSIONS (UK) LTD (NEW ERA HOUSING),CT050144166,"Housing Associations, Societies, Trusts",50595600
Sheffield City Council ,PEOPLE,14009242034,PURCHASING LEARNING DISABILITI,9190003,CITYWIDE SPOT,11/08/2017,15581,"4,266.32",DIMENSIONS (UK) LTD (NEW ERA HOUSING),CT050144166,"Housing Associations, Societies, Trusts",50595600
Sheffield City Council ,PEOPLE,14009242034,PURCHASING LEARNING DISABILITI,9240000,SUPPORTED LIVING CARE,11/08/2017,15581,"5,027.12",DIMENSIONS (UK) LTD (NEW ERA HOUSING),CT050144166,"Housing Associations, Societies, Trusts",50595600
Sheffield City Council ,PEOPLE,14009242034,PURCHASING LEARNING DISABILITI,9240000,SUPPORTED LIVING CARE,11/08/2017,15581,"5,388.32",DIMENSIONS (UK) LTD (NEW ERA HOUSING),CT050144166,"Housing Associations, Societies, Trusts",50595600
Sheffield City Council ,PEOPLE,14009242034,PURCHASING LEARNING DISABILITI,9240000,SUPPORTED LIVING CARE,11/08/2017,15581,"5,529.16",DIMENSIONS (UK) LTD (NEW ERA HOUSING),CT050144166,"Housing Associations, Societies, Trusts",50595600
Sheffield City Council ,PEOPLE,14009242034,PURCHASING LEARNING DISABILITI,9240000,SUPPORTED LIVING CARE,11/08/2017,15581,"6,214.64",DIMENSIONS (UK) LTD (NEW ERA HOUSING),CT050144166,"Housing Associations, Societies, Trusts",50595600
Sheffield City Council ,PEOPLE,14009242034,PURCHASING LEARNING DISABILITI,9240000,SUPPORTED LIVING CARE,11/08/2017,15581,"6,302.04",DIMENSIONS (UK) LTD (NEW ERA HOUSING),CT050144166,"Housing Associations, Societies, Trusts",50595600
Sheffield City Council ,PEOPLE,14009242034,PURCHASING LEARNING DISABILITI,9240000,SUPPORTED LIVING CARE,11/08/2017,15581,"7,796.88",DIMENSIONS (UK) LTD (NEW ERA HOUSING),CT050144166,"Housing Associations, Societies, Trusts",50595600
Sheffield City Council ,PEOPLE,14009242034,PURCHASING LEARNING DISABILITI,9190007,FUNDED HOME SUPPORT,11/08/2017,15582,756.08,DIMENSIONS (UK) LTD (NEW ERA HOUSING),CT050144166,"Housing Associations, Societies, Trusts",50595600
Sheffield City Council ,PEOPLE,14009242034,PURCHASING LEARNING DISABILITI,1780000,ERROR SUSPENSE - CAREFIRST,11/08/2017,15582,950.96,DIMENSIONS (UK) LTD (NEW ERA HOUSING),CT050144166,"Housing Associations, Societies, Trusts",50595600
Sheffield City Council ,PEOPLE,14009242034,PURCHASING LEARNING DISABILITI,9190003,CITYWIDE SPOT,11/08/2017,15582,"2,199.28",DIMENSIONS (UK) LTD (NEW ERA HOUSING),CT050144166,"Housing Associations, Societies, Trusts",50595600
Sheffield City Council ,PEOPLE,14009242034,PURCHASING LEARNING DISABILITI,9240000,SUPPORTED LIVING CARE,11/08/2017,15582,"2,827.00",DIMENSIONS (UK) LTD (NEW ERA HOUSING),CT050144166,"Housing Associations, Societies, Trusts",50595600
Sheffield City Council ,PEOPLE,14009242034,PURCHASING LEARNING DISABILITI,9240000,SUPPORTED LIVING CARE,11/08/2017,15582,"2,955.36",DIMENSIONS (UK) LTD (NEW ERA HOUSING),CT050144166,"Housing Associations, Societies, Trusts",50595600
Sheffield City Council ,PEOPLE,14009242034,PURCHASING LEARNING DISABILITI,9240000,SUPPORTED LIVING CARE,11/08/2017,15582,"4,488.28",DIMENSIONS (UK) LTD (NEW ERA HOUSING),CT050144166,"Housing Associations, Societies, Trusts",50595600
Sheffield City Council ,PEOPLE,14009242034,PURCHASING LEARNING DISABILITI,9240000,SUPPORTED LIVING CARE,11/08/2017,15582,"5,276.72",DIMENSIONS (UK) LTD (NEW ERA HOUSING),CT050144166,"Housing Associations, Societies, Trusts",50595600
Sheffield City Council ,PEOPLE,14009242034,PURCHASING LEARNING DISABILITI,9240000,SUPPORTED LIVING CARE,11/08/2017,15582,"6,886.43",DIMENSIONS (UK) LTD (NEW ERA HOUSING),CT050144166,"Housing Associations, Societies, Trusts",50595600
Sheffield City Council ,PEOPLE,14009242034,PURCHASING LEARNING DISABILITI,9240000,SUPPORTED LIVING CARE,11/08/2017,15582,"8,543.52",DIMENSIONS (UK) LTD (NEW ERA HOUSING),CT050144166,"Housing Associations, Societies, Trusts",50595600
Sheffield City Council ,PEOPLE,14009242034,PURCHASING LEARNING DISABILITI,9190003,CITYWIDE SPOT,11/08/2017,15584,"4,033.00",DIMENSIONS (UK) LTD (NEW ERA HOUSING),CT050144166,"Housing Associations, Societies, Trusts",50595600
Sheffield City Council ,PEOPLE,14009242034,PURCHASING LEARNING DISABILITI,9240000,SUPPORTED LIVING CARE,11/08/2017,15585,616.80,DIMENSIONS (UK) LTD (NEW ERA HOUSING),CT050144166,"Housing Associations, Societies, Trusts",50595600
Sheffield City Council ,PEOPLE,14009242034,PURCHASING LEARNING DISABILITI,1780000,ERROR SUSPENSE - CAREFIRST,11/08/2017,15585,"2,122.32",DIMENSIONS (UK) LTD (NEW ERA HOUSING),CT050144166,"Housing Associations, Societies, Trusts",50595600
Sheffield City Council ,PEOPLE,14009242034,PURCHASING LEARNING DISABILITI,9240000,SUPPORTED LIVING CARE,11/08/2017,15585,"6,850.07",DIMENSIONS (UK) LTD (NEW ERA HOUSING),CT050144166,"Housing Associations, Societies, Trusts",50595600
Sheffield City Council ,PEOPLE,14009242034,PURCHASING LEARNING DISABILITI,1780000,ERROR SUSPENSE - CAREFIRST,11/08/2017,15586,846.40,DIMENSIONS (UK) LTD (NEW ERA HOUSING),CT050144166,"Housing Associations, Societies, Trusts",50595600
Sheffield City Council ,PEOPLE,14009242034,PURCHASING LEARNING DISABILITI,1780000,ERROR SUSPENSE - CAREFIRST,11/08/2017,15586,"6,279.10",DIMENSIONS (UK) LTD (NEW ERA HOUSING),CT050144166,"Housing Associations, Societies, Trusts",50595600
Sheffield City Council ,PEOPLE,14009242034,PURCHASING LEARNING DISABILITI,9240000,SUPPORTED LIVING CARE,11/08/2017,15586,"8,164.00",DIMENSIONS (UK) LTD (NEW ERA HOUSING),CT050144166,"Housing Associations, Societies, Trusts",50595600
Sheffield City Council ,PEOPLE,14009242034,PURCHASING LEARNING DISABILITI,9240000,SUPPORTED LIVING CARE,11/08/2017,15587,"1,356.96",DIMENSIONS (UK) LTD (NEW ERA HOUSING),CT050144166,"Housing Associations, Societies, Trusts",50595600
Sheffield City Council ,PEOPLE,14009242034,PURCHASING LEARNING DISABILITI,1780000,ERROR SUSPENSE - CAREFIRST,11/08/2017,15587,"2,204.40",DIMENSIONS (UK) LTD (NEW ERA HOUSING),CT050144166,"Housing Associations, Societies, Trusts",50595600
Sheffield City Council ,PEOPLE,14009242034,PURCHASING LEARNING DISABILITI,1780000,ERROR SUSPENSE - CAREFIRST,11/08/2017,15587,"2,369.04",DIMENSIONS (UK) LTD (NEW ERA HOUSING),CT050144166,"Housing Associations, Societies, Trusts",50595600
Sheffield City Council ,PEOPLE,14009242034,PURCHASING LEARNING DISABILITI,1780000,ERROR SUSPENSE - CAREFIRST,11/08/2017,15587,"2,805.64",DIMENSIONS (UK) LTD (NEW ERA HOUSING),CT050144166,"Housing Associations, Societies, Trusts",50595600
Sheffield City Council ,PEOPLE,14009242034,PURCHASING LEARNING DISABILITI,9240000,SUPPORTED LIVING CARE,11/08/2017,15587,"3,832.91",DIMENSIONS (UK) LTD (NEW ERA HOUSING),CT050144166,"Housing Associations, Societies, Trusts",50595600
Sheffield City Council ,PLACE,11850400000,NON OPERATIONAL OVERHEADS,6090000,WASTE DISPOSAL,31/08/2017,104208,"1,247.02",FLETCHER PLANT LIMITED,CT101658996,Recycling Services,61866100
Sheffield City Council ,PEOPLE,14009242034,PURCHASING LEARNING DISABILITI,9240000,SUPPORTED LIVING CARE,11/08/2017,15587,"3,862.28",DIMENSIONS (UK) LTD (NEW ERA HOUSING),CT050144166,"Housing Associations, Societies, Trusts",50595600
Sheffield City Council ,PEOPLE,14009242034,PURCHASING LEARNING DISABILITI,9190003,CITYWIDE SPOT,11/08/2017,15587,"4,029.60",DIMENSIONS (UK) LTD (NEW ERA HOUSING),CT050144166,"Housing Associations, Societies, Trusts",50595600
Sheffield City Council ,PEOPLE,14009242034,PURCHASING LEARNING DISABILITI,9240000,SUPPORTED LIVING CARE,11/08/2017,15587,"4,735.28",DIMENSIONS (UK) LTD (NEW ERA HOUSING),CT050144166,"Housing Associations, Societies, Trusts",50595600
Sheffield City Council ,PEOPLE,14009242034,PURCHASING LEARNING DISABILITI,9240000,SUPPORTED LIVING CARE,11/08/2017,15587,"7,145.68",DIMENSIONS (UK) LTD (NEW ERA HOUSING),CT050144166,"Housing Associations, Societies, Trusts",50595600
Sheffield City Council ,PEOPLE,14009242034,PURCHASING LEARNING DISABILITI,9240000,SUPPORTED LIVING CARE,24/08/2017,15592,"1,471.68",DIMENSIONS (UK) LTD (NEW ERA HOUSING),CT050144166,"Housing Associations, Societies, Trusts",50595600
Sheffield City Council ,PEOPLE,14009242034,PURCHASING LEARNING DISABILITI,1780000,ERROR SUSPENSE - CAREFIRST,24/08/2017,15592,"1,576.80",DIMENSIONS (UK) LTD (NEW ERA HOUSING),CT050144166,"Housing Associations, Societies, Trusts",50595600
Sheffield City Council ,PEOPLE,14009242034,PURCHASING LEARNING DISABILITI,9240000,SUPPORTED LIVING CARE,24/08/2017,15592,"3,219.28",DIMENSIONS (UK) LTD (NEW ERA HOUSING),CT050144166,"Housing Associations, Societies, Trusts",50595600
Sheffield City Council ,PEOPLE,14009242034,PURCHASING LEARNING DISABILITI,9240000,SUPPORTED LIVING CARE,24/08/2017,15592,"3,350.68",DIMENSIONS (UK) LTD (NEW ERA HOUSING),CT050144166,"Housing Associations, Societies, Trusts",50595600
Sheffield City Council ,PEOPLE,14009242034,PURCHASING LEARNING DISABILITI,9240000,SUPPORTED LIVING CARE,24/08/2017,15592,"3,429.52",DIMENSIONS (UK) LTD (NEW ERA HOUSING),CT050144166,"Housing Associations, Societies, Trusts",50595600
Sheffield City Council ,PEOPLE,14009242034,PURCHASING LEARNING DISABILITI,9240000,SUPPORTED LIVING CARE,24/08/2017,15592,"3,508.48",DIMENSIONS (UK) LTD (NEW ERA HOUSING),CT050144166,"Housing Associations, Societies, Trusts",50595600
Sheffield City Council ,PEOPLE,14009242034,PURCHASING LEARNING DISABILITI,9240000,SUPPORTED LIVING CARE,24/08/2017,15592,"3,613.48",DIMENSIONS (UK) LTD (NEW ERA HOUSING),CT050144166,"Housing Associations, Societies, Trusts",50595600
Sheffield City Council ,PEOPLE,14009242034,PURCHASING LEARNING DISABILITI,9240000,SUPPORTED LIVING CARE,24/08/2017,15592,"3,652.92",DIMENSIONS (UK) LTD (NEW ERA HOUSING),CT050144166,"Housing Associations, Societies, Trusts",50595600
Sheffield City Council ,PEOPLE,14009242034,PURCHASING LEARNING DISABILITI,9240000,SUPPORTED LIVING CARE,24/08/2017,15592,"3,744.88",DIMENSIONS (UK) LTD (NEW ERA HOUSING),CT050144166,"Housing Associations, Societies, Trusts",50595600
Sheffield City Council ,PEOPLE,14009242034,PURCHASING LEARNING DISABILITI,9240000,SUPPORTED LIVING CARE,24/08/2017,15592,"3,928.84",DIMENSIONS (UK) LTD (NEW ERA HOUSING),CT050144166,"Housing Associations, Societies, Trusts",50595600
Sheffield City Council ,PEOPLE,14009242034,PURCHASING LEARNING DISABILITI,9240000,SUPPORTED LIVING CARE,24/08/2017,15592,"4,191.68",DIMENSIONS (UK) LTD (NEW ERA HOUSING),CT050144166,"Housing Associations, Societies, Trusts",50595600
Sheffield City Council ,PEOPLE,14009242034,PURCHASING LEARNING DISABILITI,1780000,ERROR SUSPENSE - CAREFIRST,14/08/2017,15594,546.00,DIMENSIONS (UK) LTD (NEW ERA HOUSING),CT050144166,"Housing Associations, Societies, Trusts",50595600
Sheffield City Council ,PEOPLE,14009242034,PURCHASING LEARNING DISABILITI,1780000,ERROR SUSPENSE - CAREFIRST,14/08/2017,15594,728.00,DIMENSIONS (UK) LTD (NEW ERA HOUSING),CT050144166,"Housing Associations, Societies, Trusts",50595600
Sheffield City Council ,PEOPLE,14009242034,PURCHASING LEARNING DISABILITI,1780000,ERROR SUSPENSE - CAREFIRST,14/08/2017,15594,858.57,DIMENSIONS (UK) LTD (NEW ERA HOUSING),CT050144166,"Housing Associations, Societies, Trusts",50595600
Sheffield City Council ,PEOPLE,14009242034,PURCHASING LEARNING DISABILITI,9240000,SUPPORTED LIVING CARE,14/08/2017,15594,"2,784.37",DIMENSIONS (UK) LTD (NEW ERA HOUSING),CT050144166,"Housing Associations, Societies, Trusts",50595600
Sheffield City Council ,PEOPLE,14009242034,PURCHASING LEARNING DISABILITI,9240000,SUPPORTED LIVING CARE,14/08/2017,15594,"3,017.80",DIMENSIONS (UK) LTD (NEW ERA HOUSING),CT050144166,"Housing Associations, Societies, Trusts",50595600
Sheffield City Council ,PEOPLE,14009242034,PURCHASING LEARNING DISABILITI,9240000,SUPPORTED LIVING CARE,14/08/2017,15594,"3,017.80",DIMENSIONS (UK) LTD (NEW ERA HOUSING),CT050144166,"Housing Associations, Societies, Trusts",50595600
Sheffield City Council ,PEOPLE,14009242034,PURCHASING LEARNING DISABILITI,9240000,SUPPORTED LIVING CARE,14/08/2017,15594,"3,929.08",DIMENSIONS (UK) LTD (NEW ERA HOUSING),CT050144166,"Housing Associations, Societies, Trusts",50595600
Sheffield City Council ,PEOPLE,14009242034,PURCHASING LEARNING DISABILITI,1780000,ERROR SUSPENSE - CAREFIRST,14/08/2017,15594,"5,059.08",DIMENSIONS (UK) LTD (NEW ERA HOUSING),CT050144166,"Housing Associations, Societies, Trusts",50595600
Sheffield City Council ,PEOPLE,14009242034,PURCHASING LEARNING DISABILITI,9190007,FUNDED HOME SUPPORT,14/08/2017,15594,"6,041.15",DIMENSIONS (UK) LTD (NEW ERA HOUSING),CT050144166,"Housing Associations, Societies, Trusts",50595600
Sheffield City Council ,PEOPLE,14009242034,PURCHASING LEARNING DISABILITI,1780000,ERROR SUSPENSE - CAREFIRST,30/08/2017,15595,389.40,DIMENSIONS (UK) LTD (NEW ERA HOUSING),CT050144166,"Housing Associations, Societies, Trusts",50595600
Sheffield City Council ,PEOPLE,14009242034,PURCHASING LEARNING DISABILITI,1780000,ERROR SUSPENSE - CAREFIRST,30/08/2017,15595,429.64,DIMENSIONS (UK) LTD (NEW ERA HOUSING),CT050144166,"Housing Associations, Societies, Trusts",50595600
Sheffield City Council ,PEOPLE,14009242034,PURCHASING LEARNING DISABILITI,1780000,ERROR SUSPENSE - CAREFIRST,30/08/2017,15595,589.58,DIMENSIONS (UK) LTD (NEW ERA HOUSING),CT050144166,"Housing Associations, Societies, Trusts",50595600
Sheffield City Council ,PEOPLE,14009242034,PURCHASING LEARNING DISABILITI,1780000,ERROR SUSPENSE - CAREFIRST,30/08/2017,15595,760.24,DIMENSIONS (UK) LTD (NEW ERA HOUSING),CT050144166,"Housing Associations, Societies, Trusts",50595600
Sheffield City Council ,PEOPLE,14009242034,PURCHASING LEARNING DISABILITI,9240000,SUPPORTED LIVING CARE,30/08/2017,15595,"1,802.92",DIMENSIONS (UK) LTD (NEW ERA HOUSING),CT050144166,"Housing Associations, Societies, Trusts",50595600
Sheffield City Council ,PEOPLE,14009242034,PURCHASING LEARNING DISABILITI,9240000,SUPPORTED LIVING CARE,30/08/2017,15595,"1,850.75",DIMENSIONS (UK) LTD (NEW ERA HOUSING),CT050144166,"Housing Associations, Societies, Trusts",50595600
Sheffield City Council ,PEOPLE,14009242034,PURCHASING LEARNING DISABILITI,9240000,SUPPORTED LIVING CARE,30/08/2017,15595,"1,870.65",DIMENSIONS (UK) LTD (NEW ERA HOUSING),CT050144166,"Housing Associations, Societies, Trusts",50595600
Sheffield City Council ,PEOPLE,14009242034,PURCHASING LEARNING DISABILITI,9240000,SUPPORTED LIVING CARE,30/08/2017,15595,"1,972.96",DIMENSIONS (UK) LTD (NEW ERA HOUSING),CT050144166,"Housing Associations, Societies, Trusts",50595600
Sheffield City Council ,PEOPLE,14009242034,PURCHASING LEARNING DISABILITI,1780000,ERROR SUSPENSE - CAREFIRST,30/08/2017,15595,"1,982.00",DIMENSIONS (UK) LTD (NEW ERA HOUSING),CT050144166,"Housing Associations, Societies, Trusts",50595600
Sheffield City Council ,PEOPLE,14009242034,PURCHASING LEARNING DISABILITI,9240000,SUPPORTED LIVING CARE,30/08/2017,15595,"1,997.36",DIMENSIONS (UK) LTD (NEW ERA HOUSING),CT050144166,"Housing Associations, Societies, Trusts",50595600
Sheffield City Council ,PEOPLE,14009242034,PURCHASING LEARNING DISABILITI,9240000,SUPPORTED LIVING CARE,30/08/2017,15595,"2,024.84",DIMENSIONS (UK) LTD (NEW ERA HOUSING),CT050144166,"Housing Associations, Societies, Trusts",50595600
Sheffield City Council ,PEOPLE,14009242034,PURCHASING LEARNING DISABILITI,9240000,SUPPORTED LIVING CARE,30/08/2017,15595,"2,067.76",DIMENSIONS (UK) LTD (NEW ERA HOUSING),CT050144166,"Housing Associations, Societies, Trusts",50595600
Sheffield City Council ,PEOPLE,14009242034,PURCHASING LEARNING DISABILITI,9240000,SUPPORTED LIVING CARE,30/08/2017,15595,"2,128.72",DIMENSIONS (UK) LTD (NEW ERA HOUSING),CT050144166,"Housing Associations, Societies, Trusts",50595600
Sheffield City Council ,PEOPLE,14009242034,PURCHASING LEARNING DISABILITI,9240000,SUPPORTED LIVING CARE,30/08/2017,15595,"2,154.68",DIMENSIONS (UK) LTD (NEW ERA HOUSING),CT050144166,"Housing Associations, Societies, Trusts",50595600
Sheffield City Council ,PEOPLE,14009242034,PURCHASING LEARNING DISABILITI,9240000,SUPPORTED LIVING CARE,30/08/2017,15595,"2,173.24",DIMENSIONS (UK) LTD (NEW ERA HOUSING),CT050144166,"Housing Associations, Societies, Trusts",50595600
Sheffield City Council ,PEOPLE,14009242034,PURCHASING LEARNING DISABILITI,9240000,SUPPORTED LIVING CARE,30/08/2017,15595,"2,180.64",DIMENSIONS (UK) LTD (NEW ERA HOUSING),CT050144166,"Housing Associations, Societies, Trusts",50595600
Sheffield City Council ,PEOPLE,14009242034,PURCHASING LEARNING DISABILITI,9240000,SUPPORTED LIVING CARE,30/08/2017,15595,"2,180.64",DIMENSIONS (UK) LTD (NEW ERA HOUSING),CT050144166,"Housing Associations, Societies, Trusts",50595600
Sheffield City Council ,PEOPLE,14009242034,PURCHASING LEARNING DISABILITI,9240000,SUPPORTED LIVING CARE,30/08/2017,15595,"2,590.80",DIMENSIONS (UK) LTD (NEW ERA HOUSING),CT050144166,"Housing Associations, Societies, Trusts",50595600
Sheffield City Council ,PEOPLE,14009242034,PURCHASING LEARNING DISABILITI,9240000,SUPPORTED LIVING CARE,30/08/2017,15595,"3,110.00",DIMENSIONS (UK) LTD (NEW ERA HOUSING),CT050144166,"Housing Associations, Societies, Trusts",50595600
Sheffield City Council ,PEOPLE,13002639428,RESIDENTIAL UNDER 16's,9270008,INDEPENDENT RESIDENTIAL PMENT,24/08/2017,16012,"19,463.56",NEW REFLEXIONS CARE GROUP LTD,CT249917780,Children's Homes,46245700
Sheffield City Council ,PLACE,11850000000,RESPONSIVE REPAIRS,8530001,SUBCONTRACTOR GENERAL,30/08/2017,16014,"5,114.47",MEDDO LTD,CT070661961,Property Maintenance & Repairs,64442800
Sheffield City Council ,PLACE,11850000000,RESPONSIVE REPAIRS,8440000,FEE EXPENSES,30/08/2017,16015,"5,187.91",MEDDO LTD,CT070661961,Property Maintenance & Repairs,64442800
Sheffield City Council ,PLACE,11850200000,VOIDS REPAIRS,8530001,SUBCONTRACTOR GENERAL,24/08/2017,16030,"18,694.34",MEDDO LTD,CT070661961,Property Maintenance & Repairs,64442800
Sheffield City Council ,PLACE,11850200000,VOIDS REPAIRS,8530001,SUBCONTRACTOR GENERAL,25/08/2017,16083,"73,565.03",MEDDO LTD,CT070661961,Property Maintenance & Repairs,64442800
Sheffield City Council ,CORPORATE,11992088888,BALANCE SHEET,800001,AP MIGRATION CONTROL ACCOUNT,06/08/2017,16218,293.02,ICE PLUMBING & WATER SERVICES,CT079959790,Plumbers,40556300
Sheffield City Council ,CORPORATE,11992088888,BALANCE SHEET,800001,AP MIGRATION CONTROL ACCOUNT,06/08/2017,16219,259.32,ICE PLUMBING & WATER SERVICES,CT079959790,Plumbers,40556300
Sheffield City Council ,CORPORATE,11992088888,BALANCE SHEET,800001,AP MIGRATION CONTROL ACCOUNT,06/08/2017,17020,"15,000.00",LANCASTER RETAIL CONSULTING LTD,CT139900001,Commercial Property Agents,59341900
Sheffield City Council ,PEOPLE,13002639405,SEMI INDEPENDENT LIVING,9270008,INDEPENDENT RESIDENTIAL PMENT,17/08/2017,17087,"3,200.00",PROGRESSIVE CARE LTD,CT249917780,Children's Homes,34354800
Sheffield City Council ,PEOPLE,13001639007,UASC/ASYLUM - LEAVING CARE,6210000,RENTS,17/08/2017,17088,685.72,PROGRESSIVE CARE LTD,CT249917780,Children's Homes,34354800
Sheffield City Council ,PEOPLE,13001639006,UASC/ASYLUM 16-17,6210000,RENTS,17/08/2017,17088,"4,114.28",PROGRESSIVE CARE LTD,CT249917780,Children's Homes,34354800
Sheffield City Council ,PEOPLE,13002639405,SEMI INDEPENDENT LIVING,9270008,INDEPENDENT RESIDENTIAL PMENT,25/08/2017,17169,"4,130.00",PROGRESSIVE CARE LTD,CT249917780,Children's Homes,34354800
Sheffield City Council ,PEOPLE,13002639405,SEMI INDEPENDENT LIVING,9270008,INDEPENDENT RESIDENTIAL PMENT,23/08/2017,17171,"3,200.00",PROGRESSIVE CARE LTD,CT249917780,Children's Homes,34354800
Sheffield City Council ,PEOPLE,13002639405,SEMI INDEPENDENT LIVING,9270008,INDEPENDENT RESIDENTIAL PMENT,25/08/2017,17172,"4,800.00",PROGRESSIVE CARE LTD,CT249917780,Children's Homes,34354800
Sheffield City Council ,PEOPLE,13005739514,INDEPENDENT PLACEMENTS,9310001,EDUCATIONAL OR JOINT PLACEMENT,23/08/2017,17173,800.00,PROGRESSIVE CARE LTD,CT249917780,Children's Homes,34354800
Sheffield City Council ,PEOPLE,13002639405,SEMI INDEPENDENT LIVING,9270008,INDEPENDENT RESIDENTIAL PMENT,14/08/2017,17175,"1,600.00",PROGRESSIVE CARE LTD,CT249917780,Children's Homes,34354800
Sheffield City Council ,PEOPLE,13002639405,SEMI INDEPENDENT LIVING,9270008,INDEPENDENT RESIDENTIAL PMENT,11/08/2017,17177,"2,200.00",PROGRESSIVE CARE LTD,CT249917780,Children's Homes,34354800
Sheffield City Council ,PEOPLE,13002639405,SEMI INDEPENDENT LIVING,9270008,INDEPENDENT RESIDENTIAL PMENT,14/08/2017,17178,"2,065.00",PROGRESSIVE CARE LTD,CT249917780,Children's Homes,34354800
Sheffield City Council ,PEOPLE,13002639143,CWD INDEPENDENT PLACEMENTS,9270008,INDEPENDENT RESIDENTIAL PMENT,23/08/2017,17204,"6,536.00",PROGRESSIVE CARE LTD,CT249917780,Children's Homes,34354800
Sheffield City Council ,PEOPLE,13002639428,RESIDENTIAL UNDER 16's,9270008,INDEPENDENT RESIDENTIAL PMENT,21/08/2017,17244,"3,990.00",PROGRESSIVE CARE LTD,CT249917780,Children's Homes,34354800
Sheffield City Council ,PEOPLE,14009242034,PURCHASING LEARNING DISABILITI,1780000,ERROR SUSPENSE - CAREFIRST,18/08/2017,17245,"3,990.00",PROGRESSIVE CARE LTD,CT249917780,Children's Homes,34354800
Sheffield City Council ,PEOPLE,13002639428,RESIDENTIAL UNDER 16's,9270008,INDEPENDENT RESIDENTIAL PMENT,16/08/2017,17247,"3,990.00",PROGRESSIVE CARE LTD,CT249917780,Children's Homes,34354800
Sheffield City Council ,PEOPLE,13001639006,UASC/ASYLUM 16-17,6210000,RENTS,16/08/2017,17248,"2,400.00",PROGRESSIVE CARE LTD,CT249917780,Children's Homes,34354800
Sheffield City Council ,PEOPLE,13002639405,SEMI INDEPENDENT LIVING,9270008,INDEPENDENT RESIDENTIAL PMENT,21/08/2017,17249,"9,338.00",PROGRESSIVE CARE LTD,CT249917780,Children's Homes,34354800
Sheffield City Council ,PEOPLE,13002639405,SEMI INDEPENDENT LIVING,9270008,INDEPENDENT RESIDENTIAL PMENT,17/08/2017,17251,"1,600.00",PROGRESSIVE CARE LTD,CT249917780,Children's Homes,34354800
Sheffield City Council ,PEOPLE,13001839285,CONTACT CONTRACTS,9280000,CONTACT,14/08/2017,17292,356.90,PROGRESSIVE CARE LTD,CT249917780,Children's Homes,34354800
Sheffield City Council ,PEOPLE,13002639143,CWD INDEPENDENT PLACEMENTS,9270008,INDEPENDENT RESIDENTIAL PMENT,11/08/2017,17299,"1,302.00",PROGRESSIVE CARE LTD,CT249917780,Children's Homes,34354800
Sheffield City Council ,PEOPLE,13002639143,CWD INDEPENDENT PLACEMENTS,9270008,INDEPENDENT RESIDENTIAL PMENT,14/08/2017,17315,"1,302.00",PROGRESSIVE CARE LTD,CT249917780,Children's Homes,34354800
Sheffield City Council ,PEOPLE,13002639405,SEMI INDEPENDENT LIVING,9270008,INDEPENDENT RESIDENTIAL PMENT,25/08/2017,17317,"1,600.00",PROGRESSIVE CARE LTD,CT249917780,Children's Homes,34354800
Sheffield City Council ,PEOPLE,13002639405,SEMI INDEPENDENT LIVING,9270008,INDEPENDENT RESIDENTIAL PMENT,23/08/2017,17318,"1,600.00",PROGRESSIVE CARE LTD,CT249917780,Children's Homes,34354800
Sheffield City Council ,PEOPLE,13002639405,SEMI INDEPENDENT LIVING,9270008,INDEPENDENT RESIDENTIAL PMENT,25/08/2017,17319,"2,065.00",PROGRESSIVE CARE LTD,CT249917780,Children's Homes,34354800
Sheffield City Council ,PEOPLE,13001839285,CONTACT CONTRACTS,9280000,CONTACT,18/08/2017,17360,364.50,PROGRESSIVE CARE LTD,CT249917780,Children's Homes,34354800
Sheffield City Council ,PEOPLE,13002639405,SEMI INDEPENDENT LIVING,9270008,INDEPENDENT RESIDENTIAL PMENT,11/08/2017,17366,-214.28,PROGRESSIVE CARE LTD,CT249917780,Children's Homes,34354800
Sheffield City Council ,PEOPLE,14009242034,PURCHASING LEARNING DISABILITI,1780000,ERROR SUSPENSE - CAREFIRST,30/08/2017,17375,"3,990.00",PROGRESSIVE CARE LTD,CT249917780,Children's Homes,34354800
Sheffield City Council ,PEOPLE,13002639428,RESIDENTIAL UNDER 16's,9270008,INDEPENDENT RESIDENTIAL PMENT,30/08/2017,17377,"3,990.00",PROGRESSIVE CARE LTD,CT249917780,Children's Homes,34354800
Sheffield City Council ,PEOPLE,13001639006,UASC/ASYLUM 16-17,6210000,RENTS,30/08/2017,17378,"2,400.00",PROGRESSIVE CARE LTD,CT249917780,Children's Homes,34354800
Sheffield City Council ,PEOPLE,13002639405,SEMI INDEPENDENT LIVING,9270008,INDEPENDENT RESIDENTIAL PMENT,30/08/2017,17387,"1,600.00",PROGRESSIVE CARE LTD,CT249917780,Children's Homes,34354800
Sheffield City Council ,PEOPLE,13002639143,CWD INDEPENDENT PLACEMENTS,9270008,INDEPENDENT RESIDENTIAL PMENT,21/08/2017,17420,"1,302.00",PROGRESSIVE CARE LTD,CT249917780,Children's Homes,34354800
Sheffield City Council ,PEOPLE,13002639143,CWD INDEPENDENT PLACEMENTS,9270008,INDEPENDENT RESIDENTIAL PMENT,23/08/2017,17459,744.00,PROGRESSIVE CARE LTD,CT249917780,Children's Homes,34354800
Sheffield City Council ,PEOPLE,13002639405,SEMI INDEPENDENT LIVING,9270008,INDEPENDENT RESIDENTIAL PMENT,21/08/2017,17509,"-4,002.00",PROGRESSIVE CARE LTD,CT249917780,Children's Homes,34354800
Sheffield City Council ,PEOPLE,13001639006,UASC/ASYLUM 16-17,6210000,RENTS,30/08/2017,17521,"1,116.00",PROGRESSIVE CARE LTD,CT249917780,Children's Homes,34354800
Sheffield City Council ,CORPORATE,11992088888,BALANCE SHEET,800001,AP MIGRATION CONTROL ACCOUNT,06/08/2017,18142,354.00,DIAMOND BUSINESS INTERIORS LTD,CT024253450,Office Furniture & Equipment,58097700
Sheffield City Council ,CORPORATE,11992088888,BALANCE SHEET,800001,AP MIGRATION CONTROL ACCOUNT,06/08/2017,18148,366.00,DIAMOND BUSINESS INTERIORS LTD,CT024253450,Office Furniture & Equipment,58097700
Sheffield City Council ,CORPORATE,11992088888,BALANCE SHEET,800001,AP MIGRATION CONTROL ACCOUNT,06/08/2017,18150,394.80,DIAMOND BUSINESS INTERIORS LTD,CT024253450,Office Furniture & Equipment,58097700
Sheffield City Council ,CORPORATE,11992088888,BALANCE SHEET,800001,AP MIGRATION CONTROL ACCOUNT,06/08/2017,18153,516.00,DIAMOND BUSINESS INTERIORS LTD,CT024253450,Office Furniture & Equipment,58097700
Sheffield City Council ,CORPORATE,11992088888,BALANCE SHEET,800001,AP MIGRATION CONTROL ACCOUNT,06/08/2017,18157,"3,286.80",DIAMOND BUSINESS INTERIORS LTD,CT024253450,Office Furniture & Equipment,58097700
Sheffield City Council ,CORPORATE,11992088888,BALANCE SHEET,800001,AP MIGRATION CONTROL ACCOUNT,06/08/2017,18163,366.00,DIAMOND BUSINESS INTERIORS LTD,CT024253450,Office Furniture & Equipment,58097700
Sheffield City Council ,CORPORATE,11992088888,BALANCE SHEET,800001,AP MIGRATION CONTROL ACCOUNT,06/08/2017,18165,408.24,DIAMOND BUSINESS INTERIORS LTD,CT024253450,Office Furniture & Equipment,58097700
Sheffield City Council ,PLACE,14068049314,SOUTH EAST SHEFFIELD,8050000,FURNITURE PURCHASES,25/08/2017,18230,515.00,DIAMOND BUSINESS INTERIORS LTD,CT024253450,Office Furniture & Equipment,58097700
Sheffield City Council ,PEOPLE,13002639284,IFA's UNDER 16,9270009,INDEPENDENT FOSTERING,11/08/2017,18298,"2,930.48",CHILDRENS FAMILY TRUST,CT249917780,Children's Homes,59931400
Sheffield City Council ,CORPORATE,11992088888,BALANCE SHEET,800001,AP MIGRATION CONTROL ACCOUNT,06/08/2017,18409,"1,294.26",THE TILE PLACE (DRONFIELD) LTD,CT071878060,Tile Stockists,64473100
Sheffield City Council ,CORPORATE,11992088888,BALANCE SHEET,800001,AP MIGRATION CONTROL ACCOUNT,06/08/2017,18410,987.60,THE TILE PLACE (DRONFIELD) LTD,CT071878060,Tile Stockists,64473100
Sheffield City Council ,PEOPLE,13002639284,IFA's UNDER 16,9270009,INDEPENDENT FOSTERING,23/08/2017,18447,"3,244.46",CHILDRENS FAMILY TRUST,CT249917780,Children's Homes,59931400
Sheffield City Council ,PLACE,11850000000,RESPONSIVE REPAIRS,8530001,SUBCONTRACTOR GENERAL,30/08/2017,19177,"2,428.05",RICHMOND ENVIRONMENTAL SERVICES,CT072127660,Drain & Sewer Clearance,33147200
Sheffield City Council ,CORPORATE,11992088888,BALANCE SHEET,800001,AP MIGRATION CONTROL ACCOUNT,06/08/2017,19224,420.00,RICHMOND ENVIRONMENTAL SERVICES,CT072127660,Drain & Sewer Clearance,33147200
Sheffield City Council ,CORPORATE,11992088888,BALANCE SHEET,800001,AP MIGRATION CONTROL ACCOUNT,06/08/2017,19225,"5,255.28",RICHMOND ENVIRONMENTAL SERVICES,CT072127660,Drain & Sewer Clearance,33147200
Sheffield City Council ,CORPORATE,11992088888,BALANCE SHEET,800001,AP MIGRATION CONTROL ACCOUNT,06/08/2017,19226,"2,596.89",RICHMOND ENVIRONMENTAL SERVICES,CT072127660,Drain & Sewer Clearance,33147200
Sheffield City Council ,CORPORATE,11992088888,BALANCE SHEET,800001,AP MIGRATION CONTROL ACCOUNT,06/08/2017,19295,992.40,PREMIER GLAZING SERVICES LTD,CT079940470,Glaziers,45738800
Sheffield City Council ,CORPORATE,11992088888,BALANCE SHEET,800001,AP MIGRATION CONTROL ACCOUNT,06/08/2017,19644,812.04,FORENSIC TESTING SERVICE LTD,CT149950345,Medical & Dental Laboratories,55775000
Sheffield City Council ,CORPORATE,11992088888,BALANCE SHEET,800001,AP MIGRATION CONTROL ACCOUNT,06/08/2017,19675,262.80,FORENSIC TESTING SERVICE LTD,CT149950345,Medical & Dental Laboratories,55775000
Sheffield City Council ,CORPORATE,11992088888,BALANCE SHEET,800001,AP MIGRATION CONTROL ACCOUNT,06/08/2017,19712,293.10,FORENSIC TESTING SERVICE LTD,CT149950345,Medical & Dental Laboratories,55775000
Sheffield City Council ,CORPORATE,11992088888,BALANCE SHEET,800001,AP MIGRATION CONTROL ACCOUNT,06/08/2017,19729,250.20,FORENSIC TESTING SERVICE LTD,CT149950345,Medical & Dental Laboratories,55775000
Sheffield City Council ,PEOPLE,13002639284,IFA's UNDER 16,9270009,INDEPENDENT FOSTERING,24/08/2017,19737,"4,823.91",ACTION FOR CHILDREN,CT230417020,Charities & Voluntary Organisations,50368200
Sheffield City Council ,CORPORATE,11992088888,BALANCE SHEET,800001,AP MIGRATION CONTROL ACCOUNT,06/08/2017,19795,464.88,FORENSIC TESTING SERVICE LTD,CT149950345,Medical & Dental Laboratories,55775000
Sheffield City Council ,CORPORATE,11992088888,BALANCE SHEET,800001,AP MIGRATION CONTROL ACCOUNT,06/08/2017,19873,322.20,FORENSIC TESTING SERVICE LTD,CT149950345,Medical & Dental Laboratories,55775000
Sheffield City Council ,CORPORATE,11992088888,BALANCE SHEET,800001,AP MIGRATION CONTROL ACCOUNT,06/08/2017,20400,"2,502.48",HOUSE OF LOGOS LTD,CT025905890,Badges & Emblems,29607300
Sheffield City Council ,PEOPLE,13002639284,IFA's UNDER 16,9270009,INDEPENDENT FOSTERING,23/08/2017,23428,"3,554.77",THE FOSTER CARE CO-OPERATIVE LTD,CT240201880,Adoption & Fostering,43376100
Sheffield City Council ,PEOPLE,13002639284,IFA's UNDER 16,9270009,INDEPENDENT FOSTERING,23/08/2017,23429,"3,218.30",THE FOSTER CARE CO-OPERATIVE LTD,CT240201880,Adoption & Fostering,43376100
Sheffield City Council ,PEOPLE,13002639284,IFA's UNDER 16,9270009,INDEPENDENT FOSTERING,23/08/2017,23430,"3,387.68",THE FOSTER CARE CO-OPERATIVE LTD,CT240201880,Adoption & Fostering,43376100
Sheffield City Council ,PEOPLE,13005239323,DRUG & SUBSTANCE,9120000,OTHER AGENCIES,23/08/2017,23460,"30,280.67",CGL,CT140826710,Doctors,58295700
Sheffield City Council ,CORPORATE,11992088888,BALANCE SHEET,800001,AP MIGRATION CONTROL ACCOUNT,06/08/2017,23497,"30,280.67",CGL,CT140826710,Doctors,58295700
Sheffield City Council ,PEOPLE,13002639405,SEMI INDEPENDENT LIVING,9270008,INDEPENDENT RESIDENTIAL PMENT,24/08/2017,23518,"2,103.57",NEXT STEP CARE MANAGEMENT LTD,CT249917780,Children's Homes,58658500
Sheffield City Council ,PEOPLE,13002639405,SEMI INDEPENDENT LIVING,9270008,INDEPENDENT RESIDENTIAL PMENT,24/08/2017,23519,"1,605.36",NEXT STEP CARE MANAGEMENT LTD,CT249917780,Children's Homes,58658500
Sheffield City Council ,PEOPLE,13002639405,SEMI INDEPENDENT LIVING,9270008,INDEPENDENT RESIDENTIAL PMENT,24/08/2017,23521,"1,605.36",NEXT STEP CARE MANAGEMENT LTD,CT249917780,Children's Homes,58658500
Sheffield City Council ,PEOPLE,13001639007,UASC/ASYLUM - LEAVING CARE,6210000,RENTS,23/08/2017,23522,"2,103.57",NEXT STEP CARE MANAGEMENT LTD,CT249917780,Children's Homes,58658500
Sheffield City Council ,PEOPLE,13002639405,SEMI INDEPENDENT LIVING,9270008,INDEPENDENT RESIDENTIAL PMENT,24/08/2017,23524,"1,605.36",NEXT STEP CARE MANAGEMENT LTD,CT249917780,Children's Homes,58658500
Sheffield City Council ,PEOPLE,13002639405,SEMI INDEPENDENT LIVING,9270008,INDEPENDENT RESIDENTIAL PMENT,24/08/2017,23529,"1,904.29",NEXT STEP CARE MANAGEMENT LTD,CT249917780,Children's Homes,58658500
Sheffield City Council ,PEOPLE,13002639405,SEMI INDEPENDENT LIVING,9270008,INDEPENDENT RESIDENTIAL PMENT,24/08/2017,23531,"1,900.00",NEXT STEP CARE MANAGEMENT LTD,CT249917780,Children's Homes,58658500
Sheffield City Council ,PEOPLE,13002639405,SEMI INDEPENDENT LIVING,9270008,INDEPENDENT RESIDENTIAL PMENT,24/08/2017,23543,"1,605.36",NEXT STEP CARE MANAGEMENT LTD,CT249917780,Children's Homes,58658500
Sheffield City Council ,CORPORATE,11992088888,BALANCE SHEET,800001,AP MIGRATION CONTROL ACCOUNT,06/08/2017,23544,"-57,385.04",LONDON & REGIONAL (SHEFFIELD) LIMITED,CT130447846,Letting Agents,32500600
Sheffield City Council ,CORPORATE,11992088888,BALANCE SHEET,800001,AP MIGRATION CONTROL ACCOUNT,06/08/2017,24132,840.00,OCTAGON DESIGN & MARKETING LTD,CT180162450,Publishers,43998200
Sheffield City Council ,CORPORATE,11992088888,BALANCE SHEET,800001,AP MIGRATION CONTROL ACCOUNT,06/08/2017,24529,"15,882.00",SOUTH YORKSHIRE TARMACADAM CONTRACTORS,CT079904980,Asphalt & Coated Macadam Laying Contract,50573300
Sheffield City Council ,CORPORATE,11992088888,BALANCE SHEET,800001,AP MIGRATION CONTROL ACCOUNT,06/08/2017,24540,"10,845.00",SOUTH YORKSHIRE TARMACADAM CONTRACTORS,CT079904980,Asphalt & Coated Macadam Laying Contract,50573300
Sheffield City Council ,CORPORATE,11992088888,BALANCE SHEET,800001,AP MIGRATION CONTROL ACCOUNT,06/08/2017,24630,619.92,ARTHURS SKIPS LIMITED,CT102521480,Skip Hire & Rubbish Clearance & Collecti,30830800
Sheffield City Council ,PEOPLE,13002639428,RESIDENTIAL UNDER 16's,9270008,INDEPENDENT RESIDENTIAL PMENT,24/08/2017,24832,"10,163.66",CARE TODAY,CT249917780,Children's Homes,38272700
Sheffield City Council ,CORPORATE,11992088888,BALANCE SHEET,800001,AP MIGRATION CONTROL ACCOUNT,06/08/2017,25014,316.80,ST MARYS CONFERENCE AND CATERING LTD,CT030216040,Caterers,37618600
Sheffield City Council ,CORPORATE,11992088888,BALANCE SHEET,800001,AP MIGRATION CONTROL ACCOUNT,06/08/2017,25037,460.00,ST MARYS CONFERENCE AND CATERING LTD,CT030216040,Caterers,37618600
Sheffield City Council ,CORPORATE,11992088888,BALANCE SHEET,800001,AP MIGRATION CONTROL ACCOUNT,06/08/2017,25065,400.00,ST MARYS CONFERENCE AND CATERING LTD,CT030216040,Caterers,37618600
Sheffield City Council ,CORPORATE,11992088888,BALANCE SHEET,800001,AP MIGRATION CONTROL ACCOUNT,06/08/2017,25068,"7,728.00",ST MARYS CONFERENCE AND CATERING LTD,CT030216040,Caterers,37618600
Sheffield City Council ,PLACE,12018324407,DISPOSALS/ACQUISITIONS/VALNS,8440000,FEE EXPENSES,22/08/2017,26055,"5,552.50",DLP PLANNING LTD,CT074679300,Town Planning Consultants,54652800
Sheffield City Council ,CORPORATE,11992088888,BALANCE SHEET,800001,AP MIGRATION CONTROL ACCOUNT,06/08/2017,26761,294.00,SUNNY MEADOWS NURSERY,CT090453088,Nurseries & Creches,37434000
Sheffield City Council ,CORPORATE,11992088888,BALANCE SHEET,800001,AP MIGRATION CONTROL ACCOUNT,06/08/2017,26762,294.00,SUNNY MEADOWS NURSERY,CT090453088,Nurseries & Creches,37434000
Sheffield City Council ,CORPORATE,11992088888,BALANCE SHEET,800001,AP MIGRATION CONTROL ACCOUNT,06/08/2017,26763,294.00,SUNNY MEADOWS NURSERY,CT090453088,Nurseries & Creches,37434000
Sheffield City Council ,CORPORATE,11992088888,BALANCE SHEET,800001,AP MIGRATION CONTROL ACCOUNT,06/08/2017,27078,360.00,C AND S FABRICATIONS LTD,CT079973510,Steel Fabricators & Erectors,64589700
Sheffield City Council ,CORPORATE,11992088888,BALANCE SHEET,800001,AP MIGRATION CONTROL ACCOUNT,06/08/2017,27084,"1,440.00",C AND S FABRICATIONS LTD,CT079973510,Steel Fabricators & Erectors,64589700
Sheffield City Council ,CORPORATE,11992088888,BALANCE SHEET,800001,AP MIGRATION CONTROL ACCOUNT,06/08/2017,27085,720.00,C AND S FABRICATIONS LTD,CT079973510,Steel Fabricators & Erectors,64589700
Sheffield City Council ,CORPORATE,11992088888,BALANCE SHEET,800001,AP MIGRATION CONTROL ACCOUNT,06/08/2017,27719,"1,560.00",NORTHERN DRIVES AND CONTROLS LTD,CT075330045,Electrical Engineers,64538200
Sheffield City Council ,PEOPLE,13002639284,IFA's UNDER 16,9270009,INDEPENDENT FOSTERING,23/08/2017,28630,"3,414.65",PARALLEL PARENTS LTD,CT240201880,Adoption & Fostering,52194000
Sheffield City Council ,PEOPLE,13002639284,IFA's UNDER 16,9270009,INDEPENDENT FOSTERING,23/08/2017,28819,"3,454.33",PARALLEL PARENTS LTD,CT240201880,Adoption & Fostering,52194000
Sheffield City Council ,PEOPLE,14009242034,PURCHASING LEARNING DISABILITI,1780000,ERROR SUSPENSE - CAREFIRST,24/08/2017,29692,"9,742.99",THE KEYS GROUP (BETTERCARE KEYS LTD),CT249917780,Children's Homes,32535300
Sheffield City Council ,PEOPLE,14009242034,PURCHASING LEARNING DISABILITI,9190003,CITYWIDE SPOT,25/08/2017,29959,"1,200.00",SPECTRUM SOCIAL CARE LTD,CT160631230,Employment & Recruitment Agencies,32860800
Sheffield City Council ,PEOPLE,14009242034,PURCHASING LEARNING DISABILITI,9190003,CITYWIDE SPOT,25/08/2017,29960,"1,200.00",SPECTRUM SOCIAL CARE LTD,CT160631230,Employment & Recruitment Agencies,32860800
Sheffield City Council ,PEOPLE,14009242034,PURCHASING LEARNING DISABILITI,9190003,CITYWIDE SPOT,25/08/2017,29961,"1,200.00",SPECTRUM SOCIAL CARE LTD,CT160631230,Employment & Recruitment Agencies,32860800
Sheffield City Council ,CORPORATE,11992088888,BALANCE SHEET,800001,AP MIGRATION CONTROL ACCOUNT,06/08/2017,30018,261.60,MINDER SECURITY AND FIRE LTD,CT229969210,Security Equipment Installers,44976500
Sheffield City Council ,PEOPLE,13002639283,INDEPENDENT FOSTER PLACE 16+,9270009,INDEPENDENT FOSTERING,11/08/2017,31408,"3,695.52",TEAM FOSTERING,CT240201880,Adoption & Fostering,35208200
Sheffield City Council ,PEOPLE,13001639006,UASC/ASYLUM 16-17,9270009,INDEPENDENT FOSTERING,30/08/2017,31411,"3,010.00",TEAM FOSTERING,CT240201880,Adoption & Fostering,35208200
Sheffield City Council ,PEOPLE,13002639284,IFA's UNDER 16,9270009,INDEPENDENT FOSTERING,30/08/2017,31412,"2,934.76",TEAM FOSTERING,CT240201880,Adoption & Fostering,35208200
Sheffield City Council ,PEOPLE,13001639006,UASC/ASYLUM 16-17,9270009,INDEPENDENT FOSTERING,30/08/2017,31413,"3,010.00",TEAM FOSTERING,CT240201880,Adoption & Fostering,35208200
Sheffield City Council ,PEOPLE,13002639284,IFA's UNDER 16,9270009,INDEPENDENT FOSTERING,30/08/2017,31414,"2,983.52",TEAM FOSTERING,CT240201880,Adoption & Fostering,35208200
Sheffield City Council ,PEOPLE,13002639284,IFA's UNDER 16,9270009,INDEPENDENT FOSTERING,30/08/2017,31415,"2,870.56",TEAM FOSTERING,CT240201880,Adoption & Fostering,35208200
Sheffield City Council ,PEOPLE,13002639284,IFA's UNDER 16,9270009,INDEPENDENT FOSTERING,30/08/2017,31416,"2,847.60",TEAM FOSTERING,CT240201880,Adoption & Fostering,35208200
Sheffield City Council ,PEOPLE,13002639283,INDEPENDENT FOSTER PLACE 16+,9270009,INDEPENDENT FOSTERING,30/08/2017,31417,"1,360.00",TEAM FOSTERING,CT240201880,Adoption & Fostering,35208200
Sheffield City Council ,PEOPLE,13002639284,IFA's UNDER 16,9270009,INDEPENDENT FOSTERING,25/08/2017,31418,"2,645.00",TEAM FOSTERING,CT240201880,Adoption & Fostering,35208200
Sheffield City Council ,PEOPLE,13002639284,IFA's UNDER 16,9270009,INDEPENDENT FOSTERING,30/08/2017,31419,"3,010.00",TEAM FOSTERING,CT240201880,Adoption & Fostering,35208200
Sheffield City Council ,PEOPLE,13002639283,INDEPENDENT FOSTER PLACE 16+,9270009,INDEPENDENT FOSTERING,30/08/2017,31420,"3,220.00",TEAM FOSTERING,CT240201880,Adoption & Fostering,35208200
Sheffield City Council ,PEOPLE,13002639283,INDEPENDENT FOSTER PLACE 16+,9270009,INDEPENDENT FOSTERING,30/08/2017,31421,"2,934.76",TEAM FOSTERING,CT240201880,Adoption & Fostering,35208200
Sheffield City Council ,PEOPLE,13002639405,SEMI INDEPENDENT LIVING,9270009,INDEPENDENT FOSTERING,30/08/2017,31422,-5.46,TEAM FOSTERING,CT240201880,Adoption & Fostering,35208200
Sheffield City Council ,PEOPLE,13002639284,IFA's UNDER 16,9270009,INDEPENDENT FOSTERING,30/08/2017,31423,"3,590.88",TEAM FOSTERING,CT240201880,Adoption & Fostering,35208200
Sheffield City Council ,PEOPLE,13001639006,UASC/ASYLUM 16-17,9270009,INDEPENDENT FOSTERING,30/08/2017,31424,"3,010.00",TEAM FOSTERING,CT240201880,Adoption & Fostering,35208200
Sheffield City Council ,PEOPLE,13001639006,UASC/ASYLUM 16-17,9270009,INDEPENDENT FOSTERING,30/08/2017,31425,"3,055.08",TEAM FOSTERING,CT240201880,Adoption & Fostering,35208200
Sheffield City Council ,PEOPLE,13002639283,INDEPENDENT FOSTER PLACE 16+,9270009,INDEPENDENT FOSTERING,30/08/2017,31426,"3,695.52",TEAM FOSTERING,CT240201880,Adoption & Fostering,35208200
Sheffield City Council ,PEOPLE,13002639284,IFA's UNDER 16,9270009,INDEPENDENT FOSTERING,30/08/2017,31427,"3,010.00",TEAM FOSTERING,CT240201880,Adoption & Fostering,35208200
Sheffield City Council ,PEOPLE,13002639284,IFA's UNDER 16,9270009,INDEPENDENT FOSTERING,30/08/2017,31428,"3,010.00",TEAM FOSTERING,CT240201880,Adoption & Fostering,35208200
Sheffield City Council ,PEOPLE,13002639283,INDEPENDENT FOSTER PLACE 16+,9270009,INDEPENDENT FOSTERING,30/08/2017,31430,"2,946.46",TEAM FOSTERING,CT240201880,Adoption & Fostering,35208200
Sheffield City Council ,PEOPLE,13002639284,IFA's UNDER 16,9270009,INDEPENDENT FOSTERING,30/08/2017,31431,"2,946.46",TEAM FOSTERING,CT240201880,Adoption & Fostering,35208200
Sheffield City Council ,PEOPLE,13002639284,IFA's UNDER 16,9270009,INDEPENDENT FOSTERING,30/08/2017,31432,"3,590.88",TEAM FOSTERING,CT240201880,Adoption & Fostering,35208200
Sheffield City Council ,PEOPLE,13002639284,IFA's UNDER 16,9270009,INDEPENDENT FOSTERING,30/08/2017,31433,"3,010.00",TEAM FOSTERING,CT240201880,Adoption & Fostering,35208200
Sheffield City Council ,PEOPLE,13002639283,INDEPENDENT FOSTER PLACE 16+,9270009,INDEPENDENT FOSTERING,30/08/2017,31434,"2,985.92",TEAM FOSTERING,CT240201880,Adoption & Fostering,35208200
Sheffield City Council ,PEOPLE,13001639006,UASC/ASYLUM 16-17,9270009,INDEPENDENT FOSTERING,30/08/2017,31435,"3,010.00",TEAM FOSTERING,CT240201880,Adoption & Fostering,35208200
Sheffield City Council ,PEOPLE,13002639143,CWD INDEPENDENT PLACEMENTS,9270009,INDEPENDENT FOSTERING,30/08/2017,31436,"4,000.00",TEAM FOSTERING,CT240201880,Adoption & Fostering,35208200
Sheffield City Council ,PEOPLE,13002639284,IFA's UNDER 16,9270009,INDEPENDENT FOSTERING,30/08/2017,31437,"2,934.76",TEAM FOSTERING,CT240201880,Adoption & Fostering,35208200
Sheffield City Council ,PEOPLE,13002639283,INDEPENDENT FOSTER PLACE 16+,9270009,INDEPENDENT FOSTERING,30/08/2017,31438,"3,188.88",TEAM FOSTERING,CT240201880,Adoption & Fostering,35208200
Sheffield City Council ,CORPORATE,11992088888,BALANCE SHEET,800001,AP MIGRATION CONTROL ACCOUNT,06/08/2017,31719,594.72,NORTHERN TAXIS LIMITED,CT261676350,Taxis & Private Hire,30118200
Sheffield City Council ,CORPORATE,11992088888,BALANCE SHEET,800001,AP MIGRATION CONTROL ACCOUNT,06/08/2017,32067,"2,081.64",NORTHERN TAXIS LIMITED,CT261676350,Taxis & Private Hire,30118200
Sheffield City Council ,CORPORATE,11992088888,BALANCE SHEET,800001,AP MIGRATION CONTROL ACCOUNT,06/08/2017,32116,720.00,TELEQUIP C & SS LTD,CT220369240,Security Services,40805000
Sheffield City Council ,PEOPLE,14009242034,PURCHASING LEARNING DISABILITI,9190003,CITYWIDE SPOT,11/08/2017,32126,"5,040.00",SUN HEALTHCARE LTD,CT230164710,Residential Care Homes,57320800
Sheffield City Council ,CORPORATE,11992088888,BALANCE SHEET,800001,AP MIGRATION CONTROL ACCOUNT,06/08/2017,32282,"574,200.18",EQUITIX (HOWDEN HOUSE) LTD,CT071633630,Facilities Management,45658200
Sheffield City Council ,PEOPLE,14009242034,PURCHASING LEARNING DISABILITI,9190003,CITYWIDE SPOT,31/08/2017,32396,"5,040.00",SUN HEALTHCARE LTD,CT230164710,Residential Care Homes,57320800
Sheffield City Council ,CORPORATE,11992088888,BALANCE SHEET,800001,AP MIGRATION CONTROL ACCOUNT,06/08/2017,32705,"1,293.60",RILMAC INSULATION LIMITED,CT071004970,ASBESTOS SURVEYS & REMOVAL,64566300
Sheffield City Council ,CORPORATE,11992088888,BALANCE SHEET,800001,AP MIGRATION CONTROL ACCOUNT,06/08/2017,32707,"2,995.20",RILMAC INSULATION LIMITED,CT071004970,ASBESTOS SURVEYS & REMOVAL,64566300
Sheffield City Council ,CORPORATE,11992088888,BALANCE SHEET,800001,AP MIGRATION CONTROL ACCOUNT,06/08/2017,32708,"3,262.80",RILMAC INSULATION LIMITED,CT071004970,ASBESTOS SURVEYS & REMOVAL,64566300
Sheffield City Council ,CORPORATE,11992088888,BALANCE SHEET,800001,AP MIGRATION CONTROL ACCOUNT,06/08/2017,32709,"2,611.20",RILMAC INSULATION LIMITED,CT071004970,ASBESTOS SURVEYS & REMOVAL,64566300
Sheffield City Council ,PLACE,14066949156,REPAIRS ADJUSTMENTS,8440000,FEE EXPENSES,31/08/2017,32718,"2,691.50",RILMAC INSULATION LIMITED,CT071004970,ASBESTOS SURVEYS & REMOVAL,64566300
Sheffield City Council ,PLACE,11850200000,VOIDS REPAIRS,8530004,SUBCONTRACTOR ASBESTOS,30/08/2017,32880,"1,261.01",RILMAC INSULATION LIMITED,CT071004970,ASBESTOS SURVEYS & REMOVAL,64566300
Sheffield City Council ,PLACE,11853000000,CSSR CORE CONTRACT,8530001,SUBCONTRACTOR GENERAL,30/08/2017,32881,"1,461.00",RILMAC INSULATION LIMITED,CT071004970,ASBESTOS SURVEYS & REMOVAL,64566300
Sheffield City Council ,PLACE,11850000000,RESPONSIVE REPAIRS,8530004,SUBCONTRACTOR ASBESTOS,30/08/2017,32882,595.01,RILMAC INSULATION LIMITED,CT071004970,ASBESTOS SURVEYS & REMOVAL,64566300
Sheffield City Council ,CORPORATE,11992088888,BALANCE SHEET,800001,AP MIGRATION CONTROL ACCOUNT,06/08/2017,32982,312.81,NUMILL LTD,CT079931589,Engineering Services,62339300
Sheffield City Council ,CORPORATE,11992088888,BALANCE SHEET,800001,AP MIGRATION CONTROL ACCOUNT,06/08/2017,33295,"7,382.59",INDEPENDENT CONTRACTOR SECURITY LTD,CT220369240,Security Services,55509500
Sheffield City Council ,CORPORATE,11992088888,BALANCE SHEET,800001,AP MIGRATION CONTROL ACCOUNT,06/08/2017,35371,"1,724.40",D B AUTO ELECTRICAL SUPPLIES,CT261320390,"Commercial Vehicle Servicing, Repairs, P",58839700
Sheffield City Council ,CORPORATE,11992088888,BALANCE SHEET,800001,AP MIGRATION CONTROL ACCOUNT,06/08/2017,35380,"1,871.28",D B AUTO ELECTRICAL SUPPLIES,CT261320390,"Commercial Vehicle Servicing, Repairs, P",58839700
Sheffield City Council ,CORPORATE,11992088888,BALANCE SHEET,800001,AP MIGRATION CONTROL ACCOUNT,06/08/2017,36097,262.80,BROADFIELD MOWERS LTD,CT101247400,Lawnmowers & Garden Machinery - Sales &,29994100
Sheffield City Council ,PEOPLE,14009242034,PURCHASING LEARNING DISABILITI,9190007,FUNDED HOME SUPPORT,14/08/2017,36206,436.00,ABBEYCARE & NURSING,CT230243419,Home Care Services,51841100
Sheffield City Council ,CORPORATE,11992088888,BALANCE SHEET,800001,AP MIGRATION CONTROL ACCOUNT,06/08/2017,36469,-239.82,HULLEYS,CT030637950,Frozen Foods - Wholesale,31836600
Sheffield City Council ,PEOPLE,14009242034,PURCHASING LEARNING DISABILITI,9250002,INDEPENDENT DAY CARE,11/08/2017,36561,"2,269.72",CAMPHILL VILLAGE TRUST,CT230417020,Charities & Voluntary Organisations,36186800
Sheffield City Council ,PLACE,11513815139,TRANSPORT FLEET MANAGEMENT,7040000,OTHER VEHICLE RUNNING COSTS,17/08/2017,37215,"1,880.16",T C HARRISON FORD,CT260213540,Car Dealers,37783700
Sheffield City Council ,PEOPLE,14009242034,PURCHASING LEARNING DISABILITI,9250002,INDEPENDENT DAY CARE,11/08/2017,37342,"2,269.72",CAMPHILL VILLAGE TRUST,CT230417020,Charities & Voluntary Organisations,36186800
Sheffield City Council ,CORPORATE,11992088888,BALANCE SHEET,800001,AP MIGRATION CONTROL ACCOUNT,06/08/2017,37868,360.00,STARWELD ENGINEERING LTD,CT029984600,Wheels & Castors,44617800
Sheffield City Council ,PEOPLE,14009346039,ADULT SOCIAL CARE PURCHASING,9230006,CCSP TRANSPORT,11/08/2017,38333,427.20,SHEFFIELD COMMUNITY TRANSPORT,CT230417020,Charities & Voluntary Organisations,29635600
Sheffield City Council ,PEOPLE,14009242034,PURCHASING LEARNING DISABILITI,1780000,ERROR SUSPENSE - CAREFIRST,11/08/2017,38343,444.00,SHEFFIELD COMMUNITY TRANSPORT,CT230417020,Charities & Voluntary Organisations,29635600
Sheffield City Council ,PEOPLE,14009346039,ADULT SOCIAL CARE PURCHASING,9230006,CCSP TRANSPORT,11/08/2017,38345,861.20,SHEFFIELD COMMUNITY TRANSPORT,CT230417020,Charities & Voluntary Organisations,29635600
Sheffield City Council ,PEOPLE,14009242034,PURCHASING LEARNING DISABILITI,9230006,CCSP TRANSPORT,11/08/2017,38349,300.00,SHEFFIELD COMMUNITY TRANSPORT,CT230417020,Charities & Voluntary Organisations,29635600
Sheffield City Council ,PEOPLE,14009346039,ADULT SOCIAL CARE PURCHASING,9230006,CCSP TRANSPORT,11/08/2017,38355,410.70,SHEFFIELD COMMUNITY TRANSPORT,CT230417020,Charities & Voluntary Organisations,29635600
Sheffield City Council ,PEOPLE,14009346039,ADULT SOCIAL CARE PURCHASING,9230006,CCSP TRANSPORT,11/08/2017,38362,879.04,SHEFFIELD COMMUNITY TRANSPORT,CT230417020,Charities & Voluntary Organisations,29635600
Sheffield City Council ,PEOPLE,14009242034,PURCHASING LEARNING DISABILITI,9230006,CCSP TRANSPORT,11/08/2017,38366,300.00,SHEFFIELD COMMUNITY TRANSPORT,CT230417020,Charities & Voluntary Organisations,29635600
Sheffield City Council ,PEOPLE,14009242034,PURCHASING LEARNING DISABILITI,9230006,CCSP TRANSPORT,11/08/2017,38368,704.80,SHEFFIELD COMMUNITY TRANSPORT,CT230417020,Charities & Voluntary Organisations,29635600
Sheffield City Council ,PEOPLE,14009346039,ADULT SOCIAL CARE PURCHASING,9230006,CCSP TRANSPORT,30/08/2017,38597,329.40,SHEFFIELD COMMUNITY TRANSPORT,CT230417020,Charities & Voluntary Organisations,29635600
Sheffield City Council ,CORPORATE,11992088888,BALANCE SHEET,800001,AP MIGRATION CONTROL ACCOUNT,06/08/2017,38605,336.00,ACTION FIRST RECRUITMENT LTD,CT020205170,Assessors,63915700
Sheffield City Council ,CORPORATE,11992088888,BALANCE SHEET,800001,AP MIGRATION CONTROL ACCOUNT,06/08/2017,38606,672.00,ACTION FIRST RECRUITMENT LTD,CT020205170,Assessors,63915700
Sheffield City Council ,PEOPLE,14009242034,PURCHASING LEARNING DISABILITI,1780000,ERROR SUSPENSE - CAREFIRST,30/08/2017,38607,444.00,SHEFFIELD COMMUNITY TRANSPORT,CT230417020,Charities & Voluntary Organisations,29635600
Sheffield City Council ,PEOPLE,14009346039,ADULT SOCIAL CARE PURCHASING,9230006,CCSP TRANSPORT,31/08/2017,38609,896.00,SHEFFIELD COMMUNITY TRANSPORT,CT230417020,Charities & Voluntary Organisations,29635600
Sheffield City Council ,PEOPLE,14009242034,PURCHASING LEARNING DISABILITI,9230006,CCSP TRANSPORT,29/08/2017,38613,300.00,SHEFFIELD COMMUNITY TRANSPORT,CT230417020,Charities & Voluntary Organisations,29635600
Sheffield City Council ,PEOPLE,14009346039,ADULT SOCIAL CARE PURCHASING,9230006,CCSP TRANSPORT,30/08/2017,38619,421.80,SHEFFIELD COMMUNITY TRANSPORT,CT230417020,Charities & Voluntary Organisations,29635600
Sheffield City Council ,PEOPLE,14009242034,PURCHASING LEARNING DISABILITI,9230006,CCSP TRANSPORT,31/08/2017,38630,300.00,SHEFFIELD COMMUNITY TRANSPORT,CT230417020,Charities & Voluntary Organisations,29635600
Sheffield City Council ,PEOPLE,14009242034,PURCHASING LEARNING DISABILITI,9230006,CCSP TRANSPORT,30/08/2017,38632,527.10,SHEFFIELD COMMUNITY TRANSPORT,CT230417020,Charities & Voluntary Organisations,29635600
Sheffield City Council ,PEOPLE,14009242034,PURCHASING LEARNING DISABILITI,1780000,ERROR SUSPENSE - CAREFIRST,31/08/2017,38633,353.20,SHEFFIELD COMMUNITY TRANSPORT,CT230417020,Charities & Voluntary Organisations,29635600
Sheffield City Council ,CORPORATE,11992088888,BALANCE SHEET,800001,AP MIGRATION CONTROL ACCOUNT,06/08/2017,40152,253.40,BLU,CT026379180,Towel Supply & Washroom Services,20340300
Sheffield City Council ,PLACE,11518915187,MINOR WORKS,6030000,REPAIRS AND MTCE - RESPONSIVE,31/08/2017,41479,"2,235.00",EASTWOOD & PARTNERS (CONST ENGS) LTD,CT121345412,INSURANCE - COMMERCIAL & VAN,20458000
Sheffield City Council ,CORPORATE,11992088888,BALANCE SHEET,800001,AP MIGRATION CONTROL ACCOUNT,06/08/2017,41569,"1,000.80",GROUNDSMAN TOOLS AND SUPPLIES LLP,CT023139290,Garden Tools,55477300
Sheffield City Council ,LOCAL ENTERPRISE PARTNERSHIP,33070830130,CORPORATE AFFAIRS,8250000,MARKETING EXPENSES,28/08/2017,41622,"6,000.00",DONCASTER CHAMBER OF COMMERCE,CT121212118,Business & Trade Organisations,47120300
Sheffield City Council ,LOCAL ENTERPRISE PARTNERSHIP,33070830130,CORPORATE AFFAIRS,8250000,MARKETING EXPENSES,28/08/2017,41776,"6,000.00",DONCASTER CHAMBER OF COMMERCE,CT121212118,Business & Trade Organisations,47120300
Sheffield City Council ,PLACE,12018724204,BUSINESS GROWTH ADVISORS,8440000,FEE EXPENSES,25/08/2017,Jul-17,"2,621.59",BLUEYONDER TTC SERVICES LIMITED,CT080112100,Business & Management Consultants,64616700
Sheffield City Council ,PLACE,14058200000,GATEWAY EXTENSION PROJECT,6210000,RENTS,30/08/2017,10-Jul-17,358.36,REDACTED PERSONAL DATA,CT190106700,Barristers,64804300
Sheffield City Council ,CORPORATE,11992088888,BALANCE SHEET,800001,AP MIGRATION CONTROL ACCOUNT,06/08/2017,21-Jul-17,464.14,BRICKNELLS RENTALS,CT010101266,Accommodation Agencies - Residential,62149000
Sheffield City Council ,CORPORATE,11992088888,BALANCE SHEET,800001,AP MIGRATION CONTROL ACCOUNT,06/08/2017,24-Jul-17,590.88,STAY & PLAY AFTER SCHOOL CLUB,CT091159760,Playgroups & Pre-school Education,59050800
Sheffield City Council ,CORPORATE,11992088888,BALANCE SHEET,800001,AP MIGRATION CONTROL ACCOUNT,06/08/2017,26-Jul-17,"1,123.20",DISABLED LIVING FOUNDATION,CT230417020,Charities & Voluntary Organisations,46958600
Sheffield City Council ,CORPORATE,11992088888,BALANCE SHEET,800001,AP MIGRATION CONTROL ACCOUNT,06/08/2017,26-Jul-17,"1,303.00",FLOWER ESTATE FAMILY ACTION (GROUP A/C),CT230417020,Charities & Voluntary Organisations,41861600
Sheffield City Council ,PLACE,14058200000,GATEWAY EXTENSION PROJECT,6210000,RENTS,31/08/2017,28-Jul-17,448.24,HALLAM HILLS,CT029932695,Estate Agents & Property Buyers,63610800
Sheffield City Council ,CORPORATE,11992088888,BALANCE SHEET,2260028,MAINTENANCE PAYMENTS,24/08/2017,Aug-17,392.07,CHILD MAINTENANCE SERVICE,CT210216580,Central Government,59337300
Sheffield City Council ,CORPORATE,11992088888,BALANCE SHEET,2260028,MAINTENANCE PAYMENTS,24/08/2017,Aug-17,"2,319.30",CHILD SUPPORT AGENCY,CT210216580,Central Government,30609000
Sheffield City Council ,CORPORATE,11992088888,BALANCE SHEET,2260031,NUGMW,24/08/2017,Aug-17,"9,476.96",GMB,CT160379530,Trade Unions,30610200
Sheffield City Council ,CORPORATE,11992088888,BALANCE SHEET,2260022,JUDGEMENT DEBTS AND FINES,24/08/2017,Aug-17,709.79,HMCTS,CT219948583,Local Government,30611700
Sheffield City Council ,CORPORATE,11992088888,BALANCE SHEET,2260018,GIVE ASYOUR EARN,24/08/2017,Aug-17,438.44,PENNIES FROM HEAVEN DISTRIBUTION,CT230417020,Charities & Voluntary Organisations,54551000
Sheffield City Council ,CORPORATE,11992088888,BALANCE SHEET,2260039,SCOTTISH EQUITABLE,24/08/2017,Aug-17,"7,995.45",SCOTTISH WIDOWS PLC,CT121556860,Pensions,30611300
Sheffield City Council ,CORPORATE,11992088888,BALANCE SHEET,2260009,CREDIT UNION,24/08/2017,Aug-17,"18,904.00",SHEFFIELD CREDIT UNION,CT129922940,Credit Unions,40039700
Sheffield City Council ,CORPORATE,11992088888,BALANCE SHEET,2260042,UCATT,24/08/2017,Aug-17,"2,799.46",U.C.A.T.T.,CT160379530,Trade Unions,30609800
Sheffield City Council ,CORPORATE,11992088888,BALANCE SHEET,2260043,UNISON,24/08/2017,Aug-17,"26,448.63",UNISON,CT160379530,Trade Unions,30609900
Sheffield City Council ,CORPORATE,11992088888,BALANCE SHEET,2260017,EETPU ELECTIONS,24/08/2017,Aug-17,"3,156.57",UNITE THE UNION,CT160379530,Trade Unions,30610400
Sheffield City Council ,CORPORATE,11992088888,BALANCE SHEET,800001,AP MIGRATION CONTROL ACCOUNT,06/08/2017,01/08/2017,345.00,WALTER MARTIN COACHES,CT261819610,Coach Hire,50412600
Sheffield City Council ,CORPORATE,11992088888,BALANCE SHEET,2260045,WESTFIELD (64771),24/08/2017,Aug-17,"43,719.02",WESTFIELD CONTRIBUTORY HEALTH SCHEME,CT121342295,Insurance - Health,30611500
Sheffield City Council ,CORPORATE,11992088888,BALANCE SHEET,800001,AP MIGRATION CONTROL ACCOUNT,06/08/2017,45606,"1,680.00",REDACTED PERSONAL DATA,CT071846860,Ladder Mnfrs,20934700
Sheffield City Council ,CORPORATE,11992088888,BALANCE SHEET,800001,AP MIGRATION CONTROL ACCOUNT,06/08/2017,45819,459.00,M&G OLYMPIC PRODUCTS LTD,CT079973510,Steel Fabricators & Erectors,46149100
Sheffield City Council ,CORPORATE,11992088888,BALANCE SHEET,800001,AP MIGRATION CONTROL ACCOUNT,06/08/2017,48028,996.00,NOCN,CT090167330,Schools & Colleges - Further Education,58073900
Sheffield City Council ,CORPORATE,11992088888,BALANCE SHEET,800001,AP MIGRATION CONTROL ACCOUNT,06/08/2017,48603,"2,382.00",MHG SUPPLIES,CT029973400,Stationery Suppliers,47443700
Sheffield City Council ,CORPORATE,11992088888,BALANCE SHEET,800001,AP MIGRATION CONTROL ACCOUNT,06/08/2017,48647,387.78,CENTRAL LAUNDRY EXPRESS,CT023747260,Laundries & Launderettes,40714100
Sheffield City Council ,CORPORATE,11992088888,BALANCE SHEET,800001,AP MIGRATION CONTROL ACCOUNT,06/08/2017,48681,301.30,CENTRAL LAUNDRY EXPRESS,CT023747260,Laundries & Launderettes,40714100
Sheffield City Council ,PEOPLE,13009233050,CONSTRUCTION DESIGN CENTRE,8440000,FEE EXPENSES,31/08/2017,48811,708.00,NOCN,CT090167330,Schools & Colleges - Further Education,58073900
Sheffield City Council ,PEOPLE,13001639006,UASC/ASYLUM 16-17,9270009,INDEPENDENT FOSTERING,21/08/2017,49283,"2,900.00",SUNBEAM FOSTERING AGENCY LTD,CT240201880,Adoption & Fostering,62908000
Sheffield City Council ,PEOPLE,13001639006,UASC/ASYLUM 16-17,9270009,INDEPENDENT FOSTERING,21/08/2017,49284,"2,900.00",SUNBEAM FOSTERING AGENCY LTD,CT240201880,Adoption & Fostering,62908000
Sheffield City Council ,CORPORATE,11992088888,BALANCE SHEET,800001,AP MIGRATION CONTROL ACCOUNT,06/08/2017,49373,954.72,1 ENV SOLUTIONS LIMITED,CT101557130,Pest & Vermin Control,62187900
Sheffield City Council ,CORPORATE,11992088888,BALANCE SHEET,800001,AP MIGRATION CONTROL ACCOUNT,06/08/2017,49479,288.00,1 ENV SOLUTIONS LIMITED,CT101557130,Pest & Vermin Control,62187900
Sheffield City Council ,PEOPLE,13001639006,UASC/ASYLUM 16-17,9270009,INDEPENDENT FOSTERING,11/08/2017,49965,"2,900.00",SUNBEAM FOSTERING AGENCY LTD,CT240201880,Adoption & Fostering,62908000
Sheffield City Council ,PEOPLE,13001639006,UASC/ASYLUM 16-17,9270009,INDEPENDENT FOSTERING,11/08/2017,49967,"2,900.00",SUNBEAM FOSTERING AGENCY LTD,CT240201880,Adoption & Fostering,62908000
Sheffield City Council ,CORPORATE,11992088888,BALANCE SHEET,800001,AP MIGRATION CONTROL ACCOUNT,06/08/2017,52199,774.00,SPA LANDSCAPING LIMITED,CT102180228,Tree Work & Forestry Services,48993600
Sheffield City Council ,CORPORATE,11992088888,BALANCE SHEET,800001,AP MIGRATION CONTROL ACCOUNT,06/08/2017,52698,"29,408.14",WITTUR LTD,CT074247960,Lifts - Servicing & Repairs,64546500
Sheffield City Council ,CORPORATE,11992088888,BALANCE SHEET,800001,AP MIGRATION CONTROL ACCOUNT,06/08/2017,52701,"6,092.40",WITTUR LTD,CT074247960,Lifts - Servicing & Repairs,64546500
Sheffield City Council ,CORPORATE,11992088888,BALANCE SHEET,800001,AP MIGRATION CONTROL ACCOUNT,06/08/2017,52702,"8,769.60",WITTUR LTD,CT074247960,Lifts - Servicing & Repairs,64546500
Sheffield City Council ,CORPORATE,11992088888,BALANCE SHEET,800001,AP MIGRATION CONTROL ACCOUNT,06/08/2017,52749,659.32,MICROFORM IMAGING LTD,CT025250972,Microfilming Services,31124900
Sheffield City Council ,CORPORATE,11992088888,BALANCE SHEET,800001,AP MIGRATION CONTROL ACCOUNT,06/08/2017,52919,"4,125.00",NATIONAL GOVERNORS ASSOCIATION,CT230417020,Charities & Voluntary Organisations,33696100
Sheffield City Council ,PLACE,11513800000,GENERAL ADMINISTRATION,6030000,REPAIRS AND MTCE - RESPONSIVE,31/08/2017,55581,320.00,MHH CONTRACTING LTD,CT079924582,Demolition & Dismantling Contractors,20532900
Sheffield City Council ,CORPORATE,11992088888,BALANCE SHEET,800001,AP MIGRATION CONTROL ACCOUNT,06/08/2017,56916,288.00,MHH CONTRACTING LTD,CT079924582,Demolition & Dismantling Contractors,20532900
Sheffield City Council ,CORPORATE,11992088888,BALANCE SHEET,800001,AP MIGRATION CONTROL ACCOUNT,06/08/2017,56922,288.00,MHH CONTRACTING LTD,CT079924582,Demolition & Dismantling Contractors,20532900
Sheffield City Council ,CORPORATE,11992088888,BALANCE SHEET,800001,AP MIGRATION CONTROL ACCOUNT,06/08/2017,57071,528.00,D FROST PLANT HIRE,CT079959020,Plant & Machinery Hire & Leasing,50164500
Sheffield City Council ,PEOPLE,14009242034,PURCHASING LEARNING DISABILITI,1780000,ERROR SUSPENSE - CAREFIRST,11/08/2017,58759,"2,086.42",AFFINITY TRUST,CT230417020,Charities & Voluntary Organisations,56590900
Sheffield City Council ,PEOPLE,14009346039,ADULT SOCIAL CARE PURCHASING,9240000,SUPPORTED LIVING CARE,11/08/2017,58761,282.45,AFFINITY TRUST,CT230417020,Charities & Voluntary Organisations,56590900
Sheffield City Council ,PEOPLE,14009242034,PURCHASING LEARNING DISABILITI,9240000,SUPPORTED LIVING CARE,11/08/2017,58762,884.51,AFFINITY TRUST,CT230417020,Charities & Voluntary Organisations,56590900
Sheffield City Council ,PEOPLE,14009242034,PURCHASING LEARNING DISABILITI,9240000,SUPPORTED LIVING CARE,11/08/2017,58763,"1,698.35",AFFINITY TRUST,CT230417020,Charities & Voluntary Organisations,56590900
Sheffield City Council ,PEOPLE,14009242034,PURCHASING LEARNING DISABILITI,9190007,FUNDED HOME SUPPORT,11/08/2017,58764,"1,518.09",AFFINITY TRUST,CT230417020,Charities & Voluntary Organisations,56590900
Sheffield City Council ,PEOPLE,14009242034,PURCHASING LEARNING DISABILITI,1780000,ERROR SUSPENSE - CAREFIRST,11/08/2017,58765,830.55,AFFINITY TRUST,CT230417020,Charities & Voluntary Organisations,56590900
Sheffield City Council ,PEOPLE,14009242034,PURCHASING LEARNING DISABILITI,9240000,SUPPORTED LIVING CARE,11/08/2017,58765,830.55,AFFINITY TRUST,CT230417020,Charities & Voluntary Organisations,56590900
Sheffield City Council ,PEOPLE,14009242034,PURCHASING LEARNING DISABILITI,9240000,SUPPORTED LIVING CARE,11/08/2017,58766,388.09,AFFINITY TRUST,CT230417020,Charities & Voluntary Organisations,56590900
Sheffield City Council ,PEOPLE,14009242034,PURCHASING LEARNING DISABILITI,9240000,SUPPORTED LIVING CARE,11/08/2017,58767,455.89,AFFINITY TRUST,CT230417020,Charities & Voluntary Organisations,56590900
Sheffield City Council ,PEOPLE,14009242034,PURCHASING LEARNING DISABILITI,9240000,SUPPORTED LIVING CARE,11/08/2017,58768,415.21,AFFINITY TRUST,CT230417020,Charities & Voluntary Organisations,56590900
Sheffield City Council ,PEOPLE,14009242034,PURCHASING LEARNING DISABILITI,9240000,SUPPORTED LIVING CARE,11/08/2017,58770,"1,297.00",AFFINITY TRUST,CT230417020,Charities & Voluntary Organisations,56590900
Sheffield City Council ,PEOPLE,14009242034,PURCHASING LEARNING DISABILITI,1780000,ERROR SUSPENSE - CAREFIRST,31/08/2017,59177,425.20,AFFINITY TRUST,CT230417020,Charities & Voluntary Organisations,56590900
Sheffield City Council ,PEOPLE,14009242034,PURCHASING LEARNING DISABILITI,9240000,SUPPORTED LIVING CARE,31/08/2017,59177,536.40,AFFINITY TRUST,CT230417020,Charities & Voluntary Organisations,56590900
Sheffield City Council ,PEOPLE,14009242034,PURCHASING LEARNING DISABILITI,9240000,SUPPORTED LIVING CARE,31/08/2017,59177,885.06,AFFINITY TRUST,CT230417020,Charities & Voluntary Organisations,56590900
Sheffield City Council ,PEOPLE,14009346039,ADULT SOCIAL CARE PURCHASING,9240000,SUPPORTED LIVING CARE,31/08/2017,59177,"1,129.80",AFFINITY TRUST,CT230417020,Charities & Voluntary Organisations,56590900
Sheffield City Council ,PEOPLE,14009242034,PURCHASING LEARNING DISABILITI,9240000,SUPPORTED LIVING CARE,31/08/2017,59177,"1,552.44",AFFINITY TRUST,CT230417020,Charities & Voluntary Organisations,56590900
Sheffield City Council ,PEOPLE,14009242034,PURCHASING LEARNING DISABILITI,9240000,SUPPORTED LIVING CARE,31/08/2017,59177,"1,633.46",AFFINITY TRUST,CT230417020,Charities & Voluntary Organisations,56590900
Sheffield City Council ,PEOPLE,14009242034,PURCHASING LEARNING DISABILITI,9240000,SUPPORTED LIVING CARE,31/08/2017,59177,"1,823.68",AFFINITY TRUST,CT230417020,Charities & Voluntary Organisations,56590900
Sheffield City Council ,PEOPLE,14009242034,PURCHASING LEARNING DISABILITI,9240000,SUPPORTED LIVING CARE,31/08/2017,59177,"3,223.72",AFFINITY TRUST,CT230417020,Charities & Voluntary Organisations,56590900
Sheffield City Council ,PEOPLE,14009242034,PURCHASING LEARNING DISABILITI,1780000,ERROR SUSPENSE - CAREFIRST,31/08/2017,59177,"3,322.20",AFFINITY TRUST,CT230417020,Charities & Voluntary Organisations,56590900
Sheffield City Council ,PEOPLE,14009242034,PURCHASING LEARNING DISABILITI,9240000,SUPPORTED LIVING CARE,31/08/2017,59177,"3,322.20",AFFINITY TRUST,CT230417020,Charities & Voluntary Organisations,56590900
Sheffield City Council ,PEOPLE,14009242034,PURCHASING LEARNING DISABILITI,9240000,SUPPORTED LIVING CARE,31/08/2017,59177,"3,538.04",AFFINITY TRUST,CT230417020,Charities & Voluntary Organisations,56590900
Sheffield City Council ,PEOPLE,14009242034,PURCHASING LEARNING DISABILITI,9240000,SUPPORTED LIVING CARE,31/08/2017,59177,"4,737.72",AFFINITY TRUST,CT230417020,Charities & Voluntary Organisations,56590900
Sheffield City Council ,PEOPLE,14009242034,PURCHASING LEARNING DISABILITI,9240000,SUPPORTED LIVING CARE,31/08/2017,59177,"6,688.58",AFFINITY TRUST,CT230417020,Charities & Voluntary Organisations,56590900
Sheffield City Council ,PEOPLE,14009242034,PURCHASING LEARNING DISABILITI,9190007,FUNDED HOME SUPPORT,31/08/2017,59177,"7,210.96",AFFINITY TRUST,CT230417020,Charities & Voluntary Organisations,56590900
Sheffield City Council ,PEOPLE,14009242034,PURCHASING LEARNING DISABILITI,1780000,ERROR SUSPENSE - CAREFIRST,31/08/2017,59177,"8,175.36",AFFINITY TRUST,CT230417020,Charities & Voluntary Organisations,56590900
Sheffield City Council ,RESOURCES,11200400000,FINANCE LEADERSHIP TEAM,5750000,TRAINING EXPENDITURE,29/08/2017,63132,"1,470.00",EAST LANCASHIRE CHAMBER OF COMMERCE,CT129916970,Chambers Of Commerce,52444200
Sheffield City Council ,RESOURCES,11200400000,FINANCE LEADERSHIP TEAM,5750000,TRAINING EXPENDITURE,29/08/2017,63132,"7,350.00",EAST LANCASHIRE CHAMBER OF COMMERCE,CT129916970,Chambers Of Commerce,52444200
Sheffield City Council ,PEOPLE,13002639284,IFA's UNDER 16,9270009,INDEPENDENT FOSTERING,23/08/2017,65618,"5,181.43",FIVE RIVERS CHILD CARE LTD,CT240201880,Adoption & Fostering,40181300
Sheffield City Council ,PEOPLE,13002639284,IFA's UNDER 16,9270009,INDEPENDENT FOSTERING,23/08/2017,65619,"3,411.11",FIVE RIVERS CHILD CARE LTD,CT240201880,Adoption & Fostering,40181300
Sheffield City Council ,PEOPLE,13002639284,IFA's UNDER 16,9270009,INDEPENDENT FOSTERING,23/08/2017,65620,"5,247.86",FIVE RIVERS CHILD CARE LTD,CT240201880,Adoption & Fostering,40181300
Sheffield City Council ,PEOPLE,13002639284,IFA's UNDER 16,9270009,INDEPENDENT FOSTERING,11/08/2017,65782,295.00,FIVE RIVERS CHILD CARE LTD,CT240201880,Adoption & Fostering,40181300
Sheffield City Council ,PEOPLE,13002639284,IFA's UNDER 16,9270009,INDEPENDENT FOSTERING,23/08/2017,65783,"1,770.00",FIVE RIVERS CHILD CARE LTD,CT240201880,Adoption & Fostering,40181300
Sheffield City Council ,CORPORATE,11992088888,BALANCE SHEET,800001,AP MIGRATION CONTROL ACCOUNT,06/08/2017,74615,"44,814.35",SIG TRADING LTD,CT079965460,ROOFING MATERIALS,48654000
Sheffield City Council ,CORPORATE,11992088888,BALANCE SHEET,800001,AP MIGRATION CONTROL ACCOUNT,06/08/2017,74669,"22,308.44",JOINERY AND TIMBER CREATIONS (65) LTD,CT072746420,Kitchen Planners & Furnishers,63784800
Sheffield City Council ,CORPORATE,11992088888,BALANCE SHEET,800001,AP MIGRATION CONTROL ACCOUNT,06/08/2017,74670,"12,705.30",PTS (PLUMBING TRADE SUPPLIERS),CT024459860,Plumbers' Merchants,61631800
Sheffield City Council ,CORPORATE,11992088888,BALANCE SHEET,800001,AP MIGRATION CONTROL ACCOUNT,06/08/2017,75405,"3,326.84",ENITIAL,CT070731590,Engineers - Consulting,48090600
Sheffield City Council ,CORPORATE,11992088888,BALANCE SHEET,800001,AP MIGRATION CONTROL ACCOUNT,06/08/2017,85458,-427.36,D M GOULD WHOLESALE LIMITED,CT021979470,TOYS & GAMES - WHOLESALE,63117400
Sheffield City Council ,CORPORATE,11992088888,BALANCE SHEET,800001,AP MIGRATION CONTROL ACCOUNT,06/08/2017,92200,-81.47,FL MEMO LTD,CT180162450,Publishers,41229100
Sheffield City Council ,CORPORATE,11992088888,BALANCE SHEET,800001,AP MIGRATION CONTROL ACCOUNT,06/08/2017,92200,-8.66,FL MEMO LTD,CT180162450,Publishers,41229100
Sheffield City Council ,CORPORATE,11992088888,BALANCE SHEET,800001,AP MIGRATION CONTROL ACCOUNT,06/08/2017,96551,345.66,MOVECORP LTD,CT025064620,Removals & Storage - Household,64706400
Sheffield City Council ,RESOURCES,11810018066,HR & P INSOURCING,6120000,ENERGY,30/08/2017,97134,726.66,MOVECORP LTD,CT025064620,Removals & Storage - Household,64706400
Sheffield City Council ,PLACE,14068549390,ACCOMMODATION,6210000,RENTS,23/08/2017,98763,"51,985.50",SOLPRO MANUFACTURING LTD,CT079930710,Electronic Component Mnfrs & Distributor,51232600
Sheffield City Council ,CORPORATE,11992088888,BALANCE SHEET,800001,AP MIGRATION CONTROL ACCOUNT,06/08/2017,99986,"2,302.56",VERISERV LIMITED,CT074930350,Electrical Testing & Inspecting,64466100
Sheffield City Council ,CORPORATE,11992088888,BALANCE SHEET,800001,AP MIGRATION CONTROL ACCOUNT,06/08/2017,99987,"1,136.16",VERISERV LIMITED,CT074930350,Electrical Testing & Inspecting,64466100
Sheffield City Council ,CORPORATE,11992088888,BALANCE SHEET,800001,AP MIGRATION CONTROL ACCOUNT,06/08/2017,100012,250.56,VERISERV LIMITED,CT074930350,Electrical Testing & Inspecting,64466100
Sheffield City Council ,CORPORATE,11992088888,BALANCE SHEET,800001,AP MIGRATION CONTROL ACCOUNT,06/08/2017,101198,912.34,INTERHATCH,CT109960630,POULTRY EQUIPMENT & SUPPLIES,36095500
Sheffield City Council ,PLACE,11850400000,NON OPERATIONAL OVERHEADS,6090000,WASTE DISPOSAL,31/08/2017,102193,327.04,FLETCHER PLANT LIMITED,CT101658996,Recycling Services,61866100
Sheffield City Council ,PLACE,11850400000,NON OPERATIONAL OVERHEADS,6090000,WASTE DISPOSAL,31/08/2017,102195,"3,176.09",FLETCHER PLANT LIMITED,CT101658996,Recycling Services,61866100
Sheffield City Council ,PLACE,11850400000,NON OPERATIONAL OVERHEADS,6090000,WASTE DISPOSAL,31/08/2017,102431,552.64,FLETCHER PLANT LIMITED,CT101658996,Recycling Services,61866100
Sheffield City Council ,CORPORATE,11992088888,BALANCE SHEET,800001,AP MIGRATION CONTROL ACCOUNT,06/08/2017,103037,"1,000.00",REDACTED PERSONAL DATA,CT190106700,Barristers,64699000
Sheffield City Council ,PEOPLE,13008633055,ADULT EDUCATION ADMIN,5750000,TRAINING EXPENDITURE,23/08/2017,106911,250.00,THE EDUCATION & TRAINING FOUNDATION,CT091229380,Educational Training Providers,63993500
Sheffield City Council ,PEOPLE,13008633055,ADULT EDUCATION ADMIN,5750000,TRAINING EXPENDITURE,23/08/2017,106912,400.00,THE EDUCATION & TRAINING FOUNDATION,CT091229380,Educational Training Providers,63993500
Sheffield City Council ,PLACE,12018528250,ESIF GROWTH HUB,8440000,FEE EXPENSES,30/08/2017,111783,"4,775.40",ASSURED FIRE & SECURITY,CT130835290,Fire Alarm Systems,43843500
Sheffield City Council ,CORPORATE,11992088888,BALANCE SHEET,800001,AP MIGRATION CONTROL ACCOUNT,06/08/2017,113082,"1,392.00",AJH PUMP SUPPLY AND REPAIR LTD,CT073862590,"Pumps - Sales, Servicing & Repairs",64494400
Sheffield City Council ,CORPORATE,11992088888,BALANCE SHEET,800001,AP MIGRATION CONTROL ACCOUNT,06/08/2017,119649,334.80,EXCHANGE SUPPLIES LTD,CT141011584,Occupational Health,42032800
Sheffield City Council ,CORPORATE,11992088888,BALANCE SHEET,800001,AP MIGRATION CONTROL ACCOUNT,06/08/2017,119650,"1,437.96",EXCHANGE SUPPLIES LTD,CT141011584,Occupational Health,42032800
Sheffield City Council ,CORPORATE,11992088888,BALANCE SHEET,800001,AP MIGRATION CONTROL ACCOUNT,06/08/2017,119716,395.46,EXCHANGE SUPPLIES LTD,CT141011584,Occupational Health,42032800
Sheffield City Council ,CORPORATE,11992088888,BALANCE SHEET,800001,AP MIGRATION CONTROL ACCOUNT,06/08/2017,119718,300.00,EXCHANGE SUPPLIES LTD,CT141011584,Occupational Health,42032800
Sheffield City Council ,CORPORATE,11992088888,BALANCE SHEET,800001,AP MIGRATION CONTROL ACCOUNT,06/08/2017,119718,417.72,EXCHANGE SUPPLIES LTD,CT141011584,Occupational Health,42032800
Sheffield City Council ,CORPORATE,11992088888,BALANCE SHEET,800001,AP MIGRATION CONTROL ACCOUNT,06/08/2017,119832,380.62,EXCHANGE SUPPLIES LTD,CT141011584,Occupational Health,42032800
Sheffield City Council ,CORPORATE,11992088888,BALANCE SHEET,800001,AP MIGRATION CONTROL ACCOUNT,06/08/2017,119894,501.12,EXCHANGE SUPPLIES LTD,CT141011584,Occupational Health,42032800
Sheffield City Council ,CORPORATE,11992088888,BALANCE SHEET,800001,AP MIGRATION CONTROL ACCOUNT,06/08/2017,120017,306.00,EXCHANGE SUPPLIES LTD,CT141011584,Occupational Health,42032800
Sheffield City Council ,CORPORATE,11992088888,BALANCE SHEET,800001,AP MIGRATION CONTROL ACCOUNT,06/08/2017,120067,"1,644.00",LOGO LEISUREWEAR LTD,CT026181420,Uniforms & Staff Wear,30719700
Sheffield City Council ,CORPORATE,11992088888,BALANCE SHEET,800001,AP MIGRATION CONTROL ACCOUNT,06/08/2017,120167,300.00,EXCHANGE SUPPLIES LTD,CT141011584,Occupational Health,42032800
Sheffield City Council ,CORPORATE,11992088888,BALANCE SHEET,800001,AP MIGRATION CONTROL ACCOUNT,06/08/2017,120167,"1,141.80",EXCHANGE SUPPLIES LTD,CT141011584,Occupational Health,42032800
Sheffield City Council ,PEOPLE,13002139101,EAST SERVICE AREA CSS,8010000,EQUIPMENT PURCHASE AND REPAIR,29/08/2017,127373,433.80,ONLINE ERGONOMICS LIMITED,CT024253450,Office Furniture & Equipment,44612000
Sheffield City Council ,PLACE,11853000000,CSSR CORE CONTRACT,8530001,SUBCONTRACTOR GENERAL,31/08/2017,128443,"6,180.88",BURNGREAVE BUILDING CO LTD,CT070661961,Property Maintenance & Repairs,64457800
Sheffield City Council ,PLACE,11850200000,VOIDS REPAIRS,8530001,SUBCONTRACTOR GENERAL,31/08/2017,128444,"9,264.42",BURNGREAVE BUILDING CO LTD,CT070661961,Property Maintenance & Repairs,30215400
Sheffield City Council ,PLACE,11850200000,VOIDS REPAIRS,8530001,SUBCONTRACTOR GENERAL,31/08/2017,128453,"12,891.25",BURNGREAVE BUILDING CO LTD,CT070661961,Property Maintenance & Repairs,30215400
Sheffield City Council ,PLACE,11850200000,VOIDS REPAIRS,8530001,SUBCONTRACTOR GENERAL,31/08/2017,128565,"9,026.76",BURNGREAVE BUILDING CO LTD,CT070661961,Property Maintenance & Repairs,30215400
Sheffield City Council ,PLACE,11850000000,RESPONSIVE REPAIRS,8530001,SUBCONTRACTOR GENERAL,31/08/2017,128568,"8,878.35",BURNGREAVE BUILDING CO LTD,CT070661961,Property Maintenance & Repairs,30215400
Sheffield City Council ,PLACE,11850000000,RESPONSIVE REPAIRS,8530001,SUBCONTRACTOR GENERAL,31/08/2017,128569,"3,594.92",BURNGREAVE BUILDING CO LTD,CT070661961,Property Maintenance & Repairs,30215400
Sheffield City Council ,PLACE,11853000000,CSSR CORE CONTRACT,8530001,SUBCONTRACTOR GENERAL,31/08/2017,128578,"11,767.22",BURNGREAVE BUILDING CO LTD,CT070661961,Property Maintenance & Repairs,64457800
Sheffield City Council ,CORPORATE,11992088888,BALANCE SHEET,800001,AP MIGRATION CONTROL ACCOUNT,06/08/2017,130147,"1,075.96",ANALAN SUPPLIES LTD,CT021019000,Cleaning Materials & Equipment,20294700
Sheffield City Council ,PLACE,11513300000,WORKSHOPS,7010000,ROUTINE VEHICLE REPAIR & MTCE,15/08/2017,140869,"1,550.86",F R SHARROCK LTD,CT109902690,Agricultural Services,44099400
Sheffield City Council ,CORPORATE,11992088888,BALANCE SHEET,800001,AP MIGRATION CONTROL ACCOUNT,06/08/2017,143094,495.37,GIBSONS GARDEN MACHINERY LTD,CT101247400,Lawnmowers & Garden Machinery - Sales &,20513200
Sheffield City Council ,CORPORATE,11992088888,BALANCE SHEET,800001,AP MIGRATION CONTROL ACCOUNT,06/08/2017,143249,754.96,GIBSONS GARDEN MACHINERY LTD,CT101247400,Lawnmowers & Garden Machinery - Sales &,20513200
Sheffield City Council ,PEOPLE,14009242034,PURCHASING LEARNING DISABILITI,9230005,CCSP OTHER,11/08/2017,143980,552.24,PENDERELS TRUST,CT129956800,Payroll Services,50525700
Sheffield City Council ,PEOPLE,14009242034,PURCHASING LEARNING DISABILITI,9230005,CCSP OTHER,11/08/2017,143981,567.04,PENDERELS TRUST,CT129956800,Payroll Services,50525700
Sheffield City Council ,CORPORATE,11992088888,BALANCE SHEET,800001,AP MIGRATION CONTROL ACCOUNT,06/08/2017,148434,"1,800.00",STR GLOBAL LIMITED,CT020144100,Hotels,58821900
Sheffield City Council ,CORPORATE,11992088888,BALANCE SHEET,800001,AP MIGRATION CONTROL ACCOUNT,06/08/2017,159503,270.00,H HARROLD & SONS LTD,CT220448586,Lock Smiths,20528500
Sheffield City Council ,CORPORATE,11992088888,BALANCE SHEET,800001,AP MIGRATION CONTROL ACCOUNT,06/08/2017,159625,734.06,H HARROLD & SONS LTD,CT220448586,Lock Smiths,20528500
Sheffield City Council ,CORPORATE,11992088888,BALANCE SHEET,800001,AP MIGRATION CONTROL ACCOUNT,06/08/2017,159626,424.78,H HARROLD & SONS LTD,CT220448586,Lock Smiths,20528500
Sheffield City Council ,PEOPLE,13002639428,RESIDENTIAL UNDER 16's,9270008,INDEPENDENT RESIDENTIAL PMENT,24/08/2017,165124,"15,721.34",NEW HORIZONS CHILDCARE LTD (KEYS GRP),CT249917780,Children's Homes,64432100
Sheffield City Council ,CORPORATE,11992088888,BALANCE SHEET,800001,AP MIGRATION CONTROL ACCOUNT,06/08/2017,165129,"3,019.00",HEALTH MANAGEMENT LTD,CT141011584,Occupational Health,53135900
Sheffield City Council ,CORPORATE,11992088888,BALANCE SHEET,800001,AP MIGRATION CONTROL ACCOUNT,06/08/2017,165129,"15,484.32",HEALTH MANAGEMENT LTD,CT141011584,Occupational Health,53135900
Sheffield City Council ,CORPORATE,11992088888,BALANCE SHEET,800001,AP MIGRATION CONTROL ACCOUNT,06/08/2017,170559,300.00,CATCHPOINT CONSULTANCY CIC,CT160979980,Training Services,59935700
Sheffield City Council ,CORPORATE,11992088888,BALANCE SHEET,800001,AP MIGRATION CONTROL ACCOUNT,06/08/2017,175620,352.80,TERSUS LIMITED (CONSULTING),CT071004970,ASBESTOS SURVEYS & REMOVAL,37979400
Sheffield City Council ,CORPORATE,11992088888,BALANCE SHEET,800001,AP MIGRATION CONTROL ACCOUNT,06/08/2017,175621,"5,286.00",TERSUS LIMITED (CONSULTING),CT071004970,ASBESTOS SURVEYS & REMOVAL,37979400
Sheffield City Council ,CORPORATE,11992088888,BALANCE SHEET,1810005,VAT PRIOR PERIOD ADJ:INPUT,21/08/2017,182645,267.61,BRISTOW AND SUTOR,CT129906130,Bailiffs,62552900
Sheffield City Council ,PEOPLE,13002639283,INDEPENDENT FOSTER PLACE 16+,9270009,INDEPENDENT FOSTERING,30/08/2017,201600,"2,773.12",FOSTERING SOLUTIONS LTD,CT240201880,Adoption & Fostering,34483000
Sheffield City Council ,PEOPLE,13002639283,INDEPENDENT FOSTER PLACE 16+,9270009,INDEPENDENT FOSTERING,30/08/2017,201601,"4,042.64",FOSTERING SOLUTIONS LTD,CT240201880,Adoption & Fostering,34483000
Sheffield City Council ,PEOPLE,13002639143,CWD INDEPENDENT PLACEMENTS,9270009,INDEPENDENT FOSTERING,30/08/2017,201602,"3,814.44",FOSTERING SOLUTIONS LTD,CT240201880,Adoption & Fostering,34483000
Sheffield City Council ,PEOPLE,13002639284,IFA's UNDER 16,9270009,INDEPENDENT FOSTERING,30/08/2017,201619,"3,210.48",FOSTERING SOLUTIONS LTD,CT240201880,Adoption & Fostering,34483000
Sheffield City Council ,PEOPLE,13002639284,IFA's UNDER 16,9270009,INDEPENDENT FOSTERING,14/08/2017,201620,"2,685.80",FOSTERING SOLUTIONS LTD,CT240201880,Adoption & Fostering,34483000
Sheffield City Council ,PEOPLE,13002639284,IFA's UNDER 16,9270009,INDEPENDENT FOSTERING,14/08/2017,201621,"2,887.96",FOSTERING SOLUTIONS LTD,CT240201880,Adoption & Fostering,34483000
Sheffield City Council ,PEOPLE,13001639006,UASC/ASYLUM 16-17,9270009,INDEPENDENT FOSTERING,23/08/2017,201640,"2,435.62",FOSTERING SOLUTIONS LTD,CT240201880,Adoption & Fostering,34483000
Sheffield City Council ,PEOPLE,13001639006,UASC/ASYLUM 16-17,9270009,INDEPENDENT FOSTERING,30/08/2017,201641,631.05,FOSTERING SOLUTIONS LTD,CT240201880,Adoption & Fostering,34483000
Sheffield City Council ,PEOPLE,13002639284,IFA's UNDER 16,9270009,INDEPENDENT FOSTERING,14/08/2017,201646,996.39,FOSTERING SOLUTIONS LTD,CT240201880,Adoption & Fostering,34483000
Sheffield City Council ,PEOPLE,13002639284,IFA's UNDER 16,9270009,INDEPENDENT FOSTERING,30/08/2017,201647,"1,998.32",FOSTERING SOLUTIONS LTD,CT240201880,Adoption & Fostering,34483000
Sheffield City Council ,PEOPLE,13002639284,IFA's UNDER 16,9270009,INDEPENDENT FOSTERING,14/08/2017,202273,"-1,534.74",FOSTERING SOLUTIONS LTD,CT240201880,Adoption & Fostering,34483000
Sheffield City Council ,PEOPLE,13002639284,IFA's UNDER 16,9270009,INDEPENDENT FOSTERING,14/08/2017,202274,"-1,650.26",FOSTERING SOLUTIONS LTD,CT240201880,Adoption & Fostering,34483000
Sheffield City Council ,PEOPLE,13002639143,CWD INDEPENDENT PLACEMENTS,9270009,INDEPENDENT FOSTERING,30/08/2017,202427,-953.61,FOSTERING SOLUTIONS LTD,CT240201880,Adoption & Fostering,34483000
Sheffield City Council ,PEOPLE,13002639283,INDEPENDENT FOSTER PLACE 16+,9270009,INDEPENDENT FOSTERING,16/08/2017,204244,"3,319.96",SWIIS FOSTER CARE LTD,CT240201880,Adoption & Fostering,34929100
Sheffield City Council ,PEOPLE,13002639284,IFA's UNDER 16,9270009,INDEPENDENT FOSTERING,16/08/2017,204245,"2,861.88",SWIIS FOSTER CARE LTD,CT240201880,Adoption & Fostering,34929100
Sheffield City Council ,PLACE,11850000000,RESPONSIVE REPAIRS,8530001,SUBCONTRACTOR GENERAL,30/08/2017,214633,"4,399.09",HI-POINT ACCESS LTD,CT079967140,Scaffolding Erectors & Hirers,20549600
Sheffield City Council ,PLACE,11853000000,CSSR CORE CONTRACT,8530001,SUBCONTRACTOR GENERAL,29/08/2017,214714,676.59,HI-POINT ACCESS LTD,CT079967140,Scaffolding Erectors & Hirers,20549600
Sheffield City Council ,PLACE,11850000000,RESPONSIVE REPAIRS,8530002,SUBCONTRACTOR WORK AT HEIGHT,25/08/2017,214755,"54,222.69",HI-POINT ACCESS LTD,CT079967140,Scaffolding Erectors & Hirers,20549600
Sheffield City Council ,CORPORATE,11992088888,BALANCE SHEET,800001,AP MIGRATION CONTROL ACCOUNT,06/08/2017,216077,-144.50,UNIVERSITY HOSPITAL OF SOUTH MANCHESTER,CT149943860,Hospitals,58838000
Sheffield City Council ,CORPORATE,11992088888,BALANCE SHEET,800001,AP MIGRATION CONTROL ACCOUNT,06/08/2017,226181,442.80,SBP LTD - PERMADOOR,CT079927253,Door Manufacturers - Industrial,64471500
Sheffield City Council ,CORPORATE,11992088888,BALANCE SHEET,800001,AP MIGRATION CONTROL ACCOUNT,06/08/2017,226189,592.80,SBP LTD - PERMADOOR,CT079927253,Door Manufacturers - Industrial,64471500
Sheffield City Council ,CORPORATE,11992088888,BALANCE SHEET,800001,AP MIGRATION CONTROL ACCOUNT,06/08/2017,226190,581.08,SBP LTD - PERMADOOR,CT079927253,Door Manufacturers - Industrial,64471500
Sheffield City Council ,CORPORATE,11992088888,BALANCE SHEET,800001,AP MIGRATION CONTROL ACCOUNT,06/08/2017,226191,433.32,SBP LTD - PERMADOOR,CT079927253,Door Manufacturers - Industrial,64471500
Sheffield City Council ,CORPORATE,11992088888,BALANCE SHEET,800001,AP MIGRATION CONTROL ACCOUNT,06/08/2017,226274,"2,658.92",LEEC LTD,CT141246745,Laboratory Equipment,33809000
Sheffield City Council ,CORPORATE,11992088888,BALANCE SHEET,800001,AP MIGRATION CONTROL ACCOUNT,06/08/2017,228144,480.00,B AND B PRESS (PARKGATE) LTD,CT060461540,Printers,20316800
Sheffield City Council ,CORPORATE,11992088888,BALANCE SHEET,800001,AP MIGRATION CONTROL ACCOUNT,06/08/2017,228167,"1,351.20",B AND B PRESS (PARKGATE) LTD,CT060461540,Printers,20316800
Sheffield City Council ,CORPORATE,11992088888,BALANCE SHEET,800001,AP MIGRATION CONTROL ACCOUNT,06/08/2017,228202,340.00,B AND B PRESS (PARKGATE) LTD,CT060461540,Printers,20316800
Sheffield City Council ,CORPORATE,11992088888,BALANCE SHEET,800001,AP MIGRATION CONTROL ACCOUNT,06/08/2017,228263,558.00,B AND B PRESS (PARKGATE) LTD,CT060461540,Printers,20316800
Sheffield City Council ,CORPORATE,11992088888,BALANCE SHEET,800001,AP MIGRATION CONTROL ACCOUNT,06/08/2017,234224,351.06,M-R-S COMMUNICATIONS LTD,CT170163090,Radio Communication Equipment,39099300
Sheffield City Council ,CORPORATE,11992088888,BALANCE SHEET,800001,AP MIGRATION CONTROL ACCOUNT,06/08/2017,236291,"1,194.00",THE KNOWLEDGE ACADEMY,CT091229380,Educational Training Providers,57503800
Sheffield City Council ,PEOPLE,14009242034,PURCHASING LEARNING DISABILITI,1780000,ERROR SUSPENSE - CAREFIRST,14/08/2017,275816,635.04,CREATIVE SUPPORT LTD,CT240671855,Social Services,62264500
Sheffield City Council ,PEOPLE,14009242034,PURCHASING LEARNING DISABILITI,1780000,ERROR SUSPENSE - CAREFIRST,14/08/2017,275816,661.52,CREATIVE SUPPORT LTD,CT240671855,Social Services,62264500
Sheffield City Council ,PEOPLE,14009242034,PURCHASING LEARNING DISABILITI,9240000,SUPPORTED LIVING CARE,14/08/2017,275816,"2,283.32",CREATIVE SUPPORT LTD,CT240671855,Social Services,62264500
Sheffield City Council ,PEOPLE,14009242034,PURCHASING LEARNING DISABILITI,9240000,SUPPORTED LIVING CARE,14/08/2017,275816,"2,706.62",CREATIVE SUPPORT LTD,CT240671855,Social Services,62264500
Sheffield City Council ,PEOPLE,14009242034,PURCHASING LEARNING DISABILITI,9240000,SUPPORTED LIVING CARE,14/08/2017,275816,"3,341.72",CREATIVE SUPPORT LTD,CT240671855,Social Services,62264500
Sheffield City Council ,PLACE,11513300000,WORKSHOPS,7010000,ROUTINE VEHICLE REPAIR & MTCE,15/08/2017,280634,"3,032.86",B & B TRACTORS,CT100902600,Agricultural Machinery - Sales & Service,20317000
Sheffield City Council ,PLACE,11513300000,WORKSHOPS,7010000,ROUTINE VEHICLE REPAIR & MTCE,15/08/2017,280635,"1,935.22",B & B TRACTORS,CT100902600,Agricultural Machinery - Sales & Service,20317000
Sheffield City Council ,CORPORATE,11992088888,BALANCE SHEET,800001,AP MIGRATION CONTROL ACCOUNT,06/08/2017,292113,"12,566.50",EAST MIDLANDS TRAINS LTD,CT261763418,Railways,50776900
Sheffield City Council ,PLACE,11518915190,HARD FM,6020048,DEC,25/08/2017,298006,"2,686.25",WYG ENGINEERING LIMITED,CT079931589,Engineering Services,59599600
Sheffield City Council ,PLACE,11518915190,HARD FM,6020048,DEC,25/08/2017,298244,"1,072.50",WYG ENGINEERING LIMITED,CT079931589,Engineering Services,59599600
Sheffield City Council ,PEOPLE,14009242034,PURCHASING LEARNING DISABILITI,9240000,SUPPORTED LIVING CARE,21/08/2017,319667,"3,302.20",MENCAP HOMECARE,CT230417020,Charities & Voluntary Organisations,36185800
Sheffield City Council ,LOCAL ENTERPRISE PARTNERSHIP,33072230201,INWARD INVESTMENT,8250000,MARKETING EXPENSES,28/08/2017,413059,"1,860.00",CHINA-BRITAIN BUSINESS COUNCIL,CT180379490,Trade Associations,62834100
Sheffield City Council ,CORPORATE,11992088888,BALANCE SHEET,800001,AP MIGRATION CONTROL ACCOUNT,06/08/2017,433476,"3,116.70",JOINERY AND TIMBER CREATIONS (65) LTD,CT072746420,Kitchen Planners & Furnishers,63784800
Sheffield City Council ,CORPORATE,11992088888,BALANCE SHEET,800001,AP MIGRATION CONTROL ACCOUNT,06/08/2017,433478,"7,961.46",JOINERY AND TIMBER CREATIONS (65) LTD,CT072746420,Kitchen Planners & Furnishers,63784800
Sheffield City Council ,CORPORATE,11992088888,BALANCE SHEET,800001,AP MIGRATION CONTROL ACCOUNT,06/08/2017,433479,402.30,JOINERY AND TIMBER CREATIONS (65) LTD,CT072746420,Kitchen Planners & Furnishers,63784800
